Workbook

Sheet INICIO
A1: oferta | B1: tabla | C1: numerodehoja | E1: ordenoferta | F1: 1 | G1: =INDEX(G2:G11,F1) -> 1. Datos Generales | J1: 1 | K1: 2 | L1: 3 | M1: 4 | N1: 5 | O1: 6 | P1: 7 | Q1: 8 | R1: 9 | S1: 10 | U1: nivel/oferta | V1: 1 | W1: 2 | X1: 3 | Y1: 4 | Z1: 5 | AA1: 6 | AB1: 7 | AC1: 8 | AD1: 9 | AE1: 10 | AR1: 1 | AS1: 2
A2: 1 | B2: =J2 -> Unidades educativas, alumnos, docentes, sector, modalidad y nivel | C2: 2 | E2: ordentabla | F2: 1 | G2: 1. Datos Generales | I2: 1 | J2: =IF($G$22=1,AR2,AS2) -> Unidades educativas, alumnos, docentes, sector, modalidad y nivel | K2: =IF($G$22=1,AR3,AS3) -> Unidades educativas, alumnos, docentes, sector, dependencia y ámbito. | L2: =IF($G$22=1,AR18,AS18) -> Unidades educativas, alumnos, docentes, sector, dependencia y ámbito. | M2: =IF($G$22=1,AR34,AS34) -> Unidades educativas, alumnos, docentes, sector, dependencia y ámbito | N2: =IF($G$22=1,AR64,AS64) -> Unidades educativas, alumnos, docentes, sector y dependencia | O2: =IF($G$22=1,AR74,AS74) -> Establecimientos, alumnos, docentes, y sector | P2: =IF($G$22=1,AR88,AS88) -> Establecimientos, alumnos, docentes, sector y dependencia | Q2: =IF($G$22=1,AR91,AS91) -> Primario y secundario. Unidades educativas, alumnos, docentes, sector y ámbito | R2: =IF($G$22=1,AR111,AS111) -> Unidades educativas, alumnos, docentes y sector | S2: =IF($G$22=1,AR115,AS115) -> Unidades educativas, alumnos, docentes y organismo de dependencia | U2: cantidad de tablas | V2: =COUNTA(J:J)-1 -> 1 | W2: 15 | X2: 16 | Y2: 30 | Z2: 10 | AA2: 14 | AB2: 3 | AC2: 20 | AD2: 4 | AE2: 5 | AQ2: 1 | AR2: Unidades educativas o establecimientos, alumnos y personal docente en actividad, por sector, según modalidad y nivel | AS2: Unidades educativas, alumnos, docentes, sector, modalidad y nivel
A3: 2 | B3: =K2 -> Unidades educativas, alumnos, docentes, sector, dependencia y ámbito. | C3: 3 | E3: tabla | F3: =INDEX(Combotablas,ordentabla) -> Unidades educativas, alumnos, docentes, sector, modalidad y nivel | G3: 2. Inicial común | I3: 2 | K3: =IF($G$22=1,AR4,AS4) -> Unidades educativas, alumnos, docentes, sector y dpto. | L3: =IF($G$22=1,AR19,AS19) -> Unidades educativas, alumnos, docentes, sector y dpto. | M3: Unidades educativas, alumnos, docentes, sector y dpto. | N3: =IF($G$22=1,AR65,AS65) -> Bases, anexos, alumnos, docentes, sector y dpto. | O3: Bases, anexos, alumnos, docentes, sector y dpto. | P3: =IF($G$22=1,AR89,AS89) -> Alumnos, sexo, modalidad y nivel | Q3: =IF($G$22=1,AR92,AS92) -> Primario y secundario. Contexto de privación de la libertad. Alumnos, sexo y nivel | R3: =IF($G$22=1,AR112,AS112) -> Unidades educativas, alumnos, docentes, sector y dpto. | S3: =IF($G$22=1,AR116,AS116) -> Bases, anexos, alumnos, docentes y dpto. | U3: ntablas | V3: =HLOOKUP(ordenoferta,$V$1:$AE$2,2,FALSE) -> 1 | AQ3: 2 | AR3: Unidades educativas, alumnos y personal docente en actividad, por sector y dependencia, según ámbito | AS3: Unidades educativas, alumnos, docentes, sector, dependencia y ámbito.
A4: 2 | B4: =K3 -> Unidades educativas, alumnos, docentes, sector y dpto. | C4: 4 | E4: ordenhoja | F4: =VLOOKUP(tabla,rangotablahoja,2,FALSE) -> 2 | G4: 3. Primario común | I4: 3 | K4: =IF($G$22=1,AR5,AS5) -> Bases, anexos, sector, ámbito y dpto. | L4: Bases, anexos, sector, ámbito y dpto. | M4: Bases y anexos, sector, ámbito y dpto. | N4: Alumnos, sector, sexo y tipo de formación. | O4: Alumnos, sector, sexo y dpto. | P4: =IF($G$22=1,AR90,AS90) -> Alumnos, tipo de atención, modalidad y nivel | Q4: Primario. Unidades educativas, alumnos, docentes, sector, dependencia y ámbito | R4: =IF($G$22=1,AR113,AS113) -> Alumnos y tipo de por oferta | S4: =IF($G$22=1,AR117,AS117) -> Alumnos, sexo y nivel | AQ4: 2 | AR4: Unidades educativas, alumnos, docente en actividad, sector y departamento | AS4: Unidades educativas, alumnos, docentes, sector y dpto.
A5: 2 | B5: Bases, anexos, sector, ámbito y dpto. | C5: 5 | E5: ordenhojaantesdecambiar | F5: 111 | G5: 4. Secundario común | I5: 4 | K5: Alumnos, sexo y dpto. | L5: Alumnos, sexo y dpto. | M5: Alumnos, sexo y dpto. | N5: Alumnos, sector, sexo y dpto. | O5: Alumnos, nivel de la educación formal y dpto. | Q5: Primario. Bases, anexos, alumnos, docentes, ámbito y dpto. | R5: =IF($G$22=1,AR114,AS114) -> Alumnos, sector, sexo y especialidad | S5: =IF($G$22=1,AR118,AS118) -> Docentes, origen y forma de designación | AQ5: 2 | AR5: Bases y anexos, por sector y ámbito, según departamento | AS5: Bases, anexos, sector, ámbito y dpto.
A6: 2 | B6: Alumnos, sexo y dpto. | C6: 6 | E6: ordenexport | F6: 1 | G6: 5. Superior | I6: 5 | K6: Sector estatal. Alumnos, ámbito, sexo y dpto. | L6: Sector estatal. Alumnos, ámbito, sexo y dpto. | M6: Sector estatal. Alumnos, ámbito, sexo y dpto. | N6: Ingresantes a 1° año, sector, sexo y dpto | O6: Promovidos de 6° grado de primario, egresados de secundario y dpto. | Q6: Primario. Alumnos, ámbito, sexo y dpto. | S6: =IF($G$22=1,AR119,AS119) -> Docentes, por sexo y dpto. | AQ6: 2 | AR6: Alumnos por sexo, según departamento | AS6: Alumnos, sexo y dpto.
A7: 2 | B7: Sector estatal. Alumnos, ámbito, sexo y dpto. | C7: 7 | G7: 6. Especial | I7: 6 | K7: Sector privado. Alumnos, ámbito, sexo y dpto. | L7: Sector privado. Alumnos, ámbito, sexo y dpto. | M7: Sector privado. Alumnos, ámbito, sexo y dpto. | N7: Alumnos, sector, tipo de carrera y tipo de rama | O7: Alumnos de educación no formal, sector y dpto. | Q7: Primario. Secciones, tipo de sección, ámbito y dpto. | AQ7: 2 | AR7: Alumnos por ámbito y sexo, según departamento. Sector estatal | AS7: Sector estatal. Alumnos, ámbito, sexo y dpto.
A8: 2 | B8: Sector privado. Alumnos, ámbito, sexo y dpto. | C8: 8 | G8: 7.Hospitalaria y Domiciliaria | I8: 7 | K8: Alumnos, tipo de jardín, salas, año lectivo y sector. | L8: Alumnos, grado y dpto. | M8: Alumnos, año de estudio y dpto. | N8: Egresados ciclo 2018, sector, sexo y dpto. | O8: =IF($G$22=1,AR80,AS80) -> Alumnos integrados, sector de la escuela de origen y ciclo lectivo (2014-2019) | Q8: Primario. Docentes, ámbito y dpto. | AQ8: 2 | AR8: Alumnos por ámbito y sexo, según departamento. Sector privado | AS8: Sector privado. Alumnos, ámbito, sexo y dpto.
A9: 2 | B9: Alumnos, tipo de jardín, salas, año lectivo y sector. | C9: 9 | G9: 8. Jóvenes y Adultos | I9: 8 | K9: Sector estatal. Alumnos, tipo de sección, tipo de jardín, sala y dpto. | L9: Alumnos, sector, tipo de sección y dpto. | M9: Ciclo básico. Alumnos, año de estudio, sexo y dpto. | N9: Docentes, lugar de origen, forma de designación y sector | O9: Cargos cubiertos de maestro integrador, sector y ciclo lectivo (2014 - 2019) | Q9: Secundario. Unidades educativas, alumnos, docentes, sector y ámbito | AQ9: 2 | AR9: Alumnos de jardín maternal y de jardín de infantes, por salas de 3, 4 y 5, según año de relevamiento y sector | AS9: Alumnos, tipo de jardín, salas, año lectivo y sector.
A10: 2 | B10: Sector estatal. Alumnos, tipo de sección, tipo de jardín, sala y dpto. | C10: 10 | G10: 9. Artística | I10: 9 | K10: Sector privado. Alumnos, tipo de sección, tipo de jardín, sala y dpto. | L10: Alumnos, repitentes, sobreedad y dpto. | M10: Ciclo orientado. Alumnos, año de estudio, sexo y dpto. | N10: Docentes, sexo y dpto. | O10: Alumnos, tipo de integración y ciclo lectivo (2014 -2019) | Q10: Secundario. Unidades educativas, alumnos, docentes, sector y dpto. | AQ10: 2 | AR10: Sector estatal. Alumnos en secciones independientes de jardín maternal y de jardín de infantes, por salas de 3, 4 y 5 y alumnos en secciones múltiples, según departamento | AS10: Sector estatal. Alumnos, tipo de sección, tipo de jardín, sala y dpto.
A11: 2 | B11: Sector privado. Alumnos, tipo de sección, tipo de jardín, sala y dpto. | C11: 11 | G11: 10. Formación Profesional | I11: 10 | K11: Secciones, tipo de sección, tipo de jardín, sala y sector. | L11: Alumnos, repitentes, sexo y grado | M11: Alumnos, repetidores, sobreedad y dpto. | N11: Docentes, sector, ámbito, origen de la designación y dpto. | O11: Alumnos integrados, tipo de discapacidad y ciclo (2014 - 2019) | Q11: Secundario. Bases, anexos, sector, ámbito y dpto. | AQ11: 2 | AR11: Sector privado. Alumnos en secciones independientes de jardín maternal y de jardín de infantes, por salas de 3, 4 y 5 y alumnos en secciones múltiples, según departamento | AS11: Sector privado. Alumnos, tipo de sección, tipo de jardín, sala y dpto.
A12: 2 | B12: Secciones, tipo de sección, tipo de jardín, sala y sector. | C12: 12 | G12: Anuario completo | I12: 11 | K12: Secciones, tipo de sección, tipo de jardín, sala, sector y dpto. | L12: Alumnos, sobreedad y grado | M12: Alumnos, repetidores, sexo y año de estudio | O12: Alumnos integrados, sector de la escuela de origen, tipo de discapacidad y ciclo (2014 - 2019) | Q12: Secundario. Alumno, sector, ámbito, sexo y dpto. | AQ12: 2 | AR12: Secciones independientes de jardín maternal y de jardín de infantes, por salas de 3, 4 y 5 y secciones múltiples, según sector | AS12: Secciones, tipo de sección, tipo de jardín, sala y sector.
A13: 2 | B13: Secciones, tipo de sección, tipo de jardín, sala, sector y dpto. | C13: 13 | I13: 12 | K13: Secciones, tipo de sección, sector, ámbito y dpto. | L13: Tasas de promoción, no promoción y abandono anual, grado y año lectivo | M13: Alumnos, sobreedad y año de estudio | O13: Alumnos con discapacidad, tipo de seguimiento que reciben, modalidad y nivel | Q13: Secundario. Alumnos, ciclo, sector y ámbito | AQ13: 2 | AR13: Secciones independientes de jardín maternal y jardín de infantes, por salas de 3, 4 y 5 y secciones múltiples por sector, según departamento | AS13: Secciones, tipo de sección, tipo de jardín, sala, sector y dpto.
A14: 2 | B14: Secciones, tipo de sección, sector, ámbito y dpto. | C14: 14 | I14: 13 | K14: Docentes, sexo y dpto. | L14: Secciones, tipo de sección, sector, ámbito y dpto. | M14: Tasa de promoción, de no promoción y de abandono anual, año de estudio y ciclo lectivo | O14: Docentes, sector y dpto. | Q14: Secundario. Alumnos, modalidad de dictado y ámbito | AQ14: 2 | AR14: Secciones por sector, ámbito y tipo , según departamento | AS14: Secciones, tipo de sección, sector, ámbito y dpto.
A15: 2 | B15: Docentes, sexo y dpto. | C15: 15 | I15: 14 | K15: Docentes, sector, ámbito y dpto. | L15: Docentes, sexo y dpto. | M15: Egresados 2018, sector, sexo y dpto. | O15: Cargos docentes cubiertos frente a alumnos, sector y dpto. | Q15: Secundario. Alumnos, sexo, modalidad de dictado y ámbito | AQ15: 2 | AR15: Personal docente en actividad, por sexo, según departamento | AS15: Docentes, sexo y dpto.
A16: 2 | B16: Docentes, sector, ámbito y dpto. | C16: 16 | I16: 15 | K16: Cargos docentes, tipo de cargo, sector, ámbito y dpto. | L16: Docentes, sector, ámbito y dpto. | M16: Secundaria orientada. Alumnos, sector, ámbito, ciclo y orientación | Q16: Secundario. Egresados 2018, sexo y modalidad de dictado | AQ16: 2 | AR16: Personal docente en actividad, por sector y ámbito, según departamento | AS16: Docentes, sector, ámbito y dpto.
A17: 2 | B17: Cargos docentes, tipo de cargo, sector, ámbito y dpto. | C17: 17 | I17: 16 | L17: Cargos docentes, tipo de cargo, sector, ámbito y dpto. | M17: Secundaria técnica. Alumnos, sector, ámbito, ciclo y título | Q17: Secundario. Modalidad presencial. Egresados 2018, sexo, plan y orientación | AQ17: 2 | AR17: Cargos docentes, tipo de cargo, sector, ámbito y dpto. | AS17: Cargos docentes, tipo de cargo, sector, ámbito y dpto.
A18: 3 | B18: =L2 -> Unidades educativas, alumnos, docentes, sector, dependencia y ámbito. | C18: 18 | I18: 17 | M18: Secundaria orientada. Alumnos, sector, sexo, ciclo y orientación | Q18: Secundario. Modalidad a distancia. Egresados 2018, sexo y orientación | AQ18: 3 | AR18: Unidades educativas, alumnos y personal docente en actividad, por sector y dependencia, según ámbito | AS18: Unidades educativas, alumnos, docentes, sector, dependencia y ámbito.
A19: 3 | B19: =L3 -> Unidades educativas, alumnos, docentes, sector y dpto. | C19: 19 | I19: 18 | M19: Secundaria técnica. Alumnos, sector, sexo, ciclo y título | Q19: Secundario. Docentes, sector, lugar de origen y forma de designación | AQ19: 3 | AR19: Unidades educativas, alumnos y personal docente en actividad, por sector, según departamento | AS19: Unidades educativas, alumnos, docentes, sector y dpto.
A20: 3 | B20: Bases, anexos, sector, ámbito y dpto. | C20: 20 | I20: 19 | M20: Secundaria orientada. alumnos, repetidores, sobreedad y año de estudio | Q20: Secundario. Docentes, sexo y dpto. | AQ20: 3 | AR20: Bases y anexos, por sector y ámbito, según departamento | AS20: Bases, anexos, sector, ámbito y dpto.
A21: 3 | B21: Alumnos, sexo y dpto. | C21: 21 | I21: 20 | M21: Secundaria técnica. Alumnos, repetidores, sobreedad y año de estudio | Q21: =IF($G$22=1,AR110,AS110) -> Secundario. Docentes, sector, ámbito y dpto. | AQ21: 3 | AR21: Alumnos por sexo, según departamento | AS21: Alumnos, sexo y dpto.
A22: 3 | B22: Sector estatal. Alumnos, ámbito, sexo y dpto. | C22: 22 | G22: 2 | I22: 21 | M22: Secundaria orientada. Egresados 2018, sector, sexo y orientación | AQ22: 3 | AR22: Alumnos por ámbito y sexo, según departamento - Sector estatal | AS22: Sector estatal. Alumnos, ámbito, sexo y dpto.
A23: 3 | B23: Sector privado. Alumnos, ámbito, sexo y dpto. | C23: 23 | G23: Título de tabla | I23: 22 | M23: Secundaria técnica. Egresados 2018, sector, sexo y título | AQ23: 3 | AR23: Alumnos por ámbito y sexo, según departamento - Sector privado | AS23: Sector privado. Alumnos, ámbito, sexo y dpto.
A24: 3 | B24: Alumnos, grado y dpto. | C24: 24 | G24: Variables en la tabla | I24: 23 | M24: PIT. Alumnos, sector, sexo y ámbito | AQ24: 3 | AR24: Alumnos por grado, según departamento | AS24: Alumnos, grado y dpto.
A25: 3 | B25: Alumnos, sector, tipo de sección y dpto. | C25: 25 | I25: 24 | M25: PIT. Alumnos, sexo y ciclo lectivo | AQ25: 3 | AR25: Alumnos por sector y tipo de sección, según departamento | AS25: Alumnos, sector, tipo de sección y dpto.
A26: 3 | B26: Alumnos, repitentes, sobreedad y dpto. | C26: 26 | I26: 25 | M26: PIT. Egresado 2018, sector, sexo y dpto. | AQ26: 3 | AR26: Total de alumnos, total y porcentaje de alumnos repitentes y con sobreedad, según departamento | AS26: Alumnos, repitentes, sobreedad y dpto.
A27: 3 | B27: Alumnos, repitentes, sexo y grado | C27: 27 | I27: 26 | M27: Secciones, tipo de sección, sector, ámbito y dpto. | AQ27: 3 | AR27: Total de alumnos, total y porcentaje de alumnos repitentes por sexo, según grado | AS27: Alumnos, repitentes, sexo y grado
A28: 3 | B28: Alumnos, sobreedad y grado | C28: 27 | I28: 27 | M28: Docentes, lugar de origen, forma de designación y sector | AQ28: 3 | AR28: Total de alumnos, total y porcentaje de alumnos con sobreedad, según grado | AS28: Alumnos, sobreedad y grado
A29: 3 | B29: Tasas de promoción, no promoción y abandono anual, grado y año lectivo | C29: 28 | I29: 28 | M29: Docente, sexo y dpto. | AQ29: 3 | AR29: Tasa de promoción, de no promoción y de abandono anual, por año de estudio, según ciclo lectivo | AS29: Tasas de promoción, no promoción y abandono anual, grado y año lectivo
A30: 3 | B30: Secciones, tipo de sección, sector, ámbito y dpto. | C30: 29 | I30: 29 | M30: Docentes, lugar de origen de la designación y dpto. | AQ30: 3 | AR30: Secciones por sector, ámbito y tipo, según departamento | AS30: Secciones, tipo de sección, sector, ámbito y dpto.
A31: 3 | B31: Docentes, sexo y dpto. | C31: 30 | I31: 30 | M31: Docente, sector, ámbito, lugar de origen de la designación y dpto. | AQ31: 3 | AR31: Personal docente en actividad, por sexo, según departamento | AS31: Docentes, sexo y dpto.
A32: 3 | B32: Docentes, sector, ámbito y dpto. | C32: 31 | I32: 31 | AQ32: 3 | AR32: Personal docente en actividad, por sector y ámbito, según departamento | AS32: Docentes, sector, ámbito y dpto.
A33: 3 | B33: Cargos docentes, tipo de cargo, sector, ámbito y dpto. | C33: 32 | AQ33: 3 | AR33: Cargos docentes cubiertos frente a alumnos, por tipo de cargo, sector y ámbito, según departamento | AS33: Cargos docentes, tipo de cargo, sector, ámbito y dpto.
A34: 4 | B34: =M2 -> Unidades educativas, alumnos, docentes, sector, dependencia y ámbito | C34: 33 | AQ34: 4 | AR34: Unidades educativas, alumnos y personal docente en actividad, por sector y dependencia, según ámbito | AS34: Unidades educativas, alumnos, docentes, sector, dependencia y ámbito
A35: 4 | B35: =M3 -> Unidades educativas, alumnos, docentes, sector y dpto. | C35: 34 | AQ35: 4 | AR35: Unidades educativas, alumnos y personal docente en actividad, por sector, según departamento | AS35: Unidades educativas, alumnos, docentes, sector y dpto.
A36: 4 | B36: Bases y anexos, sector, ámbito y dpto. | C36: 35 | AQ36: 4 | AR36: Bases y anexos, por sector y ámbito, según departamento | AS36: Bases y anexos, sector, ámbito y dpto.
A37: 4 | B37: Alumnos, sexo y dpto. | C37: 36 | AQ37: 4 | AR37: Alumnos por sexo, según departamento | AS37: Alumnos, sexo y dpto.
A38: 4 | B38: Sector estatal. Alumnos, ámbito, sexo y dpto. | C38: 37 | AQ38: 4 | AR38: Sector estatal. Alumnos por ámbito y sexo, según departamento | AS38: Sector estatal. Alumnos, ámbito, sexo y dpto.
A39: 4 | B39: Sector privado. Alumnos, ámbito, sexo y dpto. | C39: 38 | AQ39: 4 | AR39: Sector privado. Alumnos por ámbito y sexo, según departamento | AS39: Sector privado. Alumnos, ámbito, sexo y dpto.
A40: 4 | B40: Alumnos, año de estudio y dpto. | C40: 39 | AQ40: 4 | AR40: Alumnos por año de estudio, según departamento | AS40: Alumnos, año de estudio y dpto.
A41: 4 | B41: Ciclo básico. Alumnos, año de estudio, sexo y dpto. | C41: 40 | AQ41: 4 | AR41: Ciclo básico. Alumnos por año de estudio y sexo, según departamento | AS41: Ciclo básico. Alumnos, año de estudio, sexo y dpto.
A42: 4 | B42: Ciclo orientado. Alumnos, año de estudio, sexo y dpto. | C42: 41 | AQ42: 4 | AR42: Ciclo orientado. Alumnos por año de estudio y sexo, según departamento | AS42: Ciclo orientado. Alumnos, año de estudio, sexo y dpto.
A43: 4 | B43: Alumnos, repetidores, sobreedad y dpto. | C43: 42 | AQ43: 4 | AR43: Total de alumnos, total y porcentaje de alumnos repetidores y con sobreedad, según departamento | AS43: Alumnos, repetidores, sobreedad y dpto.
A44: 4 | B44: Alumnos, repetidores, sexo y año de estudio | C44: 43 | AQ44: 4 | AR44: Total de alumnos, total y porcentaje de alumnos repetidores, por sexo, según año de estudio | AS44: Alumnos, repetidores, sexo y año de estudio
A45: 4 | B45: Alumnos, sobreedad y año de estudio | C45: 44 | AQ45: 4 | AR45: Total de alumnos, total y porcentaje de alumnos con sobreedad, según año de estudio | AS45: Alumnos, sobreedad y año de estudio
A46: 4 | B46: Tasa de promoción, de no promoción y de abandono anual, año de estudio y ciclo lectivo | C46: 45 | AQ46: 4 | AR46: Tasa de promoción, de no promoción y de abandono anual, por año de estudio, según ciclo lectivo | AS46: Tasa de promoción, de no promoción y de abandono anual, año de estudio y ciclo lectivo
A47: 4 | B47: Egresados 2018, sector, sexo y dpto. | C47: 46 | AQ47: 4 | AR47: Alumnos egresados del ciclo lectivo 2018, por sector y sexo, según departamento | AS47: Egresados 2018, sector, sexo y dpto.
A48: 4 | B48: Secundaria orientada. Alumnos, sector, ámbito, ciclo y orientación | C48: 47 | AQ48: 4 | AR48: Secundaria orientada. Alumnos por sector y ámbito, según ciclo y orientación | AS48: Secundaria orientada. Alumnos, sector, ámbito, ciclo y orientación
A49: 4 | B49: Secundaria técnica. Alumnos, sector, ámbito, ciclo y título | C49: 48 | AQ49: 4 | AR49: Secundaria técnica. Alumnos por sector y ámbito, según ciclo y título | AS49: Secundaria técnica. Alumnos, sector, ámbito, ciclo y título
A50: 4 | B50: Secundaria orientada. Alumnos, sector, sexo, ciclo y orientación | C50: 49 | AQ50: 4 | AR50: Secundaria orientada. Alumnos por sector y sexo, según ciclo y orientación | AS50: Secundaria orientada. Alumnos, sector, sexo, ciclo y orientación
A51: 4 | B51: Secundaria técnica. Alumnos, sector, sexo, ciclo y título | C51: 50 | AQ51: 4 | AR51: Secundaria técnica. Alumnos por sector y sexo, según ciclo y título | AS51: Secundaria técnica. Alumnos, sector, sexo, ciclo y título
A52: 4 | B52: Secundaria orientada. alumnos, repetidores, sobreedad y año de estudio | C52: 51 | AQ52: 4 | AR52: Secundaria orientada. Total de alumnos, total y porcentaje de alumnos repetidores y con sobreedad, según año de estudio | AS52: Secundaria orientada. alumnos, repetidores, sobreedad y año de estudio
A53: 4 | B53: Secundaria técnica. Alumnos, repetidores, sobreedad y año de estudio | C53: 52 | AQ53: 4 | AR53: Secundaria técnica. Total de alumnos, total y porcentaje de alumnos repetidores y con sobreedad, según año de estudio | AS53: Secundaria técnica. Alumnos, repetidores, sobreedad y año de estudio
A54: 4 | B54: Secundaria orientada. Egresados 2018, sector, sexo y orientación | C54: 53 | AQ54: 4 | AR54: Secundaria orientada. Alumnos egresados del ciclo lectivo 2018 por sector y sexo, según orientación | AS54: Secundaria orientada. Egresados 2018, sector, sexo y orientación
A55: 4 | B55: Secundaria técnica. Egresados 2018, sector, sexo y título | C55: 54 | AQ55: 4 | AR55: Secundaria técnica. Alumnos egresados del ciclo lectivo 2018 por sector y sexo, según título | AS55: Secundaria técnica. Egresados 2018, sector, sexo y título
A56: 4 | B56: PIT. Alumnos, sector, sexo y ámbito | C56: 55 | AQ56: 4 | AR56: Alumnos en el Programa de Inclusión y Terminalidad Educativa (PIT) por sector y sexo, según ámbito | AS56: PIT. Alumnos, sector, sexo y ámbito
A57: 4 | B57: PIT. Alumnos, sexo y ciclo lectivo | C57: 56 | AQ57: 4 | AR57: Alumnos en el Programa de Inclusión y Terminalidad Educativa (PIT) por sexo, según ciclo lectivo | AS57: PIT. Alumnos, sexo y ciclo lectivo
A58: 4 | B58: PIT. Egresado 2018, sector, sexo y dpto. | C58: 57 | AQ58: 4 | AR58: Alumnos egresados del ciclo lectivo 2018 del Programa de Inclusión y Terminalidad Educativa (PIT) por sector y sexo, según departamento | AS58: PIT. Egresado 2018, sector, sexo y dpto.
A59: 4 | B59: Secciones, tipo de sección, sector, ámbito y dpto. | C59: 58 | AQ59: 4 | AR59: Secciones por sector, ámbito y tipo, según departamento | AS59: Secciones, tipo de sección, sector, ámbito y dpto.
A60: 4 | B60: Docentes, lugar de origen, forma de designación y sector | C60: 59 | AQ60: 4 | AR60: Personal docente en actividad, por lugar de origen y forma de designación, según sector | AS60: Docentes, lugar de origen, forma de designación y sector
A61: 4 | B61: Docente, sexo y dpto. | C61: 60 | AQ61: 4 | AR61: Personal docente en actividad, por sexo, según departamento | AS61: Docente, sexo y dpto.
A62: 4 | B62: Docentes, lugar de origen de la designación y dpto. | C62: 61 | AQ62: 4 | AR62: Personal docente en actividad, por lugar de origen de la designación, según departamento | AS62: Docentes, lugar de origen de la designación y dpto.
A63: 4 | B63: Docente, sector, ámbito, lugar de origen de la designación y dpto. | C63: 62 | AQ63: 4 | AR63: Personal docente en actividad, por sector, ámbito y lugar de origen de la designación, según departamento | AS63: Docente, sector, ámbito, lugar de origen de la designación y dpto.
A64: 5 | B64: =N2 -> Unidades educativas, alumnos, docentes, sector y dependencia | C64: 63 | AQ64: 5 | AR64: Unidades educativas, alumnos y personal docente en actividad, por sector y dependencia | AS64: Unidades educativas, alumnos, docentes, sector y dependencia
A65: 5 | B65: =N3 -> Bases, anexos, alumnos, docentes, sector y dpto. | C65: 64 | AQ65: 5 | AR65: Bases, anexos, alumnos y personal docente en actividad, por sector, según departamento | AS65: Bases, anexos, alumnos, docentes, sector y dpto.
A66: 5 | B66: Alumnos, sector, sexo y tipo de formación. | C66: 65 | AQ66: 5 | AR66: Alumnos por sector y sexo, según el tipo de formación | AS66: Alumnos, sector, sexo y tipo de formación.
A67: 5 | B67: Alumnos, sector, sexo y dpto. | C67: 66 | AQ67: 5 | AR67: Alumnos por sector y sexo, según departamento | AS67: Alumnos, sector, sexo y dpto.
A68: 5 | B68: Ingresantes a 1° año, sector, sexo y dpto | C68: 67 | AQ68: 5 | AR68: Alumnos ingresantes a 1° año, por sector y sexo, según departamento | AS68: Ingresantes a 1° año, sector, sexo y dpto
A69: 5 | B69: Alumnos, sector, tipo de carrera y tipo de rama | C69: 68 | AQ69: 5 | AR69: Alumnos por sector, según tipo de carrera y rama | AS69: Alumnos, sector, tipo de carrera y tipo de rama
A70: 5 | B70: Egresados ciclo 2018, sector, sexo y dpto. | C70: 69 | AQ70: 5 | AR70: Alumnos egresados del ciclo lectivo 2018, por sector y sexo, según departamento | AS70: Egresados ciclo 2018, sector, sexo y dpto.
A71: 5 | B71: Docentes, lugar de origen, forma de designación y sector | C71: 70 | AQ71: 5 | AR71: Personal docente en actividad, por lugar de origen y forma de designación, según sector | AS71: Docentes, lugar de origen, forma de designación y sector
A72: 5 | B72: Docentes, sexo y dpto. | C72: 71 | AQ72: 5 | AR72: Personal docente en actividad, por sexo, según departamento | AS72: Docentes, sexo y dpto.
A73: 5 | B73: Docentes, sector, ámbito, origen de la designación y dpto. | C73: 72 | AQ73: 5 | AR73: Personal docente en actividad, por sector, ámbito y origen de la designación, según departamento | AS73: Docentes, sector, ámbito, origen de la designación y dpto.
A74: 6 | B74: =O2 -> Establecimientos, alumnos, docentes, y sector | C74: 73 | AQ74: 6 | AR74: Establecimientos, alumnos y personal docente en actividad, por sector | AS74: Establecimientos, alumnos, docentes, y sector
A75: 6 | B75: Bases, anexos, alumnos, docentes, sector y dpto. | C75: 74 | AQ75: 6 | AR75: Bases, anexos, alumnos y personal docente en actividad, por sector, según departamento | AS75: Bases, anexos, alumnos, docentes, sector y dpto.
A76: 6 | B76: Alumnos, sector, sexo y dpto. | C76: 75 | AQ76: 6 | AR76: Alumnos por sector y sexo, según departamento | AS76: Alumnos, sector, sexo y dpto.
A77: 6 | B77: Alumnos, nivel de la educación formal y dpto. | C77: 76 | AQ77: 6 | AR77: Alumnos por nivel de la educación formal, según departamento | AS77: Alumnos, nivel de la educación formal y dpto.
A78: 6 | B78: Promovidos de 6° grado de primario, egresados de secundario y dpto. | C78: 76 | AQ78: 6 | AR78: Alumnos promovidos del nivel primario y egresados del nivel secundario, según departamento | AS78: Promovidos de 6° grado de primario, egresados de secundario y dpto.
A79: 6 | B79: Alumnos de educación no formal, sector y dpto. | C79: 77 | AQ79: 6 | AR79: Alumnos de educación no formal por sector, según departamento | AS79: Alumnos de educación no formal, sector y dpto.
A80: 6 | B80: =O8 -> Alumnos integrados, sector de la escuela de origen y ciclo lectivo (2014-2019) | C80: 78 | AQ80: 6 | AR80: Evolución del total de alumnos integrados, por sector de la escuela de origen. Años 2014-2019 | AS80: Alumnos integrados, sector de la escuela de origen y ciclo lectivo (2014-2019)
A81: 6 | B81: Cargos cubiertos de maestro integrador, sector y ciclo lectivo (2014 - 2019) | C81: 78 | AQ81: 6 | AR81: Evolución del total de cargos cubiertos de maestro integrador, por sector. Años 2014 - 2019 | AS81: Cargos cubiertos de maestro integrador, sector y ciclo lectivo (2014 - 2019)
A82: 6 | B82: Alumnos, tipo de integración y ciclo lectivo (2014 -2019) | C82: 78 | AQ82: 6 | AR82: Evolución del total de alumnos por tipo de integración. Años 2014 -2019 | AS82: Alumnos, tipo de integración y ciclo lectivo (2014 -2019)
A83: 6 | B83: Alumnos integrados, tipo de discapacidad y ciclo (2014 - 2019) | C83: 79 | AQ83: 6 | AR83: Evolución del total de alumnos integrados, por tipo de discapacidad. Años 2014 - 2019 | AS83: Alumnos integrados, tipo de discapacidad y ciclo (2014 - 2019)
A84: 6 | B84: Alumnos integrados, sector de la escuela de origen, tipo de discapacidad y ciclo (2014 - 2019) | C84: 80 | AQ84: 6 | AR84: Evolución del total de alumnos integrados por sector de la escuela de origen y tipo de discapacidad. Años 2014 - 2019 | AS84: Alumnos integrados, sector de la escuela de origen, tipo de discapacidad y ciclo (2014 - 2019)
A85: 6 | B85: Alumnos con discapacidad, tipo de seguimiento que reciben, modalidad y nivel | C85: 81 | AQ85: 6 | AR85: Alumnos con discapacidad, por tipo de seguimiento que reciben, según modalidad y nivel en el que cursan | AS85: Alumnos con discapacidad, tipo de seguimiento que reciben, modalidad y nivel
A86: 6 | B86: Docentes, sector y dpto. | C86: 82 | AQ86: 6 | AR86: Personal docente en actividad, por sector, según departamento | AS86: Docentes, sector y dpto.
A87: 6 | B87: Cargos docentes cubiertos frente a alumnos, sector y dpto. | C87: 83 | AQ87: 6 | AR87: Cargos docentes cubiertos frente a alumnos, por sector, según departamento | AS87: Cargos docentes cubiertos frente a alumnos, sector y dpto.
A88: 7 | B88: =P2 -> Establecimientos, alumnos, docentes, sector y dependencia | C88: 84 | AQ88: 7 | AR88: Establecimientos, alumnos y personal docente en actividad, por sector y dependencia | AS88: Establecimientos, alumnos, docentes, sector y dependencia
A89: 7 | B89: =P3 -> Alumnos, sexo, modalidad y nivel | C89: 85 | AQ89: 7 | AR89: Alumnos por sexo, según modalidad y nivel | AS89: Alumnos, sexo, modalidad y nivel
A90: 7 | B90: =P4 -> Alumnos, tipo de atención, modalidad y nivel | C90: 86 | AQ90: 7 | AR90: Alumnos por tipo de atención, según modalidad y nivel | AS90: Alumnos, tipo de atención, modalidad y nivel
A91: 8 | B91: =Q2 -> Primario y secundario. Unidades educativas, alumnos, docentes, sector y ámbito | C91: 87 | AQ91: 8 | AR91: Primario y secundario. Unidades educativas, alumnos y personal docente en actividad, por sector, según ámbito | AS91: Primario y secundario. Unidades educativas, alumnos, docentes, sector y ámbito
A92: 8 | B92: =Q3 -> Primario y secundario. Contexto de privación de la libertad. Alumnos, sexo y nivel | C92: 88 | AQ92: 8 | AR92: Primario y secundario. Alumnos matriculados en contexto de privación de la libertad, por sexo, según nivel al que asisten | AS92: Primario y secundario. Contexto de privación de la libertad. Alumnos, sexo y nivel
A93: 8 | B93: Primario. Unidades educativas, alumnos, docentes, sector, dependencia y ámbito | C93: 89 | AQ93: 8 | AR93: Primario. Unidades educativas, alumnos y personal docente en actividad, por sector y dependencia, según ámbito | AS93: Primario. Unidades educativas, alumnos, docentes, sector, dependencia y ámbito
A94: 8 | B94: Primario. Bases, anexos, alumnos, docentes, ámbito y dpto. | C94: 90 | AQ94: 8 | AR94: Primario. Bases, anexos, alumnos y personal docente en actividad, por ámbito, según departamento | AS94: Primario. Bases, anexos, alumnos, docentes, ámbito y dpto.
A95: 8 | B95: Primario. Alumnos, ámbito, sexo y dpto. | C95: 91 | AQ95: 8 | AR95: Primario. Alumnos por ámbito y sexo, según departamento | AS95: Primario. Alumnos, ámbito, sexo y dpto.
A96: 8 | B96: Primario. Secciones, tipo de sección, ámbito y dpto. | C96: 92 | AQ96: 8 | AR96: Primario. Secciones por ámbito y tipo, según departamento | AS96: Primario. Secciones, tipo de sección, ámbito y dpto.
A97: 8 | B97: Primario. Docentes, ámbito y dpto. | C97: 93 | AQ97: 8 | AR97: Primario. Personal docente en actividad, por ámbito, según departamento | AS97: Primario. Docentes, ámbito y dpto.
A98: 8 | B98: Secundario. Unidades educativas, alumnos, docentes, sector y ámbito | C98: 94 | AQ98: 8 | AR98: Secundario. Unidades educativas, alumnos y personal docente en actividad, por sector, según ámbito | AS98: Secundario. Unidades educativas, alumnos, docentes, sector y ámbito
A99: 8 | B99: Secundario. Unidades educativas, alumnos, docentes, sector y dpto. | C99: 95 | AQ99: 8 | AR99: Secundario. Unidades educativas, alumnos y personal docente en actividad, por sector, según departamento | AS99: Secundario. Unidades educativas, alumnos, docentes, sector y dpto.
A100: 8 | B100: Secundario. Bases, anexos, sector, ámbito y dpto. | C100: 96 | AQ100: 8 | AR100: Secundario. Bases y anexos, por sector y ámbito, según departamento | AS100: Secundario. Bases, anexos, sector, ámbito y dpto.
A101: 8 | B101: Secundario. Alumno, sector, ámbito, sexo y dpto. | C101: 97 | AQ101: 8 | AR101: Secundario. Alumnos por sector, ámbito y sexo, según departamento | AS101: Secundario. Alumno, sector, ámbito, sexo y dpto.
A102: 8 | B102: Secundario. Alumnos, ciclo, sector y ámbito | C102: 98 | AQ102: 8 | AR102: Secundario. Alumnos por ciclo y sector, según ámbito | AS102: Secundario. Alumnos, ciclo, sector y ámbito
A103: 8 | B103: Secundario. Alumnos, modalidad de dictado y ámbito | C103: 99 | AQ103: 8 | AR103: Secundario. Alumnos por sector, según modalidad de dictado y ámbito | AS103: Secundario. Alumnos, modalidad de dictado y ámbito
A104: 8 | B104: Secundario. Alumnos, sexo, modalidad de dictado y ámbito | C104: 99 | AQ104: 8 | AR104: Secundario. Alumnos por sexo, según modalidad de dictado y ámbito | AS104: Secundario. Alumnos, sexo, modalidad de dictado y ámbito
A105: 8 | B105: Secundario. Egresados 2018, sexo y modalidad de dictado | C105: 100 | AQ105: 8 | AR105: Secundario. Alumnos egresados del ciclo lectivo 2018, por sexo, según modalidad de dictado | AS105: Secundario. Egresados 2018, sexo y modalidad de dictado
A106: 8 | B106: Secundario. Modalidad presencial. Egresados 2018, sexo, plan y orientación | C106: 101 | AQ106: 8 | AR106: Secundario. Modalidad presencial Alumnos egresados del ciclo lectivo 2018, por sexo, según plan y orientación | AS106: Secundario. Modalidad presencial. Egresados 2018, sexo, plan y orientación
A107: 8 | B107: Secundario. Modalidad a distancia. Egresados 2018, sexo y orientación | C107: 101 | AQ107: 8 | AR107: Secundario. Modalidad a distancia Alumnos egresados del ciclo lectivo 2018, por sexo, según orientación | AS107: Secundario. Modalidad a distancia. Egresados 2018, sexo y orientación
A108: 8 | B108: Secundario. Docentes, sector, lugar de origen y forma de designación | C108: 102 | AQ108: 8 | AR108: Secundario. Personal docente en actividad, por sector, según lugar de origen y forma de designación | AS108: Secundario. Docentes, sector, lugar de origen y forma de designación
A109: 8 | B109: Secundario. Docentes, sexo y dpto. | C109: 103 | AQ109: 8 | AR109: Secundario. Personal docente en actividad, por sexo, según departamento | AS109: Secundario. Docentes, sexo y dpto.
A110: 8 | B110: Secundario. Docentes, sector, ámbito y dpto. | C110: 104 | AQ110: 8 | AR110: Secundario. Personal docente en actividad, por sector y ámbito, según departamento | AS110: Secundario. Docentes, sector, ámbito y dpto.
A111: 9 | B111: =R2 -> Unidades educativas, alumnos, docentes y sector | C111: 105 | AQ111: 9 | AR111: Unidades educativas, alumnos y personal docente en actividad, por sector | AS111: Unidades educativas, alumnos, docentes y sector
A112: 9 | B112: =R3 -> Unidades educativas, alumnos, docentes, sector y dpto. | C112: 106 | AQ112: 9 | AR112: Unidades educativas, alumnos y personal docente en actividad, por sector, según departamento | AS112: Unidades educativas, alumnos, docentes, sector y dpto.
A113: 9 | B113: =R4 -> Alumnos y tipo de por oferta | C113: 107 | AQ113: 9 | AR113: Alumnos tipo de por oferta a la que asisten | AS113: Alumnos y tipo de por oferta
A114: 9 | B114: =R5 -> Alumnos, sector, sexo y especialidad | C114: 108 | AQ114: 9 | AR114: Alumnos por sector y sexo, según especialidad | AS114: Alumnos, sector, sexo y especialidad
A115: 10 | B115: =S2 -> Unidades educativas, alumnos, docentes y organismo de dependencia | C115: 109 | AQ115: 10 | AR115: Unidades educativas, alumnos y personal docente en actividad, según organismo de dependencia | AS115: Unidades educativas, alumnos, docentes y organismo de dependencia
A116: 10 | B116: =S3 -> Bases, anexos, alumnos, docentes y dpto. | C116: 110 | AQ116: 10 | AR116: Bases, anexos, alumnos y personal docente, en actividad, según departamento | AS116: Bases, anexos, alumnos, docentes y dpto.
A117: 10 | B117: =S4 -> Alumnos, sexo y nivel | C117: 111 | AQ117: 10 | AR117: Alumnos por sexo, según niveles de estudio obligatorios | AS117: Alumnos, sexo y nivel
A118: 10 | B118: =S5 -> Docentes, origen y forma de designación | C118: 112 | AQ118: 10 | AR118: Personal docente en actividad, por origen y forma de designación | AS118: Docentes, origen y forma de designación
A119: 10 | B119: =S6 -> Docentes, por sexo y dpto. | C119: 113 | AQ119: 10 | AR119: Personal docente en actividad, por sexo, según departamento | AS119: Docentes, por sexo y dpto.

Sheet Datos generales (hidden)
B2: CUADRO 1.1. Unidades educativas o establecimientos, alumnos y personal docente en actividad, por sector, según modalidad y nivel | F2: 1
B3: Modalidad | C3: Nivel | D3: Unidades educativas/ establecimientos | G3: Alumnos | J3: Personal docente (*)
D4: Total | E4: Estatal | F4: Privado | G4: Total | H4: Estatal | I4: Privado | J4: Total | K4: Estatal | L4: Privado
B5: Común | C5: Inicial | D5: 1780 | E5: 1477 | F5: 303 | G5: 141894 | H5: 103775 | I5: 38119 | J5: 9592 | K5: 5941 | L5: 3651
C6: Primario | D6: 2083 | E6: 1777 | F6: 306 | G6: 357841 | H6: 260025 | I6: 97816 | J6: 31452 | K6: 23660 | L6: 7792
C7: Secundario | D7: 891 | E7: 485 | F7: 406 | G7: 332713 | H7: 200020 | I7: 132693 | J7: 59919 | K7: 40328 | L7: 19591
C8: Superior | D8: 213 | E8: 83 | F8: 130 | G8: 78984 | H8: 46154 | I8: 32830 | J8: 11657 | K8: 6462 | L8: 5195
B9: Especial | C9: Todos los niveles (**) | D9: 101 | E9: 59 | F9: 42 | G9: 6489 | H9: 4022 | I9: 2467 | J9: 2747 | K9: 1805 | L9: 942
B10: Hospitalaria y domiciliaria | C10: Todos los niveles (**) | D10: 3 | E10: 2 | F10: 1 | G10: 278 | H10: 253 | I10: 25 | J10: 81 | K10: 68 | L10: 13
B11: Jóvenes y Adultos | C11: Primario | D11: 219 | E11: 217 | F11: 2 | G11: 5363 | H11: 5335 | I11: 28 | J11: 541 | K11: 536 | L11: 5
C12: Secundario | D12: 137 | E12: 109 | F12: 28 | G12: 46222 | H12: 40580 | I12: 5642 | J12: 7567 | K12: 7054 | L12: 513
B13: Artística | D13: 34 | E13: 29 | F13: 5 | G13: 9788 | H13: 8992 | I13: 796 | J13: 650 | K13: 587 | L13: 63
B14: Formación Profesional (***) | D14: 91 | E14: 91 | G14: 17922 | H14: 17922 | J14: 612 | K14: 612
B15: (*) El personal docente en actividad hace referencia a todas las personas con designación docente que se desempeñan en las unidades educativas del nivel y/o modalidad correspondiente. Por esta razón, se cuentan tantas veces como ofertas en las que trabajan.
B16: (**) Aquí se consignan establecimientos y no unidades educativas (puesto que ellas se vinculan a las formas de implementación del nivel). Esto es así porque en la Provincia, las modalidades especial y hospitalaria y domiciliaria se organizan en establecimientos (ver glosario) con una máxima autoridad pedagógica y con una única partida presupuestaria, en los que se imparte distintos niveles de enseñanza. De allí que en un mismo establecimiento coexisten varias unidades educativas y en la medida que los docentes son parte de la misma planta funcional, no es posible discriminar quién trabaja para cada una de ellas (salvo raras excepciones)
B17: (***) En esta tabla se presenta información referida únicamente a los cursos o trayectos que no forman parte de los diseños curriculares de los niveles obligatorios del sistema y que son brindados por el Ministerio de Educación provincial y la Secretaría de Equidad y Promoción del Empleo. Por ello, no figuran los cursos dictados por otros ministerios (provinciales o nacionales), por la municipalidad de Córdoba u otros municipios ni por las universidades. De igual manera, sólo están contabilizadas las unidades educativas que estaban dictando cursos al momento del relevamiento 2019.

Sheet C 2.1 (hidden)
B2: CUADRO 2.1 Unidades educativas, alumnos y personal docente en actividad, por sector y dependencia, según ámbito
C3: Ámbito | D3: Total | E3: Estatal | H3: Privado
E4: Provincial (**) | F4: Municipal (***) | G4: Nacional (***) | H4: Provincial
B5: Unidades educativas | C5: Total | D5: 1780 | E5: 1400 | F5: 75 | G5: 2 | H5: 303
C6: Urbano | D6: 1047 | E6: 670 | F6: 75 | G6: 2 | H6: 300
C7: Rural | D7: 733 | E7: 730 | H7: 3
B8: Alumnos | C8: Total | D8: 141894 | E8: 96740 | F8: 6636 | G8: 399 | H8: 38119
C9: Urbano | D9: 129748 | E9: 84659 | F9: 6636 | G9: 399 | H9: 38054
C10: Rural | D10: 12146 | E10: 12081 | H10: 65
B11: Personal docente (*) | C11: Total | D11: 9592 | E11: 5229 | F11: 663 | G11: 49 | H11: 3651
C12: Urbano | D12: 8819 | E12: 4468 | F12: 663 | G12: 49 | H12: 3639
C13: Rural | D13: 773 | E13: 761 | H13: 12
B14: (*) El personal docente en actividad hace referencia a todas las personas con designación docente que se desempeñan en las unidades educativas del nivel. Por esta razón, se cuentan tantas veces como ofertas en las que trabajan.
B15: (**) Se incluyen 459 escuelas en las que funcionan 459 secciones multinivel, donde se atienden simultáneamente a niños de nivel primario e inicial. Se trata de escuelas primarias provinciales (estatales y privadas) de zonas rurales y urbanas. Los docentes que atienden las secciones multinivel no se incluyen en las cifras de este cuadro.
B16: (***) Los jardines municipales dependen de la Municipalidad de Córdoba; los nacionales, de la Universidad Nacional de Río Cuarto y del Ministerio de Defensa.

Sheet C 2.2 (hidden)
B2: CUADRO 2.2 Unidades educativas, alumnos y personal docente en actividad, por sector, según departamento
B3: Departamento | C3: Total | F3: Estatal | I3: Privado
C4: Unidades educativas | D4: Alumnos | E4: Personal docente (*) | F4: Unidades educativas | G4: Alumnos | H4: Personal docente | I4: Unidades educativas | J4: Alumnos | K4: Personal docente
B5: Total Córdoba | C5: 1780 | D5: 141894 | E5: 9592 | F5: 1477 | G5: 103775 | H5: 5941 | I5: 303 | J5: 38119 | K5: 3651
B6: Calamuchita | C6: 50 | D6: 2573 | E6: 173 | F6: 44 | G6: 2104 | H6: 123 | I6: 6 | J6: 469 | K6: 50
B7: Capital | C7: 431 | D7: 55499 | E7: 4256 | F7: 301 | G7: 36506 | H7: 2329 | I7: 130 | J7: 18993 | K7: 1927
B8: Colón | C8: 86 | D8: 9992 | E8: 638 | F8: 65 | G8: 7149 | H8: 350 | I8: 21 | J8: 2843 | K8: 288
B9: Cruz del Eje | C9: 66 | D9: 2508 | E9: 139 | F9: 62 | G9: 1993 | H9: 105 | I9: 4 | J9: 515 | K9: 34
B10: General Roca | C10: 30 | D10: 1426 | E10: 94 | F10: 29 | G10: 1334 | H10: 88 | I10: 1 | J10: 92 | K10: 6
B11: General San Martín | C11: 75 | D11: 6519 | E11: 383 | F11: 67 | G11: 4237 | H11: 200 | I11: 8 | J11: 2282 | K11: 183
B12: Ischilín | C12: 35 | D12: 1576 | E12: 90 | F12: 34 | G12: 1516 | H12: 80 | I12: 1 | J12: 60 | K12: 10
B13: Juárez Celman | C13: 45 | D13: 2774 | E13: 149 | F13: 42 | G13: 2429 | H13: 119 | I13: 3 | J13: 345 | K13: 30
B14: Marcos Juárez | C14: 70 | D14: 4310 | E14: 277 | F14: 58 | G14: 3299 | H14: 197 | I14: 12 | J14: 1011 | K14: 80
B15: Minas | C15: 14 | D15: 161 | E15: 13 | F15: 14 | G15: 161 | H15: 13
B16: Pocho | C16: 22 | D16: 130 | E16: 11 | F16: 22 | G16: 130 | H16: 11
B17: Pte. Roque Sáenz Peña | C17: 29 | D17: 1661 | E17: 96 | F17: 27 | G17: 1515 | H17: 81 | I17: 2 | J17: 146 | K17: 15
B18: Punilla | C18: 69 | D18: 7099 | E18: 442 | F18: 47 | G18: 5034 | H18: 243 | I18: 22 | J18: 2065 | K18: 199
B19: Río Cuarto | C19: 133 | D19: 9930 | E19: 647 | F19: 109 | G19: 7186 | H19: 390 | I19: 24 | J19: 2744 | K19: 257
B20: Río Primero | C20: 56 | D20: 2304 | E20: 142 | F20: 52 | G20: 1984 | H20: 106 | I20: 4 | J20: 320 | K20: 36
B21: Río Seco | C21: 30 | D21: 653 | E21: 36 | F21: 30 | G21: 653 | H21: 36
B22: Río Segundo | C22: 61 | D22: 4312 | E22: 250 | F22: 52 | G22: 3489 | H22: 183 | I22: 9 | J22: 823 | K22: 67
B23: San Alberto | C23: 37 | D23: 1449 | E23: 87 | F23: 35 | G23: 1298 | H23: 70 | I23: 2 | J23: 151 | K23: 17
B24: San Javier | C24: 40 | D24: 2498 | E24: 154 | F24: 36 | G24: 2101 | H24: 113 | I24: 4 | J24: 397 | K24: 41
B25: San Justo | C25: 138 | D25: 8848 | E25: 554 | F25: 119 | G25: 7129 | H25: 396 | I25: 19 | J25: 1719 | K25: 158
B26: Santa María | C26: 60 | D26: 4611 | E26: 294 | F26: 49 | G26: 3611 | H26: 201 | I26: 11 | J26: 1000 | K26: 93
B27: Sobremonte | C27: 10 | D27: 150 | E27: 9 | F27: 10 | G27: 150 | H27: 9
B28: Tercero Arriba | C28: 61 | D28: 4831 | E28: 291 | F28: 51 | G28: 3798 | H28: 208 | I28: 10 | J28: 1033 | K28: 83
B29: Totoral | C29: 25 | D29: 832 | E29: 53 | F29: 25 | G29: 832 | H29: 53
B30: Tulumba | C30: 26 | D30: 537 | E30: 37 | F30: 26 | G30: 537 | H30: 37
B31: Unión | C31: 81 | D31: 4711 | E31: 277 | F31: 71 | G31: 3600 | H31: 200 | I31: 10 | J31: 1111 | K31: 77
B32: (*) El personal docente en actividad hace referencia a todas las personas con designación docente que se ndesempeñan en las unidades educativas del nivel. Por esta razón, se cuentan tantas veces como ofertas en las que trabajan.
B33: En el departamento Capital están incluidas, además de las provinciales, las unidades educativas municipales y nacionales, al igual que sus alumnos y personal docente. En el departamento Río Cuarto están incluidas, además de las provinciales, las unidades educativas nacionales con sus alumnos y personal.

Sheet C 2.3 (hidden)
B2: CUADRO 2.3 Bases y anexos, por sector y ámbito, según departamento
B3: Departamento | C3: Total | E3: Estatal | I3: Privado
E4: Urbano | G4: Rural | I4: Urbano | J4: Rural
C5: Bases | D5: Anexos | E5: Bases | F5: Anexos | G5: Bases | H5: Anexos | I5: Bases | J5: Bases
B6: Total Córdoba | C6: 1780 | D6: 142 | E6: 747 | F6: 11 | G6: 730 | H6: 131 | I6: 300 | J6: 3
B7: Calamuchita | C7: 50 | D7: 6 | E7: 12 | G7: 32 | H7: 6 | I7: 6
B8: Capital | C8: 431 | D8: 2 | E8: 301 | F8: 2 | I8: 130
B9: Colón | C9: 86 | D9: 9 | E9: 44 | F9: 1 | G9: 21 | H9: 8 | I9: 21
B10: Cruz del Eje | C10: 66 | D10: 7 | E10: 15 | G10: 47 | H10: 7 | I10: 4
B11: General Roca | C11: 30 | D11: 1 | E11: 10 | G11: 19 | H11: 1 | I11: 1
B12: General San Martín | C12: 75 | D12: 3 | E12: 27 | F12: 1 | G12: 40 | H12: 2 | I12: 8
B13: Ischilín | C13: 35 | D13: 3 | E13: 12 | G13: 22 | H13: 3 | I13: 1
B14: Juárez Celman | C14: 45 | D14: 2 | E14: 17 | G14: 25 | H14: 2 | I14: 3
B15: Marcos Juárez | C15: 70 | D15: 2 | E15: 32 | G15: 26 | H15: 2 | I15: 12
B16: Minas | C16: 14 | D16: 5 | G16: 14 | H16: 5
B17: Pocho | C17: 22 | D17: 4 | G17: 22 | H17: 4
B18: Pte. Roque Sáenz Peña | C18: 29 | D18: 1 | E18: 10 | G18: 17 | H18: 1 | I18: 2
B19: Punilla | C19: 69 | D19: 9 | E19: 35 | F19: 4 | G19: 12 | H19: 5 | I19: 20 | J19: 2
B20: Río Cuarto | C20: 133 | D20: 9 | E20: 53 | G20: 56 | H20: 9 | I20: 24
B21: Río Primero | C21: 56 | D21: 10 | E21: 11 | G21: 41 | H21: 10 | I21: 4
B22: Río Seco | C22: 30 | D22: 3 | E22: 3 | G22: 27 | H22: 3
B23: Río Segundo | C23: 61 | E23: 21 | G23: 31 | I23: 9
B24: San Alberto | C24: 37 | D24: 12 | E24: 6 | G24: 29 | H24: 12 | I24: 2
B25: San Javier | C25: 40 | D25: 10 | E25: 12 | F25: 2 | G25: 24 | H25: 8 | I25: 4
B26: San Justo | C26: 138 | D26: 21 | E26: 42 | G26: 77 | H26: 21 | I26: 18 | J26: 1
B27: Santa María | C27: 60 | D27: 5 | E27: 21 | F27: 1 | G27: 28 | H27: 4 | I27: 11
B28: Sobremonte | C28: 10 | E28: 1 | G28: 9
B29: Tercero Arriba | C29: 61 | D29: 5 | E29: 32 | G29: 19 | H29: 5 | I29: 10
B30: Totoral | C30: 25 | D30: 3 | E30: 2 | G30: 23 | H30: 3
B31: Tulumba | C31: 26 | D31: 5 | E31: 2 | G31: 24 | H31: 5
B32: Unión | C32: 81 | D32: 5 | E32: 26 | G32: 45 | H32: 5 | I32: 10
B33: En el departamento Capital están incluidas, además de las provinciales, las bases municipales y nacionales (y sus anexos, en el caso que correspondan). En el departamento Río Cuarto están incluidas, además de las provinciales, las bases nacionales.

Sheet C 2.4 (hidden)
B2: CUADRO 2.4 Alumnos por sexo, según departamento
B3: Departamento | C3: Total | D3: Mujeres | E3: Varones
B4: Total Córdoba | C4: 141894 | D4: 70063 | E4: 71831
B5: Calamuchita | C5: 2573 | D5: 1231 | E5: 1342
B6: Capital | C6: 55499 | D6: 27464 | E6: 28035
B7: Colón | C7: 9992 | D7: 4941 | E7: 5051
B8: Cruz del Eje | C8: 2508 | D8: 1187 | E8: 1321
B9: General Roca | C9: 1426 | D9: 705 | E9: 721
B10: General San Martín | C10: 6519 | D10: 3201 | E10: 3318
B11: Ischilín | C11: 1576 | D11: 741 | E11: 835
B12: Juárez Celman | C12: 2774 | D12: 1413 | E12: 1361
B13: Marcos Juárez | C13: 4310 | D13: 2095 | E13: 2215
B14: Minas | C14: 161 | D14: 80 | E14: 81
B15: Pocho | C15: 130 | D15: 63 | E15: 67
B16: Pte. Roque Sáenz Peña | C16: 1661 | D16: 783 | E16: 878
B17: Punilla | C17: 7099 | D17: 3466 | E17: 3633
B18: Río Cuarto | C18: 9930 | D18: 5009 | E18: 4921
B19: Río Primero | C19: 2304 | D19: 1114 | E19: 1190
B20: Río Seco | C20: 653 | D20: 344 | E20: 309
B21: Río Segundo | C21: 4312 | D21: 2161 | E21: 2151
B22: San Alberto | C22: 1449 | D22: 689 | E22: 760
B23: San Javier | C23: 2498 | D23: 1213 | E23: 1285
B24: San Justo | C24: 8848 | D24: 4396 | E24: 4452
B25: Santa María | C25: 4611 | D25: 2271 | E25: 2340
B26: Sobremonte | C26: 150 | D26: 69 | E26: 81
B27: Tercero Arriba | C27: 4831 | D27: 2443 | E27: 2388
B28: Totoral | C28: 832 | D28: 397 | E28: 435
B29: Tulumba | C29: 537 | D29: 250 | E29: 287
B30: Unión | C30: 4711 | D30: 2337 | E30: 2374
B31: En el departamento Capital están incluidas, además de las provinciales, las unidades educativas municipales y nacionales, al igual que sus alumnos y personal docente. En el departamento Río Cuarto están incluidas, además de las unidades educativas provinciales, las nacionales con sus alumnos y personal.

Sheet C 2.4 A. (hidden)
B2: CUADRO 2.4.A Sector estatal. Alumnos por ámbito y sexo, según departamento
B3: Departamento | C3: Urbano | F3: Rural
C4: Total | D4: Mujeres | E4: Varones | F4: Total | G4: Mujeres | H4: Varones
B5: Total Córdoba | C5: 91694 | D5: 45036 | E5: 46658 | F5: 12081 | G5: 5905 | H5: 6176
B6: Calamuchita | C6: 1537 | D6: 747 | E6: 790 | F6: 567 | G6: 273 | H6: 294
B7: Capital | C7: 36506 | D7: 17984 | E7: 18522
B8: Colón | C8: 6120 | D8: 3013 | E8: 3107 | F8: 1029 | G8: 518 | H8: 511
B9: Cruz del Eje | C9: 1453 | D9: 690 | E9: 763 | F9: 540 | G9: 252 | H9: 288
B10: General Roca | C10: 1058 | D10: 510 | E10: 548 | F10: 276 | G10: 145 | H10: 131
B11: General San Martín | C11: 3636 | D11: 1775 | E11: 1861 | F11: 601 | G11: 290 | H11: 311
B12: Ischilín | C12: 1329 | D12: 612 | E12: 717 | F12: 187 | G12: 99 | H12: 88
B13: Juárez Celman | C13: 1967 | D13: 1010 | E13: 957 | F13: 462 | G13: 234 | H13: 228
B14: Marcos Juárez | C14: 3138 | D14: 1500 | E14: 1638 | F14: 161 | G14: 78 | H14: 83
B15: Minas | F15: 161 | G15: 80 | H15: 81
B16: Pocho | F16: 130 | G16: 63 | H16: 67
B17: Pte. Roque Sáenz Peña | C17: 1292 | D17: 619 | E17: 673 | F17: 223 | G17: 102 | H17: 121
B18: Punilla | C18: 4492 | D18: 2167 | E18: 2325 | F18: 542 | G18: 254 | H18: 288
B19: Río Cuarto | C19: 6599 | D19: 3301 | E19: 3298 | F19: 587 | G19: 285 | H19: 302
B20: Río Primero | C20: 1549 | D20: 756 | E20: 793 | F20: 435 | G20: 200 | H20: 235
B21: Río Seco | C21: 398 | D21: 209 | E21: 189 | F21: 255 | G21: 135 | H21: 120
B22: Río Segundo | C22: 2990 | D22: 1501 | E22: 1489 | F22: 499 | G22: 238 | H22: 261
B23: San Alberto | C23: 795 | D23: 381 | E23: 414 | F23: 503 | G23: 238 | H23: 265
B24: San Javier | C24: 1388 | D24: 639 | E24: 749 | F24: 713 | G24: 363 | H24: 350
B25: San Justo | C25: 5703 | D25: 2832 | E25: 2871 | F25: 1426 | G25: 685 | H25: 741
B26: Santa María | C26: 2838 | D26: 1376 | E26: 1462 | F26: 773 | G26: 380 | H26: 393
B27: Sobremonte | C27: 123 | D27: 60 | E27: 63 | F27: 27 | G27: 9 | H27: 18
B28: Tercero Arriba | C28: 3403 | D28: 1707 | E28: 1696 | F28: 395 | G28: 204 | H28: 191
B29: Totoral | C29: 401 | D29: 190 | E29: 211 | F29: 431 | G29: 207 | H29: 224
B30: Tulumba | C30: 216 | D30: 99 | E30: 117 | F30: 321 | G30: 151 | H30: 170
B31: Unión | C31: 2763 | D31: 1358 | E31: 1405 | F31: 837 | G31: 422 | H31: 415
B32: En el departamento Capital están incluidas, además de las provinciales, las unidades educativas municipales y nacionales, al igual que sus alumnos y personal docente. En el departamento Río Cuarto están incluidas, además de las unidades educativas provinciales, las nacionales con sus alumnos y personal.

Sheet C 2.4 B. (hidden)
B2: CUADRO 2.4.B Sector privado. Alumnos por ámbito y sexo, según departamento
B3: Departamento | C3: Urbano | F3: Rural
C4: Total | D4: Mujeres | E4: Varones | F4: Total | G4: Mujeres | H4: Varones
B5: Total Córdoba | C5: 38054 | D5: 19091 | E5: 18963 | F5: 65 | G5: 31 | H5: 34
B6: Calamuchita | C6: 469 | D6: 211 | E6: 258
B7: Capital | C7: 18993 | D7: 9480 | E7: 9513
B8: Colón | C8: 2843 | D8: 1410 | E8: 1433
B9: Cruz del Eje | C9: 515 | D9: 245 | E9: 270
B10: General Roca | C10: 92 | D10: 50 | E10: 42
B11: General San Martín | C11: 2282 | D11: 1136 | E11: 1146
B12: Ischilín | C12: 60 | D12: 30 | E12: 30
B13: Juárez Celman | C13: 345 | D13: 169 | E13: 176
B14: Marcos Juárez | C14: 1011 | D14: 517 | E14: 494
B15: Minas
B16: Pocho
B17: Pte. Roque Sáenz Peña | C17: 146 | D17: 62 | E17: 84
B18: Punilla | C18: 2045 | D18: 1034 | E18: 1011 | F18: 20 | G18: 11 | H18: 9
B19: Río Cuarto | C19: 2744 | D19: 1423 | E19: 1321
B20: Río Primero | C20: 320 | D20: 158 | E20: 162
B21: Río Seco
B22: Río Segundo | C22: 823 | D22: 422 | E22: 401
B23: San Alberto | C23: 151 | D23: 70 | E23: 81
B24: San Javier | C24: 397 | D24: 211 | E24: 186
B25: San Justo | C25: 1674 | D25: 859 | E25: 815 | F25: 45 | G25: 20 | H25: 25
B26: Santa María | C26: 1000 | D26: 515 | E26: 485
B27: Sobremonte
B28: Tercero Arriba | C28: 1033 | D28: 532 | E28: 501
B29: Totoral
B30: Tulumba
B31: Unión | C31: 1111 | D31: 557 | E31: 554

Sheet C 2.5 (hidden)
B2: CUADRO 2. 5 Alumnos de jardín maternal y de jardín de infantes, por salas de 3, 4 y 5, según año de relevamiento y sector
B3: Año de relevamiento | C3: Sector | D3: Total | E3: Jardín maternal (*) | F3: Jardín de infantes
F4: Sala de 3 | G4: Sala de 4 | H4: Sala de 5
B5: 2013 | C5: Total Córdoba | D5: 126103 | E5: 653 | F5: 13133 | G5: 53450 | H5: 58867
C6: Estatal | D6: 91994 | E6: 364 | F6: 9009 | G6: 39302 | H6: 43319
C7: Privado | D7: 34109 | E7: 289 | F7: 4124 | G7: 14148 | H7: 15548
B8: 2014 | C8: Total Córdoba | D8: 129364 | E8: 709 | F8: 14218 | G8: 53949 | H8: 60488
C9: Estatal | D9: 93719 | E9: 404 | F9: 9793 | G9: 39289 | H9: 44233
C10: Privado | D10: 35645 | E10: 305 | F10: 4425 | G10: 14660 | H10: 16255
B11: 2015 | C11: Total Córdoba | D11: 128944 | E11: 749 | F11: 15034 | G11: 53887 | H11: 59274
C12: Estatal | D12: 93272 | E12: 428 | F12: 10569 | G12: 39114 | H12: 43161
C13: Privado | D13: 35672 | E13: 321 | F13: 4465 | G13: 14773 | H13: 16113
B14: 2016 | C14: Total Córdoba | D14: 130096 | E14: 817 | F14: 16741 | G14: 53834 | H14: 58704
C15: Estatal | D15: 94072 | E15: 476 | F15: 11953 | G15: 39185 | H15: 42458
C16: Privado | D16: 36024 | E16: 341 | F16: 4788 | G16: 14649 | H16: 16246
B17: 2017 | C17: Total Córdoba | D17: 132799 | E17: 808 | F17: 19600 | G17: 55114 | H17: 57277
C18: Estatal | D18: 96276 | E18: 439 | F18: 14102 | G18: 40220 | H18: 41515
C19: Privado | D19: 36523 | E19: 369 | F19: 5498 | G19: 14894 | H19: 15762
B20: 2018 | C20: Total Córdoba | D20: 137396 | E20: 843 | F20: 21831 | G20: 56148 | H20: 58574
C21: Estatal | D21: 99882 | E21: 457 | F21: 15846 | G21: 41170 | H21: 42409
C22: Privado | D22: 37514 | E22: 386 | F22: 5985 | G22: 14978 | H22: 16165
B23: 2019 | C23: Total Córdoba | D23: 141894 | E23: 880 | F23: 23401 | G23: 58180 | H23: 59433
C24: Estatal | D24: 103775 | E24: 488 | F24: 17036 | G24: 42952 | H24: 43299
C25: Privado | D25: 38119 | E25: 392 | F25: 6365 | G25: 15228 | H25: 16134
B26: (*) A partir del año 2008 comienza a incluirse dentro del nivel inicial la oferta correspondiente a jardines maternales.

Sheet CI cuadro 2.6. estatal (hidden)
C2: CUADRO 2.6 A Sector estatal. Alumnos en secciones independientes de jardín maternal y de jardín de infantes, por salas de 3, 4 y 5 y alumnos en secciones múltiples, según departamento
C3: Departamento | D3: En secciones independientes | H3: En secciones múltiples (**)
D4: Jardín maternal (*) | E4: Jardín de infantes
E5: Sala de 3 | F5: Sala de 4 | G5: Sala de 5
C6: Total Córdoba | D6: 488 | E6: 15863 | F6: 38736 | G6: 39603 | H6: 9085
C7: Calamuchita | E7: 277 | F7: 703 | G7: 791 | H7: 333
C8: Capital | D8: 488 | E8: 5908 | F8: 14829 | G8: 14999 | H8: 282
C9: Colón | E9: 444 | F9: 3041 | G9: 3201 | H9: 463
C10: Cruz del Eje | E10: 154 | F10: 615 | G10: 720 | H10: 504
C11: General Roca | E11: 288 | F11: 396 | G11: 447 | H11: 203
C12: General San Martín | E12: 627 | F12: 1421 | G12: 1505 | H12: 684
C13: Ischilín | E13: 317 | F13: 464 | G13: 516 | H13: 219
C14: Juárez Celman | E14: 526 | F14: 825 | G14: 861 | H14: 217
C15: Marcos Juárez | E15: 835 | F15: 1031 | G15: 1106 | H15: 327
C16: Minas | E16: 16 | F16: 18 | G16: 22 | H16: 105
C17: Pocho | G17: 13 | H17: 117
C18: Pte. Roque Sáenz Peña | E18: 389 | F18: 482 | G18: 474 | H18: 170
C19: Punilla | E19: 450 | F19: 2003 | G19: 2158 | H19: 423
C20: Río Cuarto | E20: 863 | F20: 2793 | G20: 2825 | H20: 705
C21: Río Primero | E21: 394 | F21: 604 | G21: 629 | H21: 357
C22: Río Seco | E22: 105 | F22: 143 | G22: 150 | H22: 255
C23: Río Segundo | E23: 480 | F23: 1355 | G23: 1384 | H23: 270
C24: San Alberto | E24: 124 | F24: 412 | G24: 403 | H24: 359
C25: San Javier | E25: 285 | F25: 740 | G25: 679 | H25: 397
C26: San Justo | E26: 1046 | F26: 2634 | G26: 2592 | H26: 857
C27: Santa María | E27: 409 | F27: 1423 | G27: 1393 | H27: 386
C28: Sobremonte | E28: 20 | F28: 42 | G28: 61 | H28: 27
C29: Tercero Arriba | E29: 778 | F29: 1217 | G29: 1193 | H29: 610
C30: Totoral | E30: 183 | F30: 275 | G30: 241 | H30: 133
C31: Tulumba | E31: 117 | F31: 146 | G31: 148 | H31: 126
C32: Unión | E32: 828 | F32: 1124 | G32: 1092 | H32: 556
C34: (*) A partir del año 2008 comienza a incluirse dentro del nivel inicial la oferta correspondiente a jardines maternales.
C35: (**) En la categoría “múltiple” está incluida la matrícula que asiste tanto a secciones multisala (donde niños de varias salas cursan con el mismo maestro) como a las multinivel.
C36: En el departamento Capital están incluidas además de las provinciales, las unidades educativas municipales y nacionales, al igual que sus alumnos y personal docente. En el departamento Río Cuarto están incluidas, además de las provinciales, las unidades educativas nacionales con sus alumnos y personal.

Sheet CI cuadro 2.6. privado (hidden)
B2: CUADRO 2.6 B Sector privado. Alumnos en secciones independientes de jardín maternal y de jardín de infantes, por salas de 3, 4 y 5 y alumnos en secciones múltiples, según departamento
B3: Departamento | C3: En secciones independientes | G3: En secciones múltiples (**)
C4: Jardín maternal (*) | D4: Jardín de infantes
D5: Sala de 3 | E5: Sala de 4 | F5: Sala de 5
B6: Total Córdoba | C6: 392 | D6: 6359 | E6: 15224 | F6: 16119 | G6: 25
B7: Calamuchita | D7: 97 | E7: 170 | F7: 202
B8: Capital | C8: 203 | D8: 2802 | E8: 7645 | F8: 8343
B9: Colón | C9: 33 | D9: 310 | E9: 1207 | F9: 1288 | G9: 5
B10: Cruz del Eje | D10: 95 | E10: 209 | F10: 211
B11: General Roca | D11: 27 | E11: 34 | F11: 31
B12: General San Martín | C12: 156 | D12: 607 | E12: 760 | F12: 759
B13: Ischilín | E13: 30 | F13: 30
B14: Juárez Celman | D14: 44 | E14: 160 | F14: 141
B15: Marcos Juárez | D15: 318 | E15: 355 | F15: 338
B16: Minas
B17: Pocho
B18: Pte. Roque Sáenz Peña | D18: 37 | E18: 57 | F18: 52
B19: Punilla | D19: 221 | E19: 895 | F19: 929 | G19: 20
B20: Río Cuarto | D20: 408 | E20: 1158 | F20: 1178
B21: Río Primero | D21: 73 | E21: 103 | F21: 144
B22: Río Seco
B23: Río Segundo | D23: 187 | E23: 323 | F23: 313
B24: San Alberto | E24: 70 | F24: 81
B25: San Javier | D25: 29 | E25: 174 | F25: 194
B26: San Justo | D26: 438 | E26: 640 | F26: 641
B27: Santa María | D27: 123 | E27: 430 | F27: 447
B28: Sobremonte
B29: Tercero Arriba | D29: 281 | E29: 377 | F29: 375
B30: Totoral
B31: Tulumba
B32: Unión | D32: 262 | E32: 427 | F32: 422
B34: (*) A partir del año 2008 comienza a incluirse dentro del nivel inicial la oferta correspondiente a jardines maternales.
B35: (**) En la categoría “múltiple” está incluida la matrícula que asiste tanto a secciones multisala (donde niños de varias salas cursan con el mismo maestro) como a las multinivel.

Sheet CI cuadro 2.7 (hidden)
B2: CUADRO 2.7 Secciones independientes de jardín maternal y de jardín de infantes, por salas de 3, 4 y 5 y secciones múltiples, según sector
B3: Sector | C3: Total | D3: Secciones independientes | H3: Secciones múltiples (**)
D4: Jardín maternal (*) | E4: Jardín de infantes
E5: Sala de 3 | F5: Sala de 4 | G5: Sala de 5
B6: Total Córdoba | C6: 6690 | D6: 66 | E6: 1157 | F6: 2275 | G6: 2253 | H6: 939
B7: Estatal | C7: 5113 | D7: 41 | E7: 831 | F7: 1665 | G7: 1640 | H7: 936
B8: Privado | C8: 1577 | D8: 25 | E8: 326 | F8: 610 | G8: 613 | H8: 3
B10: (*) A partir del año 2008 comienza a incluirse dentro del nivel inicial la oferta correspondiente a jardines maternales.
B11: (**) En la categoría “múltiple” está incluida la matrícula que asiste tanto a secciones multisala (donde niños de varias salas cursan con el mismo maestro) como a las multinivel.

Sheet C 2.8 (hidden)
B2: CUADRO 2.8 Secciones independientes de jardín maternal y jardín de infantes, por salas de 3, 4 y 5 y secciones múltiples por sector, según departamento
B3: Departamento | C3: Estatal | H3: Privado
C4: Secciones independientes | G4: Secciones múltiples (**) | H4: Secciones independientes | L4: Secciones múltiples (**)
C5: Jardín maternal (*) | D5: Jardín de infantes | H5: Jardín maternal (*) | I5: Jardín de infantes
D6: Sala de 3 | E6: Sala de 4 | F6: Sala de 5 | I6: Sala de 3 | J6: Sala de 4 | K6: Sala de 5
B7: Total Córdoba | C7: 41 | D7: 831 | E7: 1665 | F7: 1640 | G7: 936 | H7: 25 | I7: 326 | J7: 610 | K7: 613 | L7: 3
B8: Calamuchita | D8: 14 | E8: 33 | F8: 34 | G8: 39 | I8: 5 | J8: 7 | K8: 7
B9: Capital | C9: 41 | D9: 317 | E9: 665 | F9: 620 | G9: 14 | H9: 16 | I9: 158 | J9: 308 | K9: 315
B10: Colón | D10: 25 | E10: 123 | F10: 128 | G10: 27 | H10: 2 | I10: 17 | J10: 49 | K10: 48 | L10: 1
B11: Cruz del Eje | D11: 8 | E11: 27 | F11: 31 | G11: 57 | I11: 6 | J11: 7 | K11: 7
B12: General Roca | D12: 16 | E12: 21 | F12: 21 | G12: 21 | I12: 1 | J12: 1 | K12: 1
B13: General San Martín | D13: 28 | E13: 54 | F13: 54 | G13: 55 | H13: 7 | I13: 23 | J13: 27 | K13: 27
B14: Ischilín | D14: 16 | E14: 18 | F14: 24 | G14: 28 | J14: 1 | K14: 1
B15: Juárez Celman | D15: 26 | E15: 35 | F15: 35 | G15: 26 | I15: 3 | J15: 7 | K15: 7
B16: Marcos Juárez | D16: 42 | E16: 47 | F16: 49 | G16: 36 | I16: 13 | J16: 15 | K16: 14
B17: Minas | D17: 1 | E17: 1 | F17: 2 | G17: 18
B18: Pocho | F18: 1 | G18: 26
B19: Pte. Roque Sáenz Peña | D19: 19 | E19: 20 | F19: 20 | G19: 19 | I19: 2 | J19: 2 | K19: 2
B20: Punilla | D20: 25 | E20: 83 | F20: 82 | G20: 23 | I20: 13 | J20: 34 | K20: 34 | L20: 2
B21: Río Cuarto | D21: 47 | E21: 116 | F21: 115 | G21: 77 | I21: 19 | J21: 45 | K21: 45
B22: Río Primero | D22: 19 | E22: 24 | F22: 25 | G22: 52 | I22: 4 | J22: 6 | K22: 6
B23: Río Seco | D23: 5 | E23: 6 | F23: 8 | G23: 32
B24: Río Segundo | D24: 24 | E24: 54 | F24: 56 | G24: 31 | I24: 8 | J24: 12 | K24: 11
B25: San Alberto | D25: 7 | E25: 17 | F25: 16 | G25: 41 | J25: 3 | K25: 3
B26: San Javier | D26: 16 | E26: 29 | F26: 30 | G26: 31 | I26: 2 | J26: 9 | K26: 9
B27: San Justo | D27: 56 | E27: 110 | F27: 111 | G27: 97 | I27: 21 | J27: 27 | K27: 27
B28: Santa María | D28: 22 | E28: 60 | F28: 58 | G28: 33 | I28: 6 | J28: 18 | K28: 18
B29: Sobremonte | D29: 1 | E29: 2 | F29: 2 | G29: 9
B30: Tercero Arriba | D30: 39 | E30: 51 | F30: 51 | G30: 40 | I30: 13 | J30: 17 | K30: 15
B31: Totoral | D31: 11 | E31: 13 | F31: 12 | G31: 23
B32: Tulumba | D32: 7 | E32: 9 | F32: 7 | G32: 26
B33: Unión | D33: 40 | E33: 47 | F33: 48 | G33: 55 | I33: 12 | J33: 15 | K33: 16
B35: (*) A partir del año 2008 comienza a incluirse dentro del nivel inicial la oferta correspondiente a jardines maternales.
B36: (**) En la categoría “múltiple” está incluida la matrícula que asiste tanto a secciones multisala (donde niños de varias salas cursan con el mismo maestro) como a las multinivel.
B37: En el departamento Capital están incluidas además de las provinciales, las unidades educativas municipales y nacionales, al igual que sus alumnos y personal docente. En el departamento Río Cuarto están incluidas, además de las provinciales, las unidades educativas nacionales con sus alumnos y personal.

Sheet C2.9 (hidden)
B2: CUADRO 2.9 Secciones por sector, ámbito y tipo , según departamento
B3: Departamento | C3: Total general | D3: Estatal | K3: Privado
D4: Total | E4: Urbano | H4: Rural | K4: Total | L4: Urbano | N4: Rural
E5: Indep. | F5: Múltiple | G5: Multiniv. | H5: Indep. | I5: Múltiple | J5: Multiniv. | L5: Indep. | M5: Múltiple | N5: Indep. | O5: Múltiple | P5: Multiniv.
B6: Total Córdoba | C6: 6690 | D6: 5113 | E6: 3838 | F6: 149 | G6: 3 | H6: 339 | I6: 329 | J6: 455 | K6: 1577 | L6: 1571 | M6: 1 | O6: 3 | P6: 1
B7: Calamuchita | C7: 139 | D7: 120 | E7: 65 | F7: 4 | G7: 1 | H7: 16 | I7: 14 | J7: 20 | K7: 19 | L7: 19
B8: Capital | C8: 2454 | D8: 1657 | E8: 1643 | F8: 14 | K8: 797 | L8: 797
B9: Colón | C9: 420 | D9: 303 | E9: 241 | F9: 6 | H9: 35 | I9: 16 | J9: 5 | K9: 117 | L9: 116 | M9: 1
B10: Cruz del Eje | C10: 143 | D10: 123 | E10: 55 | F10: 7 | H10: 11 | I10: 16 | J10: 34 | K10: 20 | L10: 20
B11: General Roca | C11: 82 | D11: 79 | E11: 45 | F11: 4 | H11: 13 | I11: 6 | J11: 11 | K11: 3 | L11: 3
B12: General San Martín | C12: 275 | D12: 191 | E12: 123 | F12: 14 | H12: 13 | I12: 21 | J12: 20 | K12: 84 | L12: 84
B13: Ischilín | C13: 88 | D13: 86 | E13: 57 | F13: 2 | H13: 1 | I13: 10 | J13: 16 | K13: 2 | L13: 2
B14: Juárez Celman | C14: 139 | D14: 122 | E14: 76 | F14: 4 | H14: 20 | I14: 5 | J14: 17 | K14: 17 | L14: 17
B15: Marcos Juárez | C15: 216 | D15: 174 | E15: 133 | F15: 10 | H15: 5 | I15: 7 | J15: 19 | K15: 42 | L15: 42
B16: Minas | C16: 22 | D16: 22 | H16: 4 | I16: 11 | J16: 7
B17: Pocho | C17: 27 | D17: 27 | H17: 1 | I17: 7 | J17: 19
B18: Pte. Roque Sáenz Peña | C18: 84 | D18: 78 | E18: 53 | F18: 2 | H18: 6 | I18: 7 | J18: 10 | K18: 6 | L18: 6
B19: Punilla | C19: 296 | D19: 213 | E19: 173 | F19: 11 | H19: 17 | I19: 8 | J19: 4 | K19: 83 | L19: 81 | P19: 1
B20: Río Cuarto | C20: 464 | D20: 355 | E20: 266 | F20: 13 | G20: 2 | H20: 12 | I20: 24 | J20: 38 | K20: 109 | L20: 109
B21: Río Primero | C21: 136 | D21: 120 | E21: 61 | F21: 2 | H21: 7 | I21: 19 | J21: 31 | K21: 16 | L21: 16
B22: Río Seco | C22: 51 | D22: 51 | E22: 19 | I22: 12 | J22: 20
B23: Río Segundo | C23: 196 | D23: 165 | E23: 117 | F23: 4 | H23: 17 | I23: 9 | J23: 18 | K23: 31 | L23: 31
B24: San Alberto | C24: 87 | D24: 81 | E24: 31 | F24: 1 | H24: 9 | I24: 19 | J24: 21 | K24: 6 | L24: 6
B25: San Javier | C25: 126 | D25: 106 | E25: 59 | F25: 3 | H25: 16 | I25: 16 | J25: 12 | K25: 20 | L25: 20
B26: San Justo | C26: 449 | D26: 374 | E26: 232 | F26: 12 | H26: 45 | I26: 41 | J26: 44 | K26: 75 | L26: 72 | O26: 3
B27: Santa María | C27: 215 | D27: 173 | E27: 115 | F27: 7 | H27: 25 | I27: 14 | J27: 12 | K27: 42 | L27: 42
B28: Sobremonte | C28: 14 | D28: 14 | E28: 5 | I28: 3 | J28: 6
B29: Tercero Arriba | C29: 226 | D29: 181 | E29: 129 | F29: 18 | H29: 12 | I29: 12 | J29: 10 | K29: 45 | L29: 45
B30: Totoral | C30: 59 | D30: 59 | E30: 18 | H30: 18 | I30: 8 | J30: 15
B31: Tulumba | C31: 49 | D31: 49 | E31: 12 | H31: 11 | I31: 9 | J31: 17
B32: Unión | C32: 233 | D32: 190 | E32: 110 | F32: 11 | H32: 25 | I32: 15 | J32: 29 | K32: 43 | L32: 43
B33: Indep.: independiente, Multiniv.: multinivel
B34: En el departamento Capital están incluidas, además de las provinciales, las unidades educativas municipales y nacionales, al igual que sus secciones, alumnos y personal docente. En el departamento Río Cuarto está incluida, además de las unidades educativas provinciales, la nacional con sus secciones, alumnos y personal.

Sheet C.2.10 (hidden)
B2: CUADRO 2.10 Personal docente en actividad, por sexo, según departamento
B3: Departamento | C3: Total | D3: Mujeres | E3: Varones
B4: Total Córdoba | C4: 9592 | D4: 9071 | E4: 521
B5: Calamuchita | C5: 8 | D5: 163 | E5: 10
B6: Capital | C6: 4256 | D6: 4010 | E6: 246
B7: Colón | C7: 638 | D7: 613 | E7: 25
B8: Cruz del Eje | C8: 139 | D8: 127 | E8: 12
B9: General Roca | C9: 94 | D9: 83 | E9: 11
B10: General San Martín | C10: 383 | D10: 365 | E10: 18
B11: Ischilín | C11: 90 | D11: 81 | E11: 9
B12: Juárez Celman | C12: 149 | D12: 143 | E12: 6
B13: Marcos Juárez | C13: 277 | D13: 258 | E13: 19
B14: Minas | C14: 13 | D14: 13
B15: Pocho | C15: 11 | D15: 7 | E15: 4
B16: Pte. Roque Sáenz Peña | C16: 96 | D16: 96
B17: Punilla | C17: 442 | D17: 417 | E17: 25
B18: Río Cuarto | C18: 647 | D18: 610 | E18: 37
B19: Río Primero | C19: 142 | D19: 135 | E19: 7
B20: Río Seco | C20: 36 | D20: 36
B21: Río Segundo | C21: 250 | D21: 230 | E21: 20
B22: San Alberto | C22: 87 | D22: 83 | E22: 4
B23: San Javier | C23: 154 | D23: 146 | E23: 8
B24: San Justo | C24: 554 | D24: 533 | E24: 21
B25: Santa María | C25: 294 | D25: 283 | E25: 11
B26: Sobremonte | C26: 9 | D26: 8 | E26: 1
B27: Tercero Arriba | C27: 291 | D27: 285 | E27: 6
B28: Totoral | C28: 53 | D28: 53
B29: Tulumba | C29: 37 | D29: 34 | E29: 3
B30: Unión | C30: 277 | D30: 259 | E30: 18
B31: (*) El personal docente en actividad hace referencia a todas las personas con designación docente que se desempeñan en las unidades educativas del nivel. Por esta razón, se cuentan tantas veces como ofertas en las que trabajan.
B32: En el departamento Capital están incluidas además de las provinciales, las unidades educativas municipales y nacionales, al igual que sus alumnos y personal docente. En el departamento Río Cuarto están incluidas, además de las provinciales, las unidades educativas nacionales con sus alumnos y personal.

Sheet C.2.11 (hidden)
B2: CUADRO 2.11 Personal docente en actividad, por sector y ámbito, según departamento
B3: Departamento | C3: Total (*) | D3: Estatal | F3: Privado
D4: Urbano | E4: Rural | F4: Urbano | G4: Rural
B5: Total Córdoba | C5: 9592 | D5: 5180 | E5: 761 | F5: 3639 | G5: 12
B6: Calamuchita | C6: 173 | D6: 84 | E6: 39 | F6: 50
B7: Capital | C7: 4256 | D7: 2329 | F7: 1927
B8: Colón | C8: 638 | D8: 292 | E8: 58 | F8: 288
B9: Cruz del Eje | C9: 139 | D9: 74 | E9: 31 | F9: 34
B10: General Roca | C10: 94 | D10: 66 | E10: 22 | F10: 6
B11: General San Martín | C11: 383 | D11: 171 | E11: 29 | F11: 183
B12: Ischilín | C12: 90 | D12: 67 | E12: 13 | F12: 10
B13: Juárez Celman | C13: 149 | D13: 90 | E13: 29 | F13: 30
B14: Marcos Juárez | C14: 277 | D14: 187 | E14: 10 | F14: 80
B15: Minas | C15: 13 | E15: 13
B16: Pocho | C16: 11 | E16: 11
B17: Pte. Roque Sáenz Peña | C17: 96 | D17: 66 | E17: 15 | F17: 15
B18: Punilla | C18: 442 | D18: 217 | E18: 26 | F18: 192 | G18: 7
B19: Río Cuarto | C19: 647 | D19: 352 | E19: 38 | F19: 257
B20: Río Primero | C20: 142 | D20: 75 | E20: 31 | F20: 36
B21: Río Seco | C21: 36 | D21: 21 | E21: 15
B22: Río Segundo | C22: 250 | D22: 148 | E22: 35 | F22: 67
B23: San Alberto | C23: 87 | D23: 39 | E23: 31 | F23: 17
B24: San Javier | C24: 154 | D24: 74 | E24: 39 | F24: 41
B25: San Justo | C25: 554 | D25: 301 | E25: 95 | F25: 153 | G25: 5
B26: Santa María | C26: 294 | D26: 153 | E26: 48 | F26: 93
B27: Sobremonte | C27: 9 | D27: 5 | E27: 4
B28: Tercero Arriba | C28: 291 | D28: 179 | E28: 29 | F28: 83
B29: Totoral | C29: 53 | D29: 26 | E29: 27
B30: Tulumba | C30: 37 | D30: 13 | E30: 24
B31: Unión | C31: 277 | D31: 151 | E31: 49 | F31: 77
B32: (*) El personal docente en actividad hace referencia a todas las personas con designación docente que se desempeñan en las unidades educativas del nivel. Por esta razón, se cuentan tantas veces como ofertas en las que trabajan.
B33: En el departamento Capital están incluidas además de las provinciales, las unidades educativas municipales y nacionales, al igual que sus alumnos y personal docente. En el departamento Río Cuarto están incluidas, además de las provinciales, las unidades educativas nacionales con sus alumnos y personal.

Sheet C2,12 (hidden)
B2: CUADRO 2.12 Cargos docentes cubiertos frente a alumnos, por tipo de cargo, sector y ámbito, según departamento
B3: Departamento | C3: Total | D3: Director personal único (*) | G3: Director con clase anexa (*) | J3: Maestro de sala (**)
D4: Estatal | F4: Privado | G4: Estatal | I4: Privado | J4: Estatal | L4: Privado
D5: Urbano | E5: Rural | F5: Urbano | G5: Urbano | H5: Rural | I5: Urbano | J5: Urbano | K5: Rural | L5: Urbano | M5: Rural
B6: Total Córdoba | C6: 6431 | D6: 25 | E6: 111 | G6: 69 | H6: 70 | I6: 2 | J6: 3988 | K6: 428 | L6: 1734 | M6: 4
B7: Calamuchita | C7: 121 | D7: 2 | E7: 8 | G7: 1 | H7: 1 | J7: 67 | K7: 20 | L7: 22
B8: Capital | C8: 2614 | D8: 1 | G8: 18 | I8: 1 | J8: 1702 | L8: 892
B9: Colón | C9: 438 | D9: 3 | E9: 9 | G9: 6 | H9: 2 | J9: 243 | K9: 43 | L9: 132
B10: Cruz del Eje | C10: 111 | D10: 2 | E10: 7 | G10: 3 | H10: 5 | J10: 59 | K10: 14 | L10: 21
B11: General Roca | C11: 65 | D11: 1 | E11: 3 | G11: 1 | H11: 1 | J11: 47 | K11: 9 | L11: 3
B12: General San Martín | C12: 257 | D12: 2 | E12: 2 | G12: 2 | H12: 6 | J12: 132 | K12: 20 | L12: 93
B13: Ischilín | C13: 72 | E13: 4 | G13: 3 | H13: 2 | J13: 56 | K13: 5 | L13: 2
B14: Juárez Celman | C14: 118 | E14: 1 | G14: 3 | H14: 4 | J14: 77 | K14: 16 | L14: 17
B15: Marcos Juárez | C15: 194 | E15: 3 | G15: 8 | H15: 1 | I15: 1 | J15: 135 | K15: 4 | L15: 42
B16: Minas | C16: 11 | E16: 2 | H16: 1 | K16: 8
B17: Pocho | C17: 7 | E17: 1 | K17: 6
B18: Pte. Roque Sáenz Peña | C18: 73 | E18: 4 | H18: 2 | J18: 55 | K18: 6 | L18: 6
B19: Punilla | C19: 308 | D19: 3 | E19: 4 | G19: 3 | H19: 1 | J19: 176 | K19: 21 | L19: 99 | M19: 1
B20: Río Cuarto | C20: 431 | D20: 1 | E20: 10 | G20: 4 | H20: 3 | J20: 278 | K20: 19 | L20: 116
B21: Río Primero | C21: 104 | E21: 7 | G21: 1 | H21: 1 | J21: 62 | K21: 17 | L21: 16
B22: Río Seco | C22: 31 | E22: 4 | H22: 2 | J22: 19 | K22: 6
B23: Río Segundo | C23: 181 | E23: 5 | H23: 5 | J23: 127 | K23: 14 | L23: 30
B24: San Alberto | C24: 67 | E24: 2 | G24: 1 | H24: 6 | J24: 31 | K24: 21 | L24: 6
B25: San Javier | C25: 117 | D25: 2 | E25: 7 | G25: 1 | H25: 2 | J25: 62 | K25: 21 | L25: 22
B26: San Justo | C26: 404 | D26: 1 | E26: 9 | G26: 2 | H26: 7 | J26: 248 | K26: 57 | L26: 77 | M26: 3
B27: Santa María | C27: 203 | D27: 1 | E27: 6 | G27: 3 | H27: 6 | J27: 118 | K27: 25 | L27: 44
B28: Sobremonte | C28: 7 | E28: 2 | J28: 5
B29: Tercero Arriba | C29: 220 | D29: 2 | E29: 2 | G29: 5 | H29: 2 | J29: 143 | K29: 16 | L29: 50
B30: Totoral | C30: 41 | E30: 3 | H30: 1 | J30: 18 | K30: 19
B31: Tulumba | C31: 31 | E31: 1 | H31: 4 | J31: 12 | K31: 14
B32: Unión | C32: 205 | D32: 4 | E32: 5 | G32: 4 | H32: 5 | J32: 116 | K32: 27 | L32: 44
B33: (*) En 2018, el sector privado no cuenta con designaciones de director personal único y con clase anexa, en el ámbito rural.
B34: (**) Se incluye dentro de este universo a los maestros auxiliares de sala.
B35: En el departamento Capital están incluidas además de las provinciales, las unidades educativas municipales y nacionales, al igual que sus alumnos y personal docente. En el departamento Río Cuarto están incluidas, además de las provinciales, las unidades educativas nacionales con sus alumnos y personal.

Sheet CP C3.1 (hidden)
B2: Cuadro 3.1 Unidades educativas, alumnos y personal docente en actividad, por sector y dependencia, según ámbito
C3: Ámbito | D3: Total | E3: Estatal | H3: Privado
E4: Provincial (**) | F4: Municipal (***) | G4: Nacional (***) | H4: Provincial
B5: Unidades educativas | C5: Total | D5: 2083 | E5: 1737 | F5: 37 | G5: 3 | H5: 306
C6: Urbano | D6: 1036 | E6: 694 | F6: 37 | G6: 3 | H6: 302
C7: Rural | D7: 1047 | E7: 1043 | H7: 4
B8: Alumnos | C8: Total | D8: 357841 | E8: 249779 | F8: 9293 | G8: 953 | H8: 97816
C9: Urbano | D9: 326965 | E9: 219094 | F9: 9293 | G9: 953 | H9: 97625
C10: Rural | D10: 30876 | E10: 30685 | H10: 191
B11: Personal docente (*) | C11: Total | D11: 31452 | E11: 22593 | F11: 915 | G11: 152 | H11: 7792
C12: Urbano | D12: 26576 | E12: 17741 | F12: 915 | G12: 152 | H12: 7768
C13: Rural | D13: 4876 | E13: 4852 | H13: 24
B14: (*) El personal docente en actividad hace referencia a todas las personas con designación docente que se desempeñan en las unidades educativas del nivel. Por esta razón, se cuentan tantas veces como ofertas en las que trabajan.
B15: (**) Se incluyen 459 escuelas en las que funcionan 459 secciones multinivel, donde se atienden simultáneamente a niños de nivel primario e inicial. Se trata de escuelas primarias provinciales (estatales y privadas) de zonas rurales y urbanas. Los docentes que atienden las secciones multinivel no se incluyen en las cifras de este cuadro.
B16: (***) Las unidades educativas municipales dependen de la Municipalidad de Córdoba; las nacionales, de la Universidad Nacional de Córdoba y del Ministerio de Defensa. Dos unidades educativas de dependencia nacional poseen alumnos matriculados en el 1° año del nivel secundario que son equivalentes a los alumnos del 6° grado del nivel primario; motivo por el cual se los cuenta dentro de este nivel de enseñanza.

Sheet CP C3.2 (hidden)
B2: CUADRO 3.2 Unidades educativas, alumnos y personal docente en actividad, por sector, según departamento
B3: Departamento | C3: Total | F3: Estatal | I3: Privado
C4: Unidades educativas | D4: Alumnos | E4: Personal docente (*) | F4: Unidades educativas | G4: Alumnos | H4: Personal docente | I4: Unidades educativas | J4: Alumnos | K4: Personal docente
B5: Total Córdoba | C5: 2083 | D5: 357841 | E5: 31452 | F5: 1777 | G5: 260025 | H5: 23660 | I5: 306 | J5: 97816 | K5: 7792
B6: Calamuchita | C6: 70 | D6: 6781 | E6: 627 | F6: 62 | G6: 5480 | H6: 491 | I6: 8 | J6: 1301 | K6: 136
B7: Capital | C7: 404 | D7: 142105 | E7: 11740 | F7: 274 | G7: 91559 | H7: 7702 | I7: 130 | J7: 50546 | K7: 4038
B8: Colón | C8: 97 | D8: 28324 | E8: 2098 | F8: 75 | G8: 20428 | H8: 1463 | I8: 22 | J8: 7896 | K8: 635
B9: Cruz del Eje | C9: 84 | D9: 6383 | E9: 691 | F9: 80 | G9: 5145 | H9: 593 | I9: 4 | J9: 1238 | K9: 98
B10: General Roca | C10: 36 | D10: 3243 | E10: 328 | F10: 35 | G10: 3068 | H10: 316 | I10: 1 | J10: 175 | K10: 12
B11: General San Martín | C11: 80 | D11: 14428 | E11: 1252 | F11: 72 | G11: 9864 | H11: 912 | I11: 8 | J11: 4564 | K11: 340
B12: Ischilín | C12: 44 | D12: 3703 | E12: 416 | F12: 43 | G12: 3490 | H12: 397 | I12: 1 | J12: 213 | K12: 19
B13: Juárez Celman | C13: 56 | D13: 6338 | E13: 584 | F13: 53 | G13: 5479 | H13: 512 | I13: 3 | J13: 859 | K13: 72
B14: Marcos Juárez | C14: 81 | D14: 9324 | E14: 955 | F14: 69 | G14: 7371 | H14: 792 | I14: 12 | J14: 1953 | K14: 163
B15: Minas | C15: 27 | D15: 410 | E15: 111 | F15: 27 | G15: 410 | H15: 111
B16: Pocho | C16: 29 | D16: 351 | E16: 110 | F16: 29 | G16: 351 | H16: 110
B17: Pte. Roque Sáenz Peña | C17: 34 | D17: 3474 | E17: 363 | F17: 32 | G17: 3154 | H17: 330 | I17: 2 | J17: 320 | K17: 33
B18: Punilla | C18: 79 | D18: 19885 | E18: 1456 | F18: 57 | G18: 13968 | H18: 1011 | I18: 22 | J18: 5917 | K18: 445
B19: Río Cuarto | C19: 153 | D19: 25989 | E19: 2117 | F19: 128 | G19: 18777 | H19: 1545 | I19: 25 | J19: 7212 | K19: 572
B20: Río Primero | C20: 76 | D20: 5451 | E20: 579 | F20: 72 | G20: 4526 | H20: 500 | I20: 4 | J20: 925 | K20: 79
B21: Río Seco | C21: 37 | D21: 1638 | E21: 203 | F21: 37 | G21: 1638 | H21: 203
B22: Río Segundo | C22: 76 | D22: 10667 | E22: 961 | F22: 67 | G22: 8915 | H22: 829 | I22: 9 | J22: 1752 | K22: 132
B23: San Alberto | C23: 56 | D23: 3900 | E23: 427 | F23: 54 | G23: 3325 | H23: 387 | I23: 2 | J23: 575 | K23: 40
B24: San Javier | C24: 52 | D24: 6561 | E24: 688 | F24: 48 | G24: 5482 | H24: 599 | I24: 4 | J24: 1079 | K24: 89
B25: San Justo | C25: 170 | D25: 21505 | E25: 2041 | F25: 153 | G25: 17870 | H25: 1733 | I25: 17 | J25: 3635 | K25: 308
B26: Santa María | C26: 68 | D26: 12322 | E26: 1025 | F26: 57 | G26: 9367 | H26: 804 | I26: 11 | J26: 2955 | K26: 221
B27: Sobremonte | C27: 16 | D27: 442 | E27: 64 | F27: 16 | G27: 442 | H27: 64
B28: Tercero Arriba | C28: 73 | D28: 10950 | E28: 1087 | F28: 63 | G28: 8645 | H28: 901 | I28: 10 | J28: 2305 | K28: 186
B29: Totoral | C29: 38 | D29: 2019 | E29: 247 | F29: 38 | G29: 2019 | H29: 247
B30: Tulumba | C30: 47 | D30: 1242 | E30: 222 | F30: 47 | G30: 1242 | H30: 222
B31: Unión | C31: 100 | D31: 10406 | E31: 1060 | F31: 89 | G31: 8010 | H31: 886 | I31: 11 | J31: 2396 | K31: 174
B32: (*) El personal docente en actividad hace referencia a todas las personas con designación docente que se desempeñan en las unidades educativas del nivel. Por esta razón, se cuentan tantas veces como ofertas en las que trabajan.
B33: En el departamento Capital están incluidas además de las provinciales, las unidades educativas municipales y nacionales, al igual que sus alumnos y personal docente.

Sheet CP C3.3 (hidden)
B2: CUADRO 3.3 Bases y anexos, por sector y ámbito, según departamento
B3: Departamento | C3: Total | E3: Estatal | I3: Privado (*)
E4: Urbano | G4: Rural | I4: Urbano | K4: Rural
C5: Bases | D5: Anexos | E5: Bases | F5: Anexos | G5: Bases | H5: Anexos | I5: Bases | J5: Anexos | K5: Bases
B6: Total Córdoba | C6: 2083 | D6: 5 | E6: 734 | F6: 2 | G6: 1043 | H6: 3 | I6: 302 | K6: 4
B7: Calamuchita | C7: 70 | E7: 12 | G7: 50 | I7: 7 | K7: 1
B8: Capital | C8: 404 | D8: 1 | E8: 274 | F8: 1 | I8: 130
B9: Colón | C9: 97 | D9: 1 | E9: 45 | G9: 30 | H9: 1 | I9: 22
B10: Cruz del Eje | C10: 84 | E10: 15 | G10: 65 | I10: 4
B11: General Roca | C11: 36 | E11: 10 | G11: 25 | I11: 1
B12: General San Martín | C12: 80 | E12: 29 | G12: 43 | I12: 8
B13: Ischilín | C13: 44 | E13: 13 | G13: 30 | I13: 1
B14: Juárez Celman | C14: 56 | E14: 18 | G14: 35 | I14: 3
B15: Marcos Juárez | C15: 81 | E15: 33 | G15: 36 | I15: 12
B16: Minas | C16: 27 | G16: 27
B17: Pocho | C17: 29 | G17: 29
B18: Pte. Roque Sáenz Peña | C18: 34 | E18: 10 | G18: 22 | I18: 2
B19: Punilla | C19: 79 | D19: 2 | E19: 37 | F19: 1 | G19: 20 | H19: 1 | I19: 20 | K19: 2
B20: Río Cuarto | C20: 153 | E20: 52 | G20: 76 | I20: 25
B21: Río Primero | C21: 76 | E21: 11 | G21: 61 | I21: 4
B22: Río Seco | C22: 37 | E22: 3 | G22: 34
B23: Río Segundo | C23: 76 | E23: 22 | G23: 45 | I23: 9
B24: San Alberto | C24: 56 | E24: 6 | G24: 48 | I24: 2
B25: San Javier | C25: 52 | E25: 16 | G25: 32 | I25: 4
B26: San Justo | C26: 170 | D26: 1 | E26: 43 | G26: 110 | H26: 1 | I26: 16 | K26: 1
B27: Santa María | C27: 68 | E27: 22 | G27: 35 | I27: 11
B28: Sobremonte | C28: 16 | E28: 1 | G28: 15
B29: Tercero Arriba | C29: 73 | E29: 32 | G29: 31 | I29: 10
B30: Totoral | C30: 38 | E30: 2 | G30: 36
B31: Tulumba | C31: 47 | E31: 2 | G31: 45
B32: Unión | C32: 100 | E32: 26 | G32: 63 | I32: 11
B33: (*) El sector privado no cuenta con anexos en el nivel primario en el ámbito rural.
B34: En el departamento Capital están incluidas además de las provinciales, las bases municipales y nacionales (y sus anexos, en el caso que correspondan).

Sheet CP C3.4 (hidden)
B2: CUADRO 3.4 Alumnos por sexo, según departamento
B3: Departamento | C3: Total | D3: Mujeres | E3: Varones
B4: Total Córdoba | C4: 357841 | D4: 175241 | E4: 182600
B5: Calamuchita | C5: 6781 | D5: 3316 | E5: 3465
B6: Capital | C6: 142105 | D6: 69792 | E6: 72313
B7: Colón | C7: 28324 | D7: 13853 | E7: 14471
B8: Cruz del Eje | C8: 6383 | D8: 3183 | E8: 3200
B9: General Roca | C9: 3243 | D9: 1631 | E9: 1612
B10: General San Martín | C10: 14428 | D10: 7106 | E10: 7322
B11: Ischilín | C11: 3703 | D11: 1807 | E11: 1896
B12: Juárez Celman | C12: 6338 | D12: 3010 | E12: 3328
B13: Marcos Juárez | C13: 9324 | D13: 4512 | E13: 4812
B14: Minas | C14: 410 | D14: 175 | E14: 235
B15: Pocho | C15: 351 | D15: 164 | E15: 187
B16: Pte. Roque Sáenz Peña | C16: 3474 | D16: 1729 | E16: 1745
B17: Punilla | C17: 19885 | D17: 9757 | E17: 10128
B18: Río Cuarto | C18: 25989 | D18: 12679 | E18: 13310
B19: Río Primero | C19: 5451 | D19: 2673 | E19: 2778
B20: Río Seco | C20: 1638 | D20: 759 | E20: 879
B21: Río Segundo | C21: 10667 | D21: 5258 | E21: 5409
B22: San Alberto | C22: 3900 | D22: 1858 | E22: 2042
B23: San Javier | C23: 6561 | D23: 3300 | E23: 3261
B24: San Justo | C24: 21505 | D24: 10426 | E24: 11079
B25: Santa María | C25: 12322 | D25: 5971 | E25: 6351
B26: Sobremonte | C26: 442 | D26: 222 | E26: 220
B27: Tercero Arriba | C27: 10950 | D27: 5331 | E27: 5619
B28: Totoral | C28: 2019 | D28: 1021 | E28: 998
B29: Tulumba | C29: 1242 | D29: 598 | E29: 644
B30: Unión | C30: 10406 | D30: 5110 | E30: 5296
B31: En el departamento Capital están incluidas además de las provinciales, las unidades educativas municipales y nacionales, al igual que sus alumnos y personal docente.

Sheet CP C3.4. A estatal (hidden)
B2: CUADRO 3.4 A Sector estatal. Alumnos por ámbito y sexo, según departamento
B3: Departamento | C3: Urbano | F3: Rural
C4: Total | D4: Mujeres | E4: Varones | F4: Total | G4: Mujeres | H4: Varones
B5: Total Córdoba | C5: 229340 | D5: 111020 | E5: 118320 | F5: 30685 | G5: 14833 | H5: 15852
B6: Calamuchita | C6: 3756 | D6: 1841 | E6: 1915 | F6: 1724 | G6: 821 | H6: 903
B7: Capital | C7: 91559 | D7: 44081 | E7: 47478
B8: Colón | C8: 17657 | D8: 8568 | E8: 9089 | F8: 2771 | G8: 1321 | H8: 1450
B9: Cruz del Eje | C9: 3691 | D9: 1849 | E9: 1842 | F9: 1454 | G9: 709 | H9: 745
B10: General Roca | C10: 2425 | D10: 1201 | E10: 1224 | F10: 643 | G10: 327 | H10: 316
B11: General San Martín | C11: 8493 | D11: 4155 | E11: 4338 | F11: 1371 | G11: 656 | H11: 715
B12: Ischilín | C12: 3001 | D12: 1481 | E12: 1520 | F12: 489 | G12: 217 | H12: 272
B13: Juárez Celman | C13: 4408 | D13: 2110 | E13: 2298 | F13: 1071 | G13: 491 | H13: 580
B14: Marcos Juárez | C14: 6886 | D14: 3299 | E14: 3587 | F14: 485 | G14: 240 | H14: 245
B15: Minas | F15: 410 | G15: 175 | H15: 235
B16: Pocho | F16: 351 | G16: 164 | H16: 187
B17: Pte. Roque Sáenz Peña | C17: 2640 | D17: 1304 | E17: 1336 | F17: 514 | G17: 254 | H17: 260
B18: Punilla | C18: 12555 | D18: 6117 | E18: 6438 | F18: 1413 | G18: 663 | H18: 750
B19: Río Cuarto | C19: 17281 | D19: 8337 | E19: 8944 | F19: 1496 | G19: 745 | H19: 751
B20: Río Primero | C20: 3375 | D20: 1629 | E20: 1746 | F20: 1151 | G20: 565 | H20: 586
B21: Río Seco | C21: 896 | D21: 423 | E21: 473 | F21: 742 | G21: 336 | H21: 406
B22: Río Segundo | C22: 7639 | D22: 3755 | E22: 3884 | F22: 1276 | G22: 620 | H22: 656
B23: San Alberto | C23: 2039 | D23: 984 | E23: 1055 | F23: 1286 | G23: 592 | H23: 694
B24: San Javier | C24: 3643 | D24: 1777 | E24: 1866 | F24: 1839 | G24: 952 | H24: 887
B25: San Justo | C25: 14430 | D25: 6958 | E25: 7472 | F25: 3440 | G25: 1691 | H25: 1749
B26: Santa María | C26: 7333 | D26: 3498 | E26: 3835 | F26: 2034 | G26: 1029 | H26: 1005
B27: Sobremonte | C27: 299 | D27: 150 | E27: 149 | F27: 143 | G27: 72 | H27: 71
B28: Tercero Arriba | C28: 7821 | D28: 3802 | E28: 4019 | F28: 824 | G28: 378 | H28: 446
B29: Totoral | C29: 1014 | D29: 520 | E29: 494 | F29: 1005 | G29: 501 | H29: 504
B30: Tulumba | C30: 480 | D30: 235 | E30: 245 | F30: 762 | G30: 363 | H30: 399
B31: Unión | C31: 6019 | D31: 2946 | E31: 3073 | F31: 1991 | G31: 951 | H31: 1040
B32: En el departamento Capital están incluidas además de las provinciales, las unidades educativas municipales y nacionales, al igual que sus alumnos y personal docente.

Sheet CP C3.4 B privado (hidden)
B2: CUADRO 3.4 B Sector privado. Alumnos por ámbito y sexo, según departamento
B3: Departamento | C3: Urbano | F3: Rural
C4: Total | D4: Mujeres | E4: Varones | F4: Total | G4: Mujeres | H4: Varones
B5: Total Córdoba | C5: 97625 | D5: 49297 | E5: 48328 | F5: 191 | G5: 91 | H5: 100
B6: Calamuchita | C6: 1295 | D6: 650 | E6: 645 | F6: 6 | G6: 4 | H6: 2
B7: Capital | C7: 50546 | D7: 25711 | E7: 24835
B8: Colón | C8: 7896 | D8: 3964 | E8: 3932
B9: Cruz del Eje | C9: 1238 | D9: 625 | E9: 613
B10: General Roca | C10: 175 | D10: 103 | E10: 72
B11: General San Martín | C11: 4564 | D11: 2295 | E11: 2269
B12: Ischilín | C12: 213 | D12: 109 | E12: 104
B13: Juárez Celman | C13: 859 | D13: 409 | E13: 450
B14: Marcos Juárez | C14: 1953 | D14: 973 | E14: 980
B15: Minas
B16: Pocho
B17: Pte. Roque Sáenz Peña | C17: 320 | D17: 171 | E17: 149
B18: Punilla | C18: 5856 | D18: 2944 | E18: 2912 | F18: 61 | G18: 33 | H18: 28
B19: Río Cuarto | C19: 7212 | D19: 3597 | E19: 3615
B20: Río Primero | C20: 925 | D20: 479 | E20: 446
B21: Río Seco
B22: Río Segundo | C22: 1752 | D22: 883 | E22: 869
B23: San Alberto | C23: 575 | D23: 282 | E23: 293
B24: San Javier | C24: 1079 | D24: 571 | E24: 508
B25: San Justo | C25: 3511 | D25: 1723 | E25: 1788 | F25: 124 | G25: 54 | H25: 70
B26: Santa María | C26: 2955 | D26: 1444 | E26: 1511
B27: Sobremonte
B28: Tercero Arriba | C28: 2305 | D28: 1151 | E28: 1154
B29: Totoral
B30: Tulumba
B31: Unión | C31: 2396 | D31: 1213 | E31: 1183

Sheet CP C 3.5 (hidden)
B2: CUADRO 3.5 Alumnos por grado, según departamento
B3: Departamento | C3: Total | D3: 1° | E3: 2° | F3: 3° | G3: 4° | H3: 5° | I3: 6°
B4: Total Córdoba | C4: 357841 | D4: 58969 | E4: 58449 | F4: 59827 | G4: 60360 | H4: 60978 | I4: 59258
B5: Calamuchita | C5: 6781 | D5: 1092 | E5: 1143 | F5: 1103 | G5: 1105 | H5: 1176 | I5: 1162
B6: Capital | C6: 142105 | D6: 23448 | E6: 23081 | F6: 24058 | G6: 23895 | H6: 24338 | I6: 23285
B7: Colón | C7: 28324 | D7: 4583 | E7: 4638 | F7: 4835 | G7: 4790 | H7: 4780 | I7: 4698
B8: Cruz del Eje | C8: 6383 | D8: 1014 | E8: 1035 | F8: 1121 | G8: 1094 | H8: 1091 | I8: 1028
B9: General Roca | C9: 3243 | D9: 504 | E9: 562 | F9: 484 | G9: 551 | H9: 572 | I9: 570
B10: General San Martín | C10: 14428 | D10: 2429 | E10: 2445 | F10: 2342 | G10: 2457 | H10: 2338 | I10: 2417
B11: Ischilín | C11: 3703 | D11: 551 | E11: 579 | F11: 637 | G11: 625 | H11: 655 | I11: 656
B12: Juárez Celman | C12: 6338 | D12: 1005 | E12: 1038 | F12: 1098 | G12: 1093 | H12: 1075 | I12: 1029
B13: Marcos Juárez | C13: 9324 | D13: 1539 | E13: 1470 | F13: 1514 | G13: 1626 | H13: 1661 | I13: 1514
B14: Minas | C14: 410 | D14: 70 | E14: 52 | F14: 78 | G14: 70 | H14: 71 | I14: 69
B15: Pocho | C15: 351 | D15: 45 | E15: 64 | F15: 49 | G15: 65 | H15: 59 | I15: 69
B16: Pte. Roque Sáenz Peña | C16: 3474 | D16: 591 | E16: 546 | F16: 582 | G16: 593 | H16: 595 | I16: 567
B17: Punilla | C17: 19885 | D17: 3257 | E17: 3300 | F17: 3326 | G17: 3367 | H17: 3391 | I17: 3244
B18: Río Cuarto | C18: 25989 | D18: 4334 | E18: 4242 | F18: 4208 | G18: 4432 | H18: 4448 | I18: 4325
B19: Río Primero | C19: 5451 | D19: 934 | E19: 872 | F19: 898 | G19: 943 | H19: 925 | I19: 879
B20: Río Seco | C20: 1638 | D20: 270 | E20: 266 | F20: 269 | G20: 263 | H20: 299 | I20: 271
B21: Río Segundo | C21: 10667 | D21: 1774 | E21: 1772 | F21: 1782 | G21: 1787 | H21: 1803 | I21: 1749
B22: San Alberto | C22: 3900 | D22: 660 | E22: 629 | F22: 635 | G22: 679 | H22: 650 | I22: 647
B23: San Javier | C23: 6561 | D23: 1113 | E23: 1094 | F23: 1080 | G23: 1077 | H23: 1092 | I23: 1105
B24: San Justo | C24: 21505 | D24: 3563 | E24: 3487 | F24: 3541 | G24: 3547 | H24: 3658 | I24: 3709
B25: Santa María | C25: 12322 | D25: 2117 | E25: 2003 | F25: 1998 | G25: 2092 | H25: 2086 | I25: 2026
B26: Sobremonte | C26: 442 | D26: 77 | E26: 56 | F26: 81 | G26: 75 | H26: 75 | I26: 78
B27: Tercero Arriba | C27: 10950 | D27: 1879 | E27: 1840 | F27: 1767 | G27: 1804 | H27: 1844 | I27: 1816
B28: Totoral | C28: 2019 | D28: 337 | E28: 328 | F28: 338 | G28: 344 | H28: 331 | I28: 341
B29: Tulumba | C29: 1242 | D29: 162 | E29: 204 | F29: 234 | G29: 218 | H29: 214 | I29: 210
B30: Unión | C30: 10406 | D30: 1621 | E30: 1703 | F30: 1769 | G30: 1768 | H30: 1751 | I30: 1794
B31: En el departamento Capital están incluidas además de las provinciales, las unidades educativas municipales y nacionales, al igual que sus alumnos y personal docente.

Sheet CP 3.6 (hidden)
B2: Cuadro 3.6 Alumnos por sector y tipo de sección, según departamento
B3: Departamento | C3: Estatal | F3: Privado
C4: Independiente | D4: Múltiple | E4: Multinivel | F4: Independiente | G4: Múltiple | H4: Multinivel
B5: Total Córdoba | C5: 246985 | D5: 10092 | E5: 2948 | F5: 97728 | G5: 75 | H5: 13
B6: Calamuchita | C6: 4827 | D6: 507 | E6: 146 | F6: 1295 | G6: 6
B7: Capital | C7: 91303 | D7: 256 | F7: 50546
B8: Colón | C8: 19691 | D8: 689 | E8: 48 | F8: 7884 | G8: 12
B9: Cruz del Eje | C9: 4385 | D9: 518 | E9: 242 | F9: 1238
B10: General Roca | C10: 2887 | D10: 135 | E10: 46 | F10: 175
B11: General San Martín | C11: 9145 | D11: 574 | E11: 145 | F11: 4564
B12: Ischilín | C12: 3090 | D12: 311 | E12: 89 | F12: 213
B13: Juárez Celman | C13: 5210 | D13: 161 | E13: 108 | F13: 859
B14: Marcos Juárez | C14: 7093 | D14: 189 | E14: 89 | F14: 1953
B15: Minas | C15: 188 | D15: 171 | E15: 51 | F15: 0
B16: Pocho | C16: 99 | D16: 158 | E16: 94 | F16: 0
B17: Pte. Roque Sáenz Peña | C17: 2972 | D17: 126 | E17: 56 | F17: 320
B18: Punilla | C18: 13392 | D18: 551 | E18: 25 | F18: 5856 | G18: 48 | H18: 13
B19: Río Cuarto | C19: 17915 | D19: 611 | E19: 251 | F19: 7212
B20: Río Primero | C20: 3840 | D20: 518 | E20: 168 | F20: 925
B21: Río Seco | C21: 1148 | D21: 335 | E21: 155 | F21: 0
B22: Río Segundo | C22: 8514 | D22: 272 | E22: 129 | F22: 1752
B23: San Alberto | C23: 2697 | D23: 487 | E23: 141 | F23: 575
B24: San Javier | C24: 4694 | D24: 707 | E24: 81 | F24: 1079
B25: San Justo | C25: 16445 | D25: 1109 | E25: 316 | F25: 3635
B26: Santa María | C26: 8766 | D26: 524 | E26: 77 | F26: 2955
B27: Sobremonte | C27: 311 | D27: 91 | E27: 40 | F27: 0
B28: Tercero Arriba | C28: 8328 | D28: 255 | E28: 62 | F28: 2305
B29: Totoral | C29: 1727 | D29: 203 | E29: 89 | F29: 0
B30: Tulumba | C30: 908 | D30: 233 | E30: 101 | F30: 0
B31: Unión | C31: 7410 | D31: 401 | E31: 199 | F31: 2387 | G31: 9
B32: En el departamento Capital están incluidas además de las provinciales, las unidades educativas municipales y nacionales, al igual que sus alumnos y personal docente.

Sheet CP C 3.7 (hidden)
B2: CUADRO 3.7 Total de alumnos, total y porcentaje de alumnos repitentes y con sobreedad, según departamento
B3: Departamento | C3: Alumnos | D3: Alumnos repitentes | E3: Porcentaje de repitentes | F3: Alumnos con sobreedad | G3: Porcentaje de sobreedad
B4: Total Córdoba | C4: 357841 | D4: 2288 | E4: =D4/C4*100 -> 0.6393901202 | F4: 10202 | G4: =F4/C4*100 -> 2.850986891
B5: Calamuchita | C5: 6781 | D5: 110 | E5: 1.62217962 | F5: 288 | G5: 4.247161186
B6: Capital | C6: 142105 | D6: 844 | E6: 0.5939270258 | F6: 4160 | G6: 2.927412829
B7: Colón | C7: 28324 | D7: 375 | E7: 1.323965542 | F7: 1368 | G7: 4.829826296
B8: Cruz del Eje | C8: 6383 | D8: 41 | E8: 0.6423311922 | F8: 233 | G8: 3.650321166
B9: General Roca | C9: 3243 | D9: 3 | E9: 0.09250693802 | F9: 11 | G9: 0.3391921061
B10: General San Martín | C10: 14428 | D10: 64 | E10: 0.443581924 | F10: 250 | G10: 1.732741891
B11: Ischilín | C11: 3703 | D11: 6 | E11: 0.1620307858 | F11: 108 | G11: 2.916554145
B12: Juárez Celman | C12: 6338 | D12: 18 | E12: 0.2840012622 | F12: 96 | G12: 1.514673399
B13: Marcos Juárez | C13: 9324 | D13: 45 | E13: 0.4826254826 | F13: 188 | G13: 2.016302016
B14: Minas | C14: 410 | D14: 7 | E14: 1.707317073 | F14: 17 | G14: 4.146341463
B15: Pocho | C15: 351 | D15: 8 | E15: 2.279202279 | F15: 14 | G15: 3.988603989
B16: Pte. Roque Sáenz Peña | C16: 3474 | D16: 4 | E16: 0.1151410478 | F16: 8 | G16: 0.2302820956
B17: Punilla | C17: 19885 | D17: 106 | E17: 0.5330651245 | F17: 441 | G17: 2.217752074
B18: Río Cuarto | C18: 25989 | D18: 73 | E18: 0.280888068 | F18: 474 | G18: 1.823848551
B19: Río Primero | C19: 5451 | D19: 27 | E19: 0.4953219593 | F19: 91 | G19: 1.669418455
B20: Río Seco | C20: 1638 | D20: 7 | E20: 0.4273504274 | F20: 32 | G20: 1.953601954
B21: Río Segundo | C21: 10667 | D21: 92 | E21: 0.8624730477 | F21: 271 | G21: 2.540545608
B22: San Alberto | C22: 3900 | D22: 17 | E22: 0.4358974359 | F22: 98 | G22: 2.512820513
B23: San Javier | C23: 6561 | D23: 71 | E23: 1.082152111 | F23: 319 | G23: 4.86206371
B24: San Justo | C24: 21505 | D24: 96 | E24: 0.4464078121 | F24: 543 | G24: 2.524994187
B25: Santa María | C25: 12322 | D25: 52 | E25: 0.4220094141 | F25: 334 | G25: 2.710598929
B26: Sobremonte | C26: 442 | D26: 1 | E26: 0.2262443439 | F26: 2 | G26: 0.4524886878
B27: Tercero Arriba | C27: 10950 | D27: 89 | E27: 0.8127853881 | F27: 296 | G27: 2.703196347
B28: Totoral | C28: 2019 | D28: 3 | E28: 0.1485884101 | F28: 49 | G28: 2.426944032
B29: Tulumba | C29: 1242 | D29: 0 | E29: 0 | F29: 10 | G29: 0.8051529791
B30: Unión | C30: 10406 | D30: 129 | E30: 1.239669421 | F30: 501 | G30: 4.814530079
B31: En el departamento Capital están incluidas además de las provinciales, las unidades educativas municipales y nacionales, al igual que sus alumnos y personal docente.

Sheet CP C3,8 y 3.9 (hidden)
B2: CUADRO 3.8 Total de alumnos, total y porcentaje de alumnos repitentes por sexo, según grado
B3: Grado | C3: Alumnos | F3: Alumnos repetidores | I3: Porcentaje de repetidores
C4: Total | D4: Mujeres | E4: Varones | F4: Total | G4: Mujeres | H4: Varones | I4: Total | J4: Mujeres | K4: Varones
B5: Total Córdoba | C5: 357841 | D5: 175241 | E5: 182600 | F5: 2288 | G5: 974 | H5: 1314 | I5: =F5/C5*100 -> 0.6393901202 | J5: 0.5558060043 | K5: 0.7196056955
B6: 1° | C6: 58969 | D6: 28818 | E6: 30151 | F6: 47 | G6: 19 | H6: 28 | I6: 0.07970289474 | J6: 0.06593101534 | K6: 0.09286590826
B7: 2° | C7: 58449 | D7: 28620 | E7: 29829 | F7: 577 | G7: 212 | H7: 365 | I7: 0.9871854095 | J7: 0.7407407407 | K7: 1.223641423
B8: 3° | C8: 59827 | D8: 29300 | E8: 30527 | F8: 575 | G8: 225 | H8: 350 | I8: 0.961104518 | J8: 0.7679180887 | K8: 1.146526026
B9: 4° | C9: 60360 | D9: 29433 | E9: 30927 | F9: 445 | G9: 199 | H9: 246 | I9: 0.7372432074 | J9: 0.6761118472 | K9: 0.7954214764
B10: 5° | C10: 60978 | D10: 30150 | E10: 30828 | F10: 359 | G10: 175 | H10: 184 | I10: 0.5887369215 | J10: 0.5804311774 | K10: 0.5968599974
B11: 6° | C11: 59258 | D11: 28920 | E11: 30338 | F11: 285 | G11: 144 | H11: 141 | I11: 0.4809477201 | J11: 0.4979253112 | K11: 0.4647636627
B14: CUADRO 3.9 Total de alumnos, total y porcentaje de alumnos con sobreedad, según grado
B15: Grado | C15: Alumnos | D15: Alumnos con sobreedad | F15: Porcentaje con sobreedad
B17: Total Córdoba | C17: =SUM(C18:C23) -> 357841 | D17: =SUM(D18:D23) -> 10202 | F17: =D17/C17*100 -> 2.850986891
B18: 1° | C18: 58969 | D18: 365 | F18: 0.6189692889
B19: 2° | C19: 58449 | D19: 971 | F19: 1.661277353
B20: 3° | C20: 59827 | D20: 1530 | F20: 2.557373761
B21: 4° | C21: 60360 | D21: 2034 | F21: 3.369781312
B22: 5° | C22: 60978 | D22: 2315 | F22: 3.796451179
B23: 6° | C23: 59258 | D23: 2987 | F23: 5.040669614
B24: El dato de sobreedad no puede desagregarse por sexo debido a que en el Relevamiento Anual no se capta la información de los alumnos de cada edad discriminados por esa variable.

Sheet CP C 3.10 (hidden)
B2: CUADRO 3.10 Tasa de promoción, de no promoción y de abandono anual, por grado, según ciclo lectivo
B3: Ciclo lectivo | C3: Indicadores | D3: Total | E3: 1° | F3: 2° | G3: 3° | H3: 4° | I3: 5° | J3: 6°
B5: 2015 | C5: Tasa de promoción | D5: 99.4 | E5: 100.1 | F5: 98.7 | G5: 99.1 | H5: 99.3 | I5: 99.4 | J5: 99.6
C6: Tasa de no promoción | D6: 0.7 | E6: 0.1 | F6: 1.5 | G6: 1.2 | H6: 0.8 | I6: 0.6 | J6: 0.2
C7: Tasa de abandono | D7: -0.1 | E7: -0.2 | F7: -0.2 | G7: -0.3 | H7: -0.1 | I7: 0 | J7: 0.2
B8: 2016 | C8: Tasa de promoción | D8: 98.2 | E8: 98.9 | F8: 97.3 | G8: 97.7 | H8: 98.1 | I8: 98.2 | J8: 98.8
C9: Tasa de no promoción | D9: 1 | E9: 0.1 | F9: 1.9 | G9: 1.5 | H9: 1.1 | I9: 0.9 | J9: 0.3
C10: Tasa de abandono | D10: 0.9 | E10: 1 | F10: 0.7 | G10: 0.8 | H10: 0.8 | I10: 1 | J10: 1
B11: 2017 | C11: Tasa de promoción | D11: 99 | E11: 100.1 | F11: 98.1 | G11: 98.9 | H11: 98.8 | I11: 99 | J11: 99.3
C12: Tasa de no promoción | D12: 0.6 | E12: 0.1 | F12: 1.4 | G12: 0.9 | H12: 0.7 | I12: 0.6 | J12: 0.2
C13: Tasa de abandono | D13: 0.3 | E13: -0.1 | F13: 0.5 | G13: 0.2 | H13: 0.5 | I13: 0.4 | J13: 0.5
B14: 2018 | C14: Tasa de promoción | D14: 98.70836489 | E14: 97.53090607 | F14: 101.3721364 | G14: 99.76432046 | H14: 100.0762094 | I14: 96.19042934 | J14: 97.38431942
C15: Tasa de no promoción | D15: 0.4893234705 | E15: 0.08139870101 | F15: 1.05048846 | G15: 0.8206996841 | H15: 0.5003313453 | I15: 0.3394666929 | J15: 0.1501906916
C16: Tasa de abandono | D16: 0.8023116412 | E16: 2.38769523 | F16: -2.422624852 | G16: -0.5850201414 | H16: -0.5765407555 | I16: 3.470103972 | J16: 2.465489892

Sheet CP C 3.11 (hidden)
B2: CUADRO 3.11 Secciones por sector, ámbito y tipo, según departamento
B3: Departamento | C3: Total general | D3: Estatal | K3: Privado (*)
D4: Total | E4: Urbano | H4: Rural | K4: Total | L4: Urbano | N4: Rural
E5: Indep. | F5: Múltiple | G5: Multiniv. | H5: Indep. | I5: Múltiple | J5: Multiniv. | L5: Indep. | M5: Múltiple | N5: Indep. | O5: Múltiple | P5: Multiniv.
B6: Total Córdoba | C6: 15845 | D6: 12461 | E6: 10102 | F6: 93 | G6: 3 | H6: 1113 | I6: 695 | J6: 455 | K6: 3384 | L6: 3372 | M6: 2 | N6: 6 | O6: 3 | P6: 1
B7: Calamuchita | C7: 320 | D7: 269 | E7: 159 | F7: 3 | G7: 1 | H7: 54 | I7: 32 | J7: 20 | K7: 51 | L7: 50 | O7: 1
B8: Capital | C8: 5776 | D8: 4097 | E8: 4083 | F8: 14 | H8: 0 | I8: 0 | J8: 0 | K8: 1679 | L8: 1679
B9: Colón | C9: 1106 | D9: 843 | E9: 690 | F9: 12 | H9: 111 | I9: 25 | J9: 5 | K9: 263 | L9: 262 | M9: 1
B10: Cruz del Eje | C10: 362 | D10: 320 | E10: 191 | F10: 2 | H10: 51 | I10: 42 | J10: 34 | K10: 42 | L10: 42
B11: General Roca | C11: 186 | D11: 180 | E11: 125 | F11: 2 | H11: 29 | I11: 13 | J11: 11 | K11: 6 | L11: 6
B12: General San Martín | C12: 600 | D12: 452 | E12: 354 | F12: 8 | H12: 39 | I12: 31 | J12: 20 | K12: 148 | L12: 148
B13: Ischilín | C13: 199 | D13: 193 | E13: 143 | F13: 4 | H13: 11 | I13: 19 | J13: 16 | K13: 6 | L13: 6
B14: Juárez Celman | C14: 313 | D14: 271 | E14: 191 | F14: 2 | H14: 49 | I14: 12 | J14: 17 | K14: 42 | L14: 42
B15: Marcos Juárez | C15: 504 | D15: 421 | E15: 366 | H15: 19 | I15: 17 | J15: 19 | K15: 83 | L15: 83
B16: Minas | C16: 42 | D16: 42 | H16: 12 | I16: 23 | J16: 7 | K16: 0 | L16: 0
B17: Pocho | C17: 41 | D17: 41 | H17: 6 | I17: 16 | J17: 19 | K17: 0 | L17: 0
B18: Pte. Roque Sáenz Peña | C18: 191 | D18: 179 | E18: 132 | F18: 1 | H18: 23 | I18: 13 | J18: 10 | K18: 12 | L18: 12
B19: Punilla | C19: 771 | D19: 571 | E19: 491 | F19: 8 | H19: 48 | I19: 20 | J19: 4 | K19: 200 | L19: 197 | O19: 2 | P19: 1
B20: Río Cuarto | C20: 1145 | D20: 886 | E20: 733 | F20: 13 | G20: 2 | H20: 61 | I20: 39 | J20: 38 | K20: 259 | L20: 259
B21: Río Primero | C21: 289 | D21: 251 | E21: 152 | H21: 27 | I21: 41 | J21: 31 | K21: 38 | L21: 38
B22: Río Seco | C22: 108 | D22: 108 | E22: 43 | H22: 16 | I22: 29 | J22: 20 | K22: 0 | L22: 0
B23: Río Segundo | C23: 500 | D23: 437 | E23: 341 | H23: 52 | I23: 26 | J23: 18 | K23: 63 | L23: 63
B24: San Alberto | C24: 215 | D24: 197 | E24: 93 | H24: 42 | I24: 41 | J24: 21 | K24: 18 | L24: 18
B25: San Javier | C25: 317 | D25: 276 | E25: 152 | F25: 10 | H25: 69 | I25: 33 | J25: 12 | K25: 41 | L25: 41
B26: San Justo | C26: 1006 | D26: 861 | E26: 620 | F26: 2 | H26: 112 | I26: 83 | J26: 44 | K26: 145 | L26: 139 | N26: 6
B27: Santa María | C27: 512 | D27: 408 | E27: 292 | F27: 5 | H27: 72 | I27: 27 | J27: 12 | K27: 104 | L27: 104
B28: Sobremonte | C28: 40 | D28: 40 | E28: 16 | H28: 8 | I28: 10 | J28: 6 | K28: 0 | L28: 0
B29: Tercero Arriba | C29: 536 | D29: 447 | E29: 362 | F29: 7 | H29: 51 | I29: 17 | J29: 10 | K29: 89 | L29: 89
B30: Totoral | C30: 124 | D30: 124 | E30: 43 | H30: 44 | I30: 22 | J30: 15 | K30: 0 | L30: 0
B31: Tulumba | C31: 99 | D31: 99 | E31: 27 | H31: 27 | I31: 28 | J31: 17 | K31: 0 | L31: 0
B32: Unión | C32: 543 | D32: 448 | E32: 303 | H32: 80 | I32: 36 | J32: 29 | K32: 95 | L32: 94 | M32: 1
B33: (*) El sector privado no cuenta con secciones multinivel en el nivel primario en el ámbito urbano.
B34: Indep.: Independiente
B35: Multiniv.: Multinivel
B36: En el departamento Capital están incluidas además de las provinciales, las unidades educativas municipales y nacionales, al igual que sus secciones, alumnos y personal docente.

Sheet CP 3.12 (hidden)
B2: CUADRO 3.12 Personal docente en actividad, por sexo, según departamento
B3: Departamento | C3: Total | D3: Mujeres | E3: Varones
B4: Total Córdoba | C4: 31452 | D4: 27724 | E4: 3728
B5: Calamuchita | C5: 627 | D5: 566 | E5: 61
B6: Capital | C6: 11740 | D6: 10339 | E6: 1401
B7: Colón | C7: 2098 | D7: 1894 | E7: 204
B8: Cruz del Eje | C8: 691 | D8: 595 | E8: 96
B9: General Roca | C9: 328 | D9: 289 | E9: 39
B10: General San Martín | C10: 1252 | D10: 1125 | E10: 127
B11: Ischilín | C11: 416 | D11: 340 | E11: 76
B12: Juárez Celman | C12: 584 | D12: 500 | E12: 84
B13: Marcos Juárez | C13: 955 | D13: 874 | E13: 81
B14: Minas | C14: 111 | D14: 86 | E14: 25
B15: Pocho | C15: 110 | D15: 62 | E15: 48
B16: Pte. Roque Sáenz Peña | C16: 363 | D16: 318 | E16: 45
B17: Punilla | C17: 1456 | D17: 1284 | E17: 172
B18: Río Cuarto | C18: 2117 | D18: 1898 | E18: 219
B19: Río Primero | C19: 579 | D19: 506 | E19: 73
B20: Río Seco | C20: 203 | D20: 157 | E20: 46
B21: Río Segundo | C21: 961 | D21: 861 | E21: 100
B22: San Alberto | C22: 427 | D22: 356 | E22: 71
B23: San Javier | C23: 688 | D23: 589 | E23: 99
B24: San Justo | C24: 2041 | D24: 1825 | E24: 216
B25: Santa María | C25: 1025 | D25: 893 | E25: 132
B26: Sobremonte | C26: 64 | D26: 53 | E26: 11
B27: Tercero Arriba | C27: 1087 | D27: 993 | E27: 94
B28: Totoral | C28: 247 | D28: 222 | E28: 25
B29: Tulumba | C29: 222 | D29: 151 | E29: 71
B30: Unión | C30: 1060 | D30: 948 | E30: 112
B31: (*) El personal docente en actividad hace referencia a todas las personas con designación docente que se desempeñan en las unidades educativas del nivel. Por esta razón, se cuentan tantas veces como ofertas en las que trabajan.
B32: En el departamento Capital están incluidas además de las provinciales, las unidades educativas municipales y nacionales, al igual que sus alumnos y personal docente.

Sheet CP C3.13 (hidden)
B2: CUADRO 3.13 Personal docente en actividad, por sector y ámbito, según departamento
B3: Departamento | C3: Total (*) | D3: Estatal | F3: Privado
D4: Urbano | E4: Rural | F4: Urbano | G4: Rural
B5: Total Córdoba | C5: =D5+E5+F5+G5 -> 31452 | D5: 18808 | E5: 4852 | F5: 7768 | G5: 24
B6: Calamuchita | C6: 627 | D6: 284 | E6: 207 | F6: 135 | G6: 1
B7: Capital | C7: 11740 | D7: 7702 | E7: 0 | F7: 4038
B8: Colón | C8: 2098 | D8: 1197 | E8: 266 | F8: 635
B9: Cruz del Eje | C9: 691 | D9: 359 | E9: 234 | F9: 98
B10: General Roca | C10: 328 | D10: 216 | E10: 100 | F10: 12
B11: General San Martín | C11: 1252 | D11: 687 | E11: 225 | F11: 340
B12: Ischilín | C12: 416 | D12: 283 | E12: 114 | F12: 19
B13: Juárez Celman | C13: 584 | D13: 353 | E13: 159 | F13: 72
B14: Marcos Juárez | C14: 955 | D14: 680 | E14: 112 | F14: 163
B15: Minas | C15: 111 | E15: 111
B16: Pocho | C16: 110 | E16: 110
B17: Pte. Roque Sáenz Peña | C17: 363 | D17: 241 | E17: 89 | F17: 33
B18: Punilla | C18: 1456 | D18: 856 | E18: 155 | F18: 433 | G18: 12
B19: Río Cuarto | C19: 2117 | D19: 1233 | E19: 312 | F19: 572
B20: Río Primero | C20: 579 | D20: 277 | E20: 223 | F20: 79
B21: Río Seco | C21: 203 | D21: 76 | E21: 127
B22: Río Segundo | C22: 961 | D22: 620 | E22: 209 | F22: 132
B23: San Alberto | C23: 427 | D23: 166 | E23: 221 | F23: 40
B24: San Javier | C24: 688 | D24: 340 | E24: 259 | F24: 89
B25: San Justo | C25: 2041 | D25: 1222 | E25: 511 | F25: 297 | G25: 11
B26: Santa María | C26: 1025 | D26: 546 | E26: 258 | F26: 221
B27: Sobremonte | C27: 64 | D27: 30 | E27: 34
B28: Tercero Arriba | C28: 1087 | D28: 718 | E28: 183 | F28: 186
B29: Totoral | C29: 247 | D29: 81 | E29: 166
B30: Tulumba | C30: 222 | D30: 51 | E30: 171
B31: Unión | C31: 1060 | D31: 590 | E31: 296 | F31: 174
B32: (*) El personal docente en actividad hace referencia a todas las personas con designación docente que se desempeñan en las unidades educativas del nivel. Por esta razón, se cuentan tantas veces como ofertas en las que trabajan.
B33: En el departamento Capital están incluidas además de las provinciales, las unidades educativas municipales y nacionales, al igual que sus alumnos y personal docente.

Sheet CP C3.14 (hidden)
B2: CUADRO 3.14 Cargos docentes cubiertos frente a alumnos, por tipo de cargo, sector y ámbito, según departamento
B3: Departamento | C3: Total | D3: Director personal único | H3: Director con clase anexa | L3: Maestro de grado (*)
D4: Estatal | F4: Privado | H4: Estatal | J4: Privado | L4: Estatal | N4: Privado
D5: Urbano | E5: Rural | F5: Urbano | G5: Rural | H5: Urbano | I5: Rural | J5: Urbano | K5: Rural | L5: Urbano | M5: Rural | N5: Urbano | O5: Rural
B6: Total Córdoba | C6: 16003 | D6: 11 | E6: 628 | F6: 4 | G6: 1 | H6: 17 | I6: 249 | J6: 5 | K6: 2 | L6: 10168 | M6: 1386 | N6: 3523 | O6: 9
B7: Calamuchita | C7: 328 | D7: 1 | E7: 33 | G7: 1 | H7: 1 | I7: 5 | L7: 166 | M7: 67 | N7: 54
B8: Capital | C8: 5884 | D8: 1 | F8: 2 | H8: 2 | J8: 1 | L8: 4089 | N8: 1789
B9: Colón | C9: 1128 | E9: 8 | H9: 2 | I9: 8 | J9: 1 | L9: 701 | M9: 127 | N9: 281
B10: Cruz del Eje | C10: 364 | E10: 35 | H10: 2 | I10: 23 | L10: 191 | M10: 71 | N10: 42
B11: General Roca | C11: 190 | E11: 18 | H11: 1 | I11: 4 | L11: 127 | M11: 34 | N11: 6
B12: General San Martín | C12: 608 | D12: 1 | E12: 29 | H12: 1 | I12: 6 | L12: 364 | M12: 56 | N12: 151
B13: Ischilín | C13: 201 | D13: 2 | E13: 6 | H13: 2 | I13: 21 | L13: 145 | M13: 19 | N13: 6
B14: Juárez Celman | C14: 314 | D14: 1 | E14: 27 | I14: 1 | L14: 192 | M14: 51 | N14: 42
B15: Marcos Juárez | C15: 490 | D15: 1 | E15: 28 | F15: 1 | I15: 6 | L15: 352 | M15: 19 | N15: 83
B16: Minas | C16: 41 | E16: 19 | I16: 6 | M16: 16
B17: Pocho | C17: 41 | E17: 22 | I17: 5 | M17: 14
B18: Pte. Roque Sáenz Peña | C18: 191 | E18: 13 | I18: 5 | L18: 133 | M18: 28 | N18: 12
B19: Punilla | C19: 773 | E19: 5 | H19: 1 | I19: 10 | L19: 499 | M19: 60 | N19: 195 | O19: 3
B20: Río Cuarto | C20: 1145 | D20: 3 | E20: 55 | I20: 11 | J20: 1 | K20: 2 | L20: 739 | M20: 70 | N20: 264
B21: Río Primero | C21: 289 | E21: 42 | I21: 11 | L21: 152 | M21: 44 | N21: 40
B22: Río Seco | C22: 112 | E22: 20 | I22: 11 | L22: 43 | M22: 38
B23: Río Segundo | C23: 499 | D23: 1 | E23: 32 | I23: 4 | L23: 337 | M23: 61 | N23: 64
B24: San Alberto | C24: 215 | E24: 26 | I24: 17 | L24: 93 | M24: 61 | N24: 18
B25: San Javier | C25: 319 | E25: 11 | H25: 2 | I25: 14 | J25: 1 | L25: 160 | M25: 89 | N25: 42
B26: San Justo | C26: 1012 | E26: 64 | I26: 28 | L26: 626 | M26: 148 | N26: 140 | O26: 6
B27: Santa María | C27: 519 | E27: 15 | H27: 2 | I27: 9 | J27: 1 | L27: 295 | M27: 89 | N27: 108
B28: Sobremonte | C28: 35 | E28: 11 | I28: 4 | L28: 16 | M28: 4
B29: Tercero Arriba | C29: 534 | E29: 22 | H29: 1 | I29: 5 | L29: 372 | M29: 45 | N29: 89
B30: Totoral | C30: 122 | E30: 15 | I30: 16 | L30: 43 | M30: 48
B31: Tulumba | C31: 99 | E31: 33 | I31: 7 | L31: 27 | M31: 32
B32: Unión | C32: 550 | E32: 39 | F32: 1 | I32: 12 | L32: 306 | M32: 95 | N32: 97
B33: (*) Se incluye dentro de este universo a los maestros auxiliares de grado y maestros de área.
B34: En el departamento Capital están incluidas además de las provinciales, las unidades educativas municipales y nacionales, al igual que sus alumnos y personal docente.

Sheet CSC4.1 (hidden)
B2: CUADRO 4.1 Unidades educativas, alumnos y personal docente en actividad, por sector y dependencia, según ámbito
C3: Ámbito | D3: Total | E3: Estatal | G3: Privado
E4: Provincial | F4: Nacional (**) | G4: Provincial
B5: Unidades educativas | C5: Total | D5: 891 | E5: 482 | F5: 3 | G5: 406 | H5: 855 | I5: 450
C6: Urbano | D6: 771 | E6: 397 | F6: 3 | G6: 371 | H6: 739 | I6: 369
C7: Rural | D7: 120 | E7: 85 | G7: 35 | H7: 116 | I7: 81
B8: Alumnos | C8: Total | D8: 332713 | E8: 196639 | F8: 3381 | G8: 132693 | H8: 329729 | I8: 194102
C9: Urbano | D9: 306461 | E9: 175093 | F9: 3381 | G9: 127987 | H9: 303751 | I9: 172774
C10: Rural | D10: 26252 | E10: 21546 | G10: 4706 | H10: 25978 | I10: 21328
B11: Personal docente (*) | C11: Total | D11: 59919 | E11: 39603 | F11: 725 | G11: 19591 | H11: 59130 | I11: 38916
C12: Urbano | D12: 52908 | E12: 33642 | F12: 725 | G12: 18541 | H12: 52224 | I12: 33054
C13: Rural | D13: 7011 | E13: 5961 | G13: 1050 | H13: 6906 | I13: 5862
B15: (*) El personal docente en actividad hace referencia a todas las personas con designación docente que se desempeñan en las unidades educativas del nivel. Por esta razón, se cuentan tantas veces como ofertas en las que trabajan.
B16: (**) Las unidades educativas nacionales de nivel secundario dependen de la Universidad Nacional de Córdoba y del Ministerio de Defensa.

Sheet CSC4.2 (hidden)
B2: CUADRO 4.2 Unidades educativas, alumnos y personal docente en actividad, por sector, según departamento
B3: Departamento | C3: Total | F3: Estatal | I3: Privado
C4: Unidades educativas | D4: Alumnos | E4: Personal docente (*) | F4: Unidades educativas | G4: Alumnos | H4: Personal docente | I4: Unidades educativas | J4: Alumnos | K4: Personal docente
B5: Total Córdoba | C5: 891 | D5: 332713 | E5: 59919 | F5: 485 | G5: 200020 | H5: 40328 | I5: 406 | J5: 132693 | K5: 19591
B6: Calamuchita | C6: 21 | D6: 6467 | E6: 1094 | F6: 12 | G6: 4007 | H6: 762 | I6: 9 | J6: 2460 | K6: 332
B7: Capital | C7: 288 | D7: 129446 | E7: 22055 | F7: 140 | G7: 72588 | H7: 14168 | I7: 148 | J7: 56858 | K7: 7887
B8: Colón | C8: 56 | D8: 25265 | E8: 4078 | F8: 33 | G8: 16366 | H8: 2894 | I8: 23 | J8: 8899 | K8: 1184
B9: Cruz del Eje | C9: 19 | D9: 6259 | E9: 1321 | F9: 14 | G9: 4550 | H9: 1029 | I9: 5 | J9: 1709 | K9: 292
B10: General Roca | C10: 13 | D10: 3187 | E10: 673 | F10: 8 | G10: 2546 | H10: 523 | I10: 5 | J10: 641 | K10: 150
B11: General San Martín | C11: 33 | D11: 12984 | E11: 2176 | F11: 16 | G11: 6089 | H11: 1160 | I11: 17 | J11: 6895 | K11: 1016
B12: Ischilín | C12: 5 | D12: 3545 | E12: 535 | F12: 3 | G12: 2738 | H12: 422 | I12: 2 | J12: 807 | K12: 113
B13: Juárez Celman | C13: 21 | D13: 6372 | E13: 1116 | F13: 11 | G13: 3426 | H13: 653 | I13: 10 | J13: 2946 | K13: 463
B14: Marcos Juárez | C14: 34 | D14: 8546 | E14: 1777 | F14: 16 | G14: 4655 | H14: 1044 | I14: 18 | J14: 3891 | K14: 733
B15: Minas | C15: 2 | D15: 491 | E15: 197 | F15: 2 | G15: 491 | H15: 197
B16: Pocho | C16: 2 | D16: 403 | E16: 134 | F16: 2 | G16: 403 | H16: 134
B17: Pte. Roque Sáenz Peña | C17: 11 | D17: 3549 | E17: 713 | F17: 8 | G17: 2683 | H17: 579 | I17: 3 | J17: 866 | K17: 134
B18: Punilla | C18: 51 | D18: 19111 | E18: 3086 | F18: 25 | G18: 11082 | H18: 1892 | I18: 26 | J18: 8029 | K18: 1194
B19: Río Cuarto | C19: 69 | D19: 23253 | E19: 4336 | F19: 35 | G19: 13072 | H19: 2770 | I19: 34 | J19: 10181 | K19: 1566
B20: Río Primero | C20: 16 | D20: 5616 | E20: 1070 | F20: 10 | G20: 3806 | H20: 796 | I20: 6 | J20: 1810 | K20: 274
B21: Río Seco | C21: 5 | D21: 1597 | E21: 275 | F21: 5 | G21: 1597 | H21: 275
B22: Río Segundo | C22: 37 | D22: 10455 | E22: 2180 | F22: 21 | G22: 6248 | H22: 1521 | I22: 16 | J22: 4207 | K22: 659
B23: San Alberto | C23: 14 | D23: 3866 | E23: 941 | F23: 10 | G23: 2916 | H23: 765 | I23: 4 | J23: 950 | K23: 176
B24: San Javier | C24: 15 | D24: 6386 | E24: 1269 | F24: 9 | G24: 4794 | H24: 971 | I24: 6 | J24: 1592 | K24: 298
B25: San Justo | C25: 62 | D25: 20362 | E25: 3802 | F25: 34 | G25: 12945 | H25: 2714 | I25: 28 | J25: 7417 | K25: 1088
B26: Santa María | C26: 31 | D26: 11636 | E26: 2070 | F26: 22 | G26: 8119 | H26: 1575 | I26: 9 | J26: 3517 | K26: 495
B27: Sobremonte | C27: 1 | D27: 481 | E27: 106 | F27: 1 | G27: 481 | H27: 106
B28: Tercero Arriba | C28: 35 | D28: 10197 | E28: 2033 | F28: 18 | G28: 5623 | H28: 1267 | I28: 17 | J28: 4574 | K28: 766
B29: Totoral | C29: 8 | D29: 1977 | E29: 484 | F29: 7 | G29: 1782 | H29: 453 | I29: 1 | J29: 195 | K29: 31
B30: Tulumba | C30: 5 | D30: 1094 | E30: 290 | F30: 5 | G30: 1094 | H30: 290
B31: Unión | C31: 37 | D31: 10168 | E31: 2108 | F31: 18 | G31: 5919 | H31: 1368 | I31: 19 | J31: 4249 | K31: 740
B32: (*) El personal docente en actividad hace referencia a todas las personas con designación docente que se desempeñan en las unidades educativas del nivel. Por esta razón, se cuentan tantas veces como ofertas en las que trabajan.
B33: En el departamento Capital están incluidas además de las provinciales, las unidades educativas nacionales, al igual que sus alumnos y personal docente.

Sheet CSC4.3 (hidden)
B2: CUADRO 4.3 Bases y anexos, por sector y ámbito, según departamento
B3: Departamento | C3: Total | E3: Estatal | I3: Privado
E4: Urbano | G4: Rural | I4: Urbano | K4: Rural
C5: Bases | D5: Anexos | E5: Bases | F5: Anexos | G5: Bases | H5: Anexos | I5: Bases | J5: Anexos | K5: Bases | L5: Anexos
B6: Total Córdoba | C6: 891 | D6: 139 | E6: 400 | F6: 13 | G6: 85 | H6: 123 | I6: 371 | J6: 2 | K6: 35 | L6: 1
B7: Calamuchita | C7: 21 | D7: 5 | E7: 9 | F7: 1 | G7: 3 | H7: 4 | I7: 7 | K7: 2
B8: Capital | C8: 288 | D8: 2 | E8: 140 | F8: 2 | I8: 148
B9: Colón | C9: 56 | D9: 7 | E9: 27 | F9: 2 | G9: 6 | H9: 5 | I9: 23
B10: Cruz del Eje | C10: 19 | D10: 3 | E10: 8 | G10: 6 | H10: 3 | I10: 4 | K10: 1
B11: General Roca | C11: 13 | D11: 2 | E11: 7 | G11: 1 | H11: 2 | I11: 2 | K11: 3
B12: General San Martín | C12: 33 | D12: 1 | E12: 12 | G12: 4 | H12: 1 | I12: 13 | K12: 4
B13: Ischilín | C13: 5 | D13: 5 | E13: 3 | H13: 5 | I13: 2
B14: Juárez Celman | C14: 21 | D14: 3 | E14: 9 | F14: 1 | G14: 2 | H14: 1 | I14: 6 | J14: 1 | K14: 4
B15: Marcos Juárez | C15: 34 | D15: 1 | E15: 16 | H15: 1 | I15: 16 | K15: 2
B16: Minas | C16: 2 | D16: 7 | G16: 2 | H16: 7
B17: Pocho | C17: 2 | D17: 3 | G17: 2 | H17: 3
B18: Pte. Roque Sáenz Peña | C18: 11 | D18: 4 | E18: 5 | G18: 3 | H18: 4 | I18: 3
B19: Punilla | C19: 51 | D19: 2 | E19: 21 | F19: 1 | G19: 4 | H19: 1 | I19: 25 | K19: 1
B20: Río Cuarto | C20: 69 | D20: 12 | E20: 29 | F20: 2 | G20: 6 | H20: 9 | I20: 32 | J20: 1 | K20: 2
B21: Río Primero | C21: 16 | D21: 12 | E21: 7 | F21: 1 | G21: 3 | H21: 11 | I21: 6
B22: Río Seco | C22: 5 | D22: 3 | E22: 3 | G22: 2 | H22: 3
B23: Río Segundo | C23: 37 | D23: 9 | E23: 15 | F23: 1 | G23: 6 | H23: 8 | I23: 14 | K23: 2
B24: San Alberto | C24: 14 | D24: 8 | E24: 6 | G24: 4 | H24: 8 | I24: 4
B25: San Javier | C25: 15 | D25: 4 | E25: 5 | F25: 1 | G25: 4 | H25: 3 | I25: 5 | K25: 1
B26: San Justo | C26: 62 | D26: 22 | E26: 26 | G26: 8 | H26: 21 | I26: 22 | K26: 6 | L26: 1
B27: Santa María | C27: 31 | D27: 8 | E27: 16 | F27: 1 | G27: 6 | H27: 7 | I27: 9
B28: Sobremonte | C28: 1 | D28: 2 | E28: 1 | H28: 2
B29: Tercero Arriba | C29: 35 | D29: 4 | E29: 15 | G29: 3 | H29: 4 | I29: 15 | K29: 2
B30: Totoral | C30: 8 | D30: 3 | E30: 4 | G30: 3 | H30: 3 | K30: 1
B31: Tulumba | C31: 5 | D31: 2 | E31: 1 | G31: 4 | H31: 2
B32: Unión | C32: 37 | D32: 5 | E32: 15 | G32: 3 | H32: 5 | I32: 15 | K32: 4
B33: En el departamento Capital están incluidas además de las provinciales, las bases nacionales (y sus anexos, en el caso que correspondan).

Sheet CSC4.4 (hidden)
B2: CUADRO 4.4 Alumnos por sexo, según departamento
B3: Departamento | C3: Total | D3: Mujeres | E3: Varones
B4: Total Córdoba | C4: 332713 | D4: 166398 | E4: 166315
B5: Calamuchita | C5: 6467 | D5: 3163 | E5: 3304
B6: Capital | C6: 129446 | D6: 64479 | E6: 64967
B7: Colón | C7: 25265 | D7: 12640 | E7: 12625
B8: Cruz del Eje | C8: 6259 | D8: 3238 | E8: 3021
B9: General Roca | C9: 3187 | D9: 1693 | E9: 1494
B10: General San Martín | C10: 12984 | D10: 6324 | E10: 6660
B11: Ischilín | C11: 3545 | D11: 1716 | E11: 1829
B12: Juárez Celman | C12: 6372 | D12: 3153 | E12: 3219
B13: Marcos Juárez | C13: 8546 | D13: 4150 | E13: 4396
B14: Minas | C14: 491 | D14: 244 | E14: 247
B15: Pocho | C15: 403 | D15: 193 | E15: 210
B16: Pte. Roque Sáenz Peña | C16: 3549 | D16: 1797 | E16: 1752
B17: Punilla | C17: 19111 | D17: 9526 | E17: 9585
B18: Río Cuarto | C18: 23253 | D18: 11730 | E18: 11523
B19: Río Primero | C19: 5616 | D19: 2843 | E19: 2773
B20: Río Seco | C20: 1597 | D20: 833 | E20: 764
B21: Río Segundo | C21: 10455 | D21: 5178 | E21: 5277
B22: San Alberto | C22: 3866 | D22: 1873 | E22: 1993
B23: San Javier | C23: 6386 | D23: 3222 | E23: 3164
B24: San Justo | C24: 20362 | D24: 10340 | E24: 10022
B25: Santa María | C25: 11636 | D25: 5816 | E25: 5820
B26: Sobremonte | C26: 481 | D26: 265 | E26: 216
B27: Tercero Arriba | C27: 10197 | D27: 5179 | E27: 5018
B28: Totoral | C28: 1977 | D28: 987 | E28: 990
B29: Tulumba | C29: 1094 | D29: 543 | E29: 551
B30: Unión | C30: 10168 | D30: 5273 | E30: 4895
B31: En el departamento Capital están incluidas además de las provinciales, las unidades educativas nacionales, al igual que sus alumnos y personal docente.

Sheet CSC4.4 A (hidden)
B2: CUADRO 4.4. A Sector estatal. Alumnos por ámbito y sexo, según departamento
B3: Departamento | C3: Urbano | F3: Rural
C4: Total | D4: Mujeres | E4: Varones | F4: Total | G4: Mujeres | H4: Varones
B5: Total Córdoba | C5: 178474 | D5: 84520 | E5: 93954 | F5: 21546 | G5: 10734 | H5: 10812
B6: Calamuchita | C6: 3402 | D6: 1473 | E6: 1929 | F6: 605 | G6: 302 | H6: 303
B7: Capital | C7: 72588 | D7: 34757 | E7: 37831
B8: Colón | C8: 13933 | D8: 6557 | E8: 7376 | F8: 2433 | G8: 1219 | H8: 1214
B9: Cruz del Eje | C9: 3509 | D9: 1718 | E9: 1791 | F9: 1041 | G9: 530 | H9: 511
B10: General Roca | C10: 2328 | D10: 1223 | E10: 1105 | F10: 218 | G10: 115 | H10: 103
B11: General San Martín | C11: 5426 | D11: 2280 | E11: 3146 | F11: 663 | G11: 294 | H11: 369
B12: Ischilín | C12: 2461 | D12: 1119 | E12: 1342 | F12: 277 | G12: 131 | H12: 146
B13: Juárez Celman | C13: 3082 | D13: 1417 | E13: 1665 | F13: 344 | G13: 192 | H13: 152
B14: Marcos Juárez | C14: 4639 | D14: 2027 | E14: 2612 | F14: 16 | G14: 8 | H14: 8
B15: Minas | F15: 491 | G15: 244 | H15: 247
B16: Pocho | F16: 403 | G16: 193 | H16: 210
B17: Pte. Roque Sáenz Peña | C17: 2263 | D17: 1121 | E17: 1142 | F17: 420 | G17: 219 | H17: 201
B18: Punilla | C18: 9847 | D18: 4722 | E18: 5125 | F18: 1235 | G18: 618 | H18: 617
B19: Río Cuarto | C19: 11710 | D19: 5582 | E19: 6128 | F19: 1362 | G19: 721 | H19: 641
B20: Río Primero | C20: 2550 | D20: 1195 | E20: 1355 | F20: 1256 | G20: 573 | H20: 683
B21: Río Seco | C21: 1120 | D21: 583 | E21: 537 | F21: 477 | G21: 250 | H21: 227
B22: Río Segundo | C22: 5223 | D22: 2306 | E22: 2917 | F22: 1025 | G22: 514 | H22: 511
B23: San Alberto | C23: 1667 | D23: 790 | E23: 877 | F23: 1249 | G23: 617 | H23: 632
B24: San Javier | C24: 3441 | D24: 1657 | E24: 1784 | F24: 1353 | G24: 663 | H24: 690
B25: San Justo | C25: 10735 | D25: 4999 | E25: 5736 | F25: 2210 | G25: 1158 | H25: 1052
B26: Santa María | C26: 6424 | D26: 3182 | E26: 3242 | F26: 1695 | G26: 773 | H26: 922
B27: Sobremonte | C27: 383 | D27: 203 | E27: 180 | F27: 98 | G27: 62 | H27: 36
B28: Tercero Arriba | C28: 5138 | D28: 2437 | E28: 2701 | F28: 485 | G28: 223 | H28: 262
B29: Totoral | C29: 1205 | D29: 562 | E29: 643 | F29: 577 | G29: 297 | H29: 280
B30: Tulumba | C30: 483 | D30: 247 | E30: 236 | F30: 611 | G30: 296 | H30: 315
B31: Unión | C31: 4917 | D31: 2363 | E31: 2554 | F31: 1002 | G31: 522 | H31: 480
B32: En el departamento Capital están incluidas además de las provinciales, las unidades educativas nacionales, al igual que sus alumnos y personal docente.

Sheet CSC4.4 B (hidden)
B2: CUADRO 4.4. B Sector privado. Alumnos por ámbito y sexo, según departamento
B3: Departamento | C3: Urbano | F3: Rural
C4: Total | D4: Mujeres | E4: Varones | F4: Total | G4: Mujeres | H4: Varones
B5: Total Córdoba | C5: 127987 | D5: 68743 | E5: 59244 | F5: 4706 | G5: 2401 | H5: 2305
B6: Calamuchita | C6: 2250 | D6: 1267 | E6: 983 | F6: 210 | G6: 121 | H6: 89
B7: Capital | C7: 56858 | D7: 29722 | E7: 27136
B8: Colón | C8: 8899 | D8: 4864 | E8: 4035
B9: Cruz del Eje | C9: 1501 | D9: 881 | E9: 620 | F9: 208 | G9: 109 | H9: 99
B10: General Roca | C10: 334 | D10: 193 | E10: 141 | F10: 307 | G10: 162 | H10: 145
B11: General San Martín | C11: 6344 | D11: 3475 | E11: 2869 | F11: 551 | G11: 275 | H11: 276
B12: Ischilín | C12: 807 | D12: 466 | E12: 341 | F12: 0 | G12: 0 | H12: 0
B13: Juárez Celman | C13: 2437 | D13: 1281 | E13: 1156 | F13: 509 | G13: 263 | H13: 246
B14: Marcos Juárez | C14: 3672 | D14: 2035 | E14: 1637 | F14: 219 | G14: 80 | H14: 139
B15: Minas
B16: Pocho
B17: Pte. Roque Sáenz Peña | C17: 866 | D17: 457 | E17: 409
B18: Punilla | C18: 8009 | D18: 4176 | E18: 3833 | F18: 20 | G18: 10 | H18: 10
B19: Río Cuarto | C19: 9884 | D19: 5347 | E19: 4537 | F19: 297 | G19: 80 | H19: 217
B20: Río Primero | C20: 1810 | D20: 1075 | E20: 735
B21: Río Seco
B22: Río Segundo | C22: 3964 | D22: 2214 | E22: 1750 | F22: 243 | G22: 144 | H22: 99
B23: San Alberto | C23: 950 | D23: 466 | E23: 484
B24: San Javier | C24: 1424 | D24: 790 | E24: 634 | F24: 168 | G24: 112 | H24: 56
B25: San Justo | C25: 6394 | D25: 3687 | E25: 2707 | F25: 1023 | G25: 496 | H25: 527
B26: Santa María | C26: 3517 | D26: 1861 | E26: 1656
B27: Sobremonte
B28: Tercero Arriba | C28: 4333 | D28: 2396 | E28: 1937 | F28: 241 | G28: 123 | H28: 118
B29: Totoral | F29: 195 | G29: 128 | H29: 67
B30: Tulumba
B31: Unión | C31: 3734 | D31: 2090 | E31: 1644 | F31: 515 | G31: 298 | H31: 217
B32: Los departamento de Minas, Pocho, Río Seco, Sobremonte y Tulumba no cuentan con oferta del sector privado.

Sheet CSC4.5 (hidden)
B2: CUADRO 4.5 Alumnos por año de estudio, según departamento
B3: Departamento | C3: Total | D3: 1º | E3: 2º | F3: 3º | G3: 4º | H3: 5º | I3: 6º | J3: 7º
B4: Total Córdoba | C4: 332713 | D4: 64843 | E4: 63105 | F4: 61151 | G4: 53563 | H4: 44770 | I4: 39456 | J4: 5825
B5: Calamuchita | C5: 6467 | D5: 1316 | E5: 1249 | F5: 1190 | G5: 1011 | H5: 810 | I5: 723 | J5: 168
B6: Capital | C6: 129446 | D6: 25199 | E6: 24405 | F6: 24009 | G6: 21153 | H6: 17727 | I6: 15791 | J6: 1162
B7: Colón | C7: 25265 | D7: 5053 | E7: 4706 | F7: 4656 | G7: 4001 | H7: 3389 | I7: 2975 | J7: 485
B8: Cruz del Eje | C8: 6259 | D8: 1232 | E8: 1195 | F8: 1181 | G8: 1041 | H8: 799 | I8: 691 | J8: 120
B9: General Roca | C9: 3187 | D9: 646 | E9: 640 | F9: 525 | G9: 483 | H9: 452 | I9: 389 | J9: 52
B10: General San Martín | C10: 12984 | D10: 2567 | E10: 2461 | F10: 2292 | G10: 2119 | H10: 1752 | I10: 1552 | J10: 241
B11: Ischilín | C11: 3545 | D11: 739 | E11: 678 | F11: 658 | G11: 528 | H11: 432 | I11: 388 | J11: 122
B12: Juárez Celman | C12: 6372 | D12: 1203 | E12: 1183 | F12: 1142 | G12: 1030 | H12: 859 | I12: 715 | J12: 240
B13: Marcos Juárez | C13: 8546 | D13: 1698 | E13: 1660 | F13: 1480 | G13: 1343 | H13: 1110 | I13: 1007 | J13: 248
B14: Minas | C14: 491 | D14: 87 | E14: 80 | F14: 107 | G14: 84 | H14: 69 | I14: 54 | J14: 10
B15: Pocho | C15: 403 | D15: 84 | E15: 69 | F15: 87 | G15: 69 | H15: 46 | I15: 35 | J15: 13
B16: Pte. Roque Sáenz Peña | C16: 3549 | D16: 678 | E16: 640 | F16: 652 | G16: 591 | H16: 457 | I16: 415 | J16: 116
B17: Punilla | C17: 19111 | D17: 3625 | E17: 3712 | F17: 3447 | G17: 3143 | H17: 2633 | I17: 2226 | J17: 325
B18: Río Cuarto | C18: 23253 | D18: 4674 | E18: 4494 | F18: 4248 | G18: 3688 | H18: 2976 | I18: 2746 | J18: 427
B19: Río Primero | C19: 5616 | D19: 1064 | E19: 969 | F19: 1008 | G19: 938 | H19: 775 | I19: 689 | J19: 173
B20: Río Seco | C20: 1597 | D20: 317 | E20: 285 | F20: 310 | G20: 248 | H20: 233 | I20: 163 | J20: 41
B21: Río Segundo | C21: 10455 | D21: 1932 | E21: 1952 | F21: 1999 | G21: 1621 | H21: 1445 | I21: 1258 | J21: 248
B22: San Alberto | C22: 3866 | D22: 698 | E22: 761 | F22: 720 | G22: 612 | H22: 505 | I22: 474 | J22: 96
B23: San Javier | C23: 6386 | D23: 1228 | E23: 1182 | F23: 1262 | G23: 1042 | H23: 811 | I23: 780 | J23: 81
B24: San Justo | C24: 20362 | D24: 4048 | E24: 3993 | F24: 3653 | G24: 3147 | H24: 2726 | I24: 2373 | J24: 422
B25: Santa María | C25: 11636 | D25: 2305 | E25: 2248 | F25: 2140 | G25: 1849 | H25: 1536 | I25: 1299 | J25: 259
B26: Sobremonte | C26: 481 | D26: 108 | E26: 107 | F26: 78 | G26: 72 | H26: 64 | I26: 42 | J26: 10
B27: Tercero Arriba | C27: 10197 | D27: 1895 | E27: 1918 | F27: 1885 | G27: 1620 | H27: 1442 | I27: 1170 | J27: 267
B28: Totoral | C28: 1977 | D28: 359 | E28: 407 | F28: 355 | G28: 311 | H28: 247 | I28: 227 | J28: 71
B29: Tulumba | C29: 1094 | D29: 185 | E29: 214 | F29: 207 | G29: 180 | H29: 140 | I29: 99 | J29: 69
B30: Unión | C30: 10168 | D30: 1903 | E30: 1897 | F30: 1860 | G30: 1639 | H30: 1335 | I30: 1175 | J30: 359
B31: En el departamento Capital están incluidas además de las provinciales, las unidades educativas nacionales, al igual que sus alumnos y personal docente.

Sheet CSC4.5. A (hidden)
B2: CUADRO 4.5. A Ciclo básico. Alumnos por año de estudio y sexo, según departamento
B3: Departamento | C3: Total (*) | E3: 1° | G3: 2° | I3: 3°
C4: Mujeres | D4: Varones | E4: Mujeres | F4: Varones | G4: Mujeres | H4: Varones | I4: Mujeres | J4: Varones
B5: Total Córdoba | C5: 92850 | D5: 96249 | E5: 31082 | F5: 33761 | G5: 31132 | H5: 31973 | I5: 30636 | J5: 30515
B6: Calamuchita | C6: 1794 | D6: 1961 | E6: 599 | F6: 717 | G6: 621 | H6: 628 | I6: 574 | J6: 616
B7: Capital | C7: 36190 | D7: 37423 | E7: 12205 | F7: 12994 | G7: 12062 | H7: 12343 | I7: 11923 | J7: 12086
B8: Colón | C8: 7037 | D8: 7378 | E8: 2406 | F8: 2647 | G8: 2298 | H8: 2408 | I8: 2333 | J8: 2323
B9: Cruz del Eje | C9: 1807 | D9: 1801 | E9: 598 | F9: 634 | G9: 602 | H9: 593 | I9: 607 | J9: 574
B10: General Roca | C10: 945 | D10: 866 | E10: 295 | F10: 351 | G10: 345 | H10: 295 | I10: 305 | J10: 220
B11: General San Martín | C11: 3483 | D11: 3837 | E11: 1183 | F11: 1384 | G11: 1150 | H11: 1311 | I11: 1150 | J11: 1142
B12: Ischilín | C12: 1010 | D12: 1065 | E12: 346 | F12: 393 | G12: 344 | H12: 334 | I12: 320 | J12: 338
B13: Juárez Celman | C13: 1724 | D13: 1804 | E13: 586 | F13: 617 | G13: 562 | H13: 621 | I13: 576 | J13: 566
B14: Marcos Juárez | C14: 2356 | D14: 2482 | E14: 816 | F14: 882 | G14: 830 | H14: 830 | I14: 710 | J14: 770
B15: Minas | C15: 121 | D15: 153 | E15: 41 | F15: 46 | G15: 33 | H15: 47 | I15: 47 | J15: 60
B16: Pocho | C16: 115 | D16: 125 | E16: 41 | F16: 43 | G16: 30 | H16: 39 | I16: 44 | J16: 43
B17: Pte. Roque Sáenz Peña | C17: 1002 | D17: 968 | E17: 315 | F17: 363 | G17: 341 | H17: 299 | I17: 346 | J17: 306
B18: Punilla | C18: 5333 | D18: 5451 | E18: 1772 | F18: 1853 | G18: 1824 | H18: 1888 | I18: 1737 | J18: 1710
B19: Río Cuarto | C19: 6619 | D19: 6797 | E19: 2207 | F19: 2467 | G19: 2219 | H19: 2275 | I19: 2193 | J19: 2055
B20: Río Primero | C20: 1513 | D20: 1528 | E20: 512 | F20: 552 | G20: 484 | H20: 485 | I20: 517 | J20: 491
B21: Río Seco | C21: 467 | D21: 445 | E21: 158 | F21: 159 | G21: 155 | H21: 130 | I21: 154 | J21: 156
B22: Río Segundo | C22: 2848 | D22: 3035 | E22: 893 | F22: 1039 | G22: 973 | H22: 979 | I22: 982 | J22: 1017
B23: San Alberto | C23: 1000 | D23: 1179 | E23: 297 | F23: 401 | G23: 356 | H23: 405 | I23: 347 | J23: 373
B24: San Javier | C24: 1776 | D24: 1896 | E24: 587 | F24: 641 | G24: 588 | H24: 594 | I24: 601 | J24: 661
B25: San Justo | C25: 5830 | D25: 5864 | E25: 2004 | F25: 2044 | G25: 1977 | H25: 2016 | I25: 1849 | J25: 1804
B26: Santa María | C26: 3227 | D26: 3466 | E26: 1093 | F26: 1212 | G26: 1064 | H26: 1184 | I26: 1070 | J26: 1070
B27: Sobremonte | C27: 166 | D27: 127 | E27: 51 | F27: 57 | G27: 63 | H27: 44 | I27: 52 | J27: 26
B28: Tercero Arriba | C28: 2828 | D28: 2870 | E28: 906 | F28: 989 | G28: 966 | H28: 952 | I28: 956 | J28: 929
B29: Totoral | C29: 536 | D29: 585 | E29: 169 | F29: 190 | G29: 199 | H29: 208 | I29: 168 | J29: 187
B30: Tulumba | C30: 282 | D30: 324 | E30: 67 | F30: 118 | G30: 107 | H30: 107 | I30: 108 | J30: 99
B31: Unión | C31: 2841 | D31: 2819 | E31: 935 | F31: 968 | G31: 939 | H31: 958 | I31: 967 | J31: 893
B32: (*) Cabe aclarar que la suma de los alumnos matriculados en el ciclo básico y de los alumnos del ciclo orientado corresponde al total de la matrícula en el nivel secundario.
B33: En el departamento Capital están incluidas además de las provinciales, las unidades educativas nacionales, al igual que sus alumnos y personal docente.

Sheet CSC4.5.B (hidden)
B2: CUADRO 4.5. B Ciclo orientado. Alumnos por año de estudio y sexo, según departamento
B3: Departamento | C3: Total (*) | E3: 4° | G3: 5° | I3: 6° | K3: 7°
C4: Mujeres | D4: Varones | E4: Mujeres | F4: Varones | G4: Mujeres | H4: Varones | I4: Mujeres | J4: Varones | K4: Mujeres | L4: Varones
B5: Total Córdoba | C5: 73548 | D5: 70066 | E5: 26949 | F5: 26614 | G5: 23372 | H5: 21398 | I5: 21147 | J5: 18309 | K5: 2080 | L5: 3745
B6: Calamuchita | C6: 1369 | D6: 1343 | E6: 503 | F6: 508 | G6: 412 | H6: 398 | I6: 379 | J6: 344 | K6: 75 | L6: 93
B7: Capital | C7: 28289 | D7: 27544 | E7: 10548 | F7: 10605 | G7: 9148 | H7: 8579 | I7: 8331 | J7: 7460 | K7: 262 | L7: 900
B8: Colón | C8: 5603 | D8: 5247 | E8: 2025 | F8: 1976 | G8: 1789 | H8: 1600 | I8: 1626 | J8: 1349 | K8: 163 | L8: 322
B9: Cruz del Eje | C9: 1431 | D9: 1220 | E9: 523 | F9: 518 | G9: 453 | H9: 346 | I9: 390 | J9: 301 | K9: 65 | L9: 55
B10: General Roca | C10: 748 | D10: 628 | E10: 258 | F10: 225 | G10: 257 | H10: 195 | I10: 219 | J10: 170 | K10: 14 | L10: 38
B11: General San Martín | C11: 2841 | D11: 2823 | E11: 1033 | F11: 1086 | G11: 907 | H11: 845 | I11: 814 | J11: 738 | K11: 87 | L11: 154
B12: Ischilín | C12: 706 | D12: 764 | E12: 261 | F12: 267 | G12: 201 | H12: 231 | I12: 199 | J12: 189 | K12: 45 | L12: 77
B13: Juárez Celman | C13: 1429 | D13: 1415 | E13: 507 | F13: 523 | G13: 436 | H13: 423 | I13: 383 | J13: 332 | K13: 103 | L13: 137
B14: Marcos Juárez | C14: 1794 | D14: 1914 | E14: 641 | F14: 702 | G14: 566 | H14: 544 | I14: 503 | J14: 504 | K14: 84 | L14: 164
B15: Minas | C15: 123 | D15: 94 | E15: 40 | F15: 44 | G15: 43 | H15: 26 | I15: 33 | J15: 21 | K15: 7 | L15: 3
B16: Pocho | C16: 78 | D16: 85 | E16: 30 | F16: 39 | G16: 22 | H16: 24 | I16: 19 | J16: 16 | K16: 7 | L16: 6
B17: Pte. Roque Sáenz Peña | C17: 795 | D17: 784 | E17: 295 | F17: 296 | G17: 231 | H17: 226 | I17: 228 | J17: 187 | K17: 41 | L17: 75
B18: Punilla | C18: 4193 | D18: 4134 | E18: 1545 | F18: 1598 | G18: 1340 | H18: 1293 | I18: 1211 | J18: 1015 | K18: 97 | L18: 228
B19: Río Cuarto | C19: 5111 | D19: 4726 | E19: 1903 | F19: 1785 | G19: 1558 | H19: 1418 | I19: 1483 | J19: 1263 | K19: 167 | L19: 260
B20: Río Primero | C20: 1330 | D20: 1245 | E20: 486 | F20: 452 | G20: 394 | H20: 381 | I20: 361 | J20: 328 | K20: 89 | L20: 84
B21: Río Seco | C21: 366 | D21: 319 | E21: 129 | F21: 119 | G21: 130 | H21: 103 | I21: 82 | J21: 81 | K21: 25 | L21: 16
B22: Río Segundo | C22: 2330 | D22: 2242 | E22: 827 | F22: 794 | G22: 742 | H22: 703 | I22: 687 | J22: 571 | K22: 74 | L22: 174
B23: San Alberto | C23: 873 | D23: 814 | E23: 320 | F23: 292 | G23: 253 | H23: 252 | I23: 263 | J23: 211 | K23: 37 | L23: 59
B24: San Javier | C24: 1446 | D24: 1268 | E24: 555 | F24: 487 | G24: 436 | H24: 375 | I24: 432 | J24: 348 | K24: 23 | L24: 58
B25: San Justo | C25: 4510 | D25: 4158 | E25: 1611 | F25: 1536 | G25: 1442 | H25: 1284 | I25: 1311 | J25: 1062 | K25: 146 | L25: 276
B26: Santa María | C26: 2589 | D26: 2354 | E26: 960 | F26: 889 | G26: 829 | H26: 707 | I26: 674 | J26: 625 | K26: 126 | L26: 133
B27: Sobremonte | C27: 99 | D27: 89 | E27: 37 | F27: 35 | G27: 38 | H27: 26 | I27: 22 | J27: 20 | K27: 2 | L27: 8
B28: Tercero Arriba | C28: 2351 | D28: 2148 | E28: 807 | F28: 813 | G28: 767 | H28: 675 | I28: 669 | J28: 501 | K28: 108 | L28: 159
B29: Totoral | C29: 451 | D29: 405 | E29: 163 | F29: 148 | G29: 130 | H29: 117 | I29: 129 | J29: 98 | K29: 29 | L29: 42
B30: Tulumba | C30: 261 | D30: 227 | E30: 94 | F30: 86 | G30: 86 | H30: 54 | I30: 47 | J30: 52 | K30: 34 | L30: 35
B31: Unión | C31: 2432 | D31: 2076 | E31: 848 | F31: 791 | G31: 762 | H31: 573 | I31: 652 | J31: 523 | K31: 170 | L31: 189
B32: (*) Cabe aclarar que la suma de los alumnos matriculados en el ciclo básico y de los alumnos del ciclo orientado corresponde al total de la matrícula en el nivel secundario.
B33: En el departamento Capital están incluidas además de las provinciales, las unidades educativas nacionales, al igual que sus alumnos y personal docente.

Sheet CSC4.6 (hidden)
B2: CUADRO 4.6 Total de alumnos, total y porcentaje de alumnosrepetidores y con sobreedad, según departamento
B3: Departamento | C3: Alumnos | D3: Alumnos repetidores | E3: Porcentaje de repetidores | F3: Alumnos con sobreedad | G3: Porcentaje de sobreedad
B4: Total Córdoba | C4: 332713 | D4: 22484 | E4: 6.757776222 | F4: 76637 | G4: 23.03396621
B5: Calamuchita | C5: 6467 | D5: 368 | E5: 5.690428328 | F5: 1579 | G5: 24.4162672
B6: Capital | C6: 129446 | D6: 8883 | E6: 6.862320968 | F6: 31716 | G6: 24.50133646
B7: Colón | C7: 25265 | D7: 1664 | E7: 6.586186424 | F7: 5999 | G7: 23.74431031
B8: Cruz del Eje | C8: 6259 | D8: 446 | E8: 7.125738936 | F8: 1560 | G8: 24.92410928
B9: General Roca | C9: 3187 | D9: 304 | E9: 9.538751177 | F9: 647 | G9: 20.30122372
B10: General San Martín | C10: 12984 | D10: 837 | E10: 6.446395564 | F10: 2908 | G10: 22.39679606
B11: Ischilín | C11: 3545 | D11: 244 | E11: 6.882933709 | F11: 890 | G11: 25.10578279
B12: Juárez Celman | C12: 6372 | D12: 358 | E12: 5.618330195 | F12: 1348 | G12: 21.15505336
B13: Marcos Juárez | C13: 8546 | D13: 571 | E13: 6.681488416 | F13: 1689 | G13: 19.76363211
B14: Minas | C14: 491 | D14: 54 | E14: 10.99796334 | F14: 179 | G14: 36.45621181
B15: Pocho | C15: 403 | D15: 32 | E15: 7.94044665 | F15: 87 | G15: 21.58808933
B16: Pte. Roque Sáenz Peña | C16: 3549 | D16: 201 | E16: 5.663567202 | F16: 603 | G16: 16.99070161
B17: Punilla | C17: 19111 | D17: 1265 | E17: 6.61922453 | F17: 3977 | G17: 20.81000471
B18: Río Cuarto | C18: 23253 | D18: 1477 | E18: 6.351868576 | F18: 4986 | G18: 21.44239453
B19: Río Primero | C19: 5616 | D19: 319 | E19: 5.68019943 | F19: 1000 | G19: 17.80626781
B20: Río Seco | C20: 1597 | D20: 81 | E20: 5.072010019 | F20: 348 | G20: 21.79085786
B21: Río Segundo | C21: 10455 | D21: 584 | E21: 5.585844094 | F21: 2024 | G21: 19.3591583
B22: San Alberto | C22: 3866 | D22: 318 | E22: 8.22555613 | F22: 1139 | G22: 29.4619762
B23: San Javier | C23: 6386 | D23: 541 | E23: 8.471656749 | F23: 2004 | G23: 31.38114626
B24: San Justo | C24: 20362 | D24: 1280 | E24: 6.286219428 | F24: 3761 | G24: 18.47068068
B25: Santa María | C25: 11636 | D25: 1005 | E25: 8.636988656 | F25: 2936 | G25: 25.2320385
B26: Sobremonte | C26: 481 | D26: 61 | E26: 12.68191268 | F26: 168 | G26: 34.92723493
B27: Tercero Arriba | C27: 10197 | D27: 702 | E27: 6.884377758 | F27: 2170 | G27: 21.28076885
B28: Totoral | C28: 1977 | D28: 173 | E28: 8.750632271 | F28: 536 | G28: 27.11178553
B29: Tulumba | C29: 1094 | D29: 95 | E29: 8.683729433 | F29: 295 | G29: 26.96526508
B30: Unión | C30: 10168 | D30: 621 | E30: 6.107395751 | F30: 2088 | G30: 20.5350118
B31: En el departamento Capital están incluidas, además de las provinciales, las unidades educativas nacionales, al igual que sus alumnos y personal docente.

Sheet CSC4.7 (hidden)
B2: CUADRO 4.7 Total de alumnos, total y porcentaje de alumnos repetidores, por sexo, según año de estudio
B3: Año de estudio | C3: Alumnos | F3: Alumnos repetidores | I3: Porcentaje de repetidores
C4: Total | D4: Mujeres | E4: Varones | F4: Total | G4: Mujeres | H4: Varones | I4: Total | J4: Mujeres | K4: Varones
B5: Total Córdoba | C5: 332713 | D5: 166398 | E5: 166315 | F5: 22484 | G5: 9428 | H5: 13056 | I5: 6.757776222 | J5: 5.665933485 | K5: 7.850163846
B6: 1° | C6: 64843 | D6: 31082 | E6: 33761 | F6: 5024 | G6: 1885 | H6: 3139 | I6: 7.747945036 | J6: 6.064603307 | K6: 9.297710376
B7: 2° | C7: 63105 | D7: 31132 | E7: 31973 | F7: 6331 | G7: 2694 | H7: 3637 | I7: 10.03248554 | J7: 8.653475524 | K7: 11.37522284
B8: 3° | C8: 61151 | D8: 30636 | E8: 30515 | F8: 5500 | G8: 2388 | H8: 3112 | I8: 8.994129287 | J8: 7.794751273 | K8: 10.19826315
B9: 4° | C9: 53563 | D9: 26949 | E9: 26614 | F9: 3633 | G9: 1502 | H9: 2131 | I9: 6.78266714 | J9: 5.573490668 | K9: 8.007063951
B10: 5° | C10: 44770 | D10: 23372 | E10: 21398 | F10: 1574 | G10: 726 | H10: 848 | I10: 3.515747152 | J10: 3.10628102 | K10: 3.962987195
B11: 6° | C11: 39456 | D11: 21147 | E11: 18309 | F11: 412 | G11: 225 | H11: 187 | I11: 1.044201135 | J11: 1.063980706 | K11: 1.021355617
B12: 7° | C12: 5825 | D12: 2080 | E12: 3745 | F12: 10 | G12: 8 | H12: 2 | I12: 0.1716738197 | J12: 0.3846153846 | K12: 0.05340453939

Sheet CSC4.8 (hidden)
B2: CUADRO 4.8 Total de alumnos, total y porcentaje de alumnos con sobreedad, según año de estudio
B3: Año de estudio | C3: Alumnos | D3: Alumnos con sobreedad | E3: Porcentaje de sobreedad
B4: Total Córdoba | C4: 332713 | D4: 76637 | E4: 23.03396621
B5: Total Córdoba | C5: =SUM(C6:C12) -> 332713 | D5: =SUM(D6:D12) -> 76637 | E5: =D5/C5*100 -> 23.03396621
B6: 1° | C6: 64843 | D6: 13056 | E6: 20.1347871
B7: 2° | C7: 63105 | D7: 14660 | E7: 23.23112273
B8: 3° | C8: 61151 | D8: 16480 | E8: 26.94968193
B9: 4° | C9: 53563 | D9: 14066 | E9: 26.26066501
B10: 5° | C10: 44770 | D10: 9380 | E10: 20.95153004
B11: 6° | C11: 39456 | D11: 7939 | E11: 20.12114761
B12: 7° | C12: 5825 | D12: 1056 | E12: 18.12875536

Sheet CSC4.9 (hidden)
B2: CUADRO 3.4 Tasa de promoción, de no promoción y de abandono anual, por año de estudio, según ciclo lectivo
B3: Ciclo lectivo | C3: Indicadores | D3: Total | E3: 1° | F3: 2° | G3: 3° | H3: 4° | I3: 5° | J3: 6° | K3: 7°
B4: 2014 | C4: Tasa de promoción | D4: 81.02488925 | E4: 81.18887066 | F4: 79.50686503 | G4: 79.7925627 | H4: 81.51883354 | I4: 87.95463138 | J4: 77.01339964
C5: Tasa de no promoción | D5: 13.46725735 | E5: 11.30095377 | F5: 14.28594183 | G5: 13.93122002 | H5: 13.14499797 | I5: 8.254568368 | J5: 21.41732283
C6: Tasa de abandono | D6: 5.507853403 | E6: 7.510175566 | F6: 6.207193145 | G6: 6.276217278 | H6: 5.336168489 | I6: 3.790800252 | J6: 1.569277525
B7: 2015 | C7: Tasa de promoción | D7: 81.3180245 | E7: 82.23907848 | F7: 79.11091649 | G7: 80.49705938 | H7: 81.28219002 | I7: 88.01652893 | J7: 76.60730456 | K7: 85.30243075
C8: Tasa de no promoción | D8: 13.6756229 | E8: 11.62290142 | F8: 14.85265736 | G8: 13.88903261 | H8: 13.10246698 | I8: 8.325590493 | J8: 21.53774387 | K8: 16.35575655
C9: Tasa de abandono | D9: 5.006352604 | E9: 6.138020099 | F9: 6.03642615 | G9: 5.613908004 | H9: 5.615342993 | I9: 3.657880581 | J9: 1.854951568 | K9: -1.6581873
B10: 2016 | C10: Tasa de promoción | D10: 81.24434641 | E10: 81.80162033 | F10: 79.71373173 | G10: 80.44193452 | H10: 81.49263129 | I10: 88.26288809 | J10: 75.65987883 | K10: 83.37996642
C11: Tasa de no promoción | D11: 13.78638431 | E11: 11.29345202 | F11: 14.53725744 | G11: 13.82452807 | H11: 13.79493536 | I11: 8.405068188 | J11: 22.64805573 | K11: 15.38891998
C12: Tasa de abandono | D12: 4.969269278 | E12: 6.904927648 | F12: 5.74901083 | G12: 5.733537411 | H12: 4.712433347 | I12: 3.332043718 | J12: 1.692065441 | K12: 1.231113598
B13: 2017 | C13: Tasa de promoción | D13: 82.2028886 | E13: 83.07687755 | F13: 80.78874033 | G13: 81.18619514 | H13: 82.75313941 | I13: 89.31032855 | J13: 75.6144907 | K13: 84.67275778
C14: Tasa de no promoción | D14: 13.21322518 | E14: 10.57584187 | F14: 13.93211635 | G14: 13.50489987 | H14: 12.46026069 | I14: 7.859705438 | J14: 22.97946014 | K14: 14.63732985
C15: Tasa de abandono | D15: 4.583886221 | E15: 6.347280582 | F15: 5.279143313 | G15: 5.308904985 | H15: 4.786599905 | I15: 2.829966012 | J15: 1.406049159 | K15: 0.6899123625
B16: 2018 | C16: Tasa de promoción | D16: 84.1 | E16: 85.3 | F16: 83.5 | G16: 83.5 | H16: 84.5 | I16: 90 | J16: 77.1 | K16: 83.3
C17: Tasa de no promoción | D17: 12.2 | E17: 9.7 | F17: 12.1 | G17: 12.5 | H17: 11.5 | I17: 7.6 | J17: 21.9 | K17: 16.4
C18: Tasa de abandono | D18: 3.7 | E18: 5 | F18: 4.4 | G18: 4 | H18: 4 | I18: 2.5 | J18: 1 | K18: 0.3

Sheet CSC4.10 (hidden)
B2: CUADRO 4.10 Alumnos egresados del ciclo lectivo 2018, por sector y sexo, según departamento
B3: Departamento | C3: Total general | F3: Estatal | I3: Privado
C4: Total | D4: Mujeres | E4: Varones | F4: Total | G4: Mujeres | H4: Varones | I4: Total | J4: Mujeres | K4: Varones
B5: Total Córdoba | C5: 32390 | D5: 18121 | E5: 14269 | F5: 16929 | G5: 9153 | H5: 7776 | I5: 15461 | J5: 8968 | K5: 6493
B6: Calamuchita | C6: 531 | D6: 301 | E6: 230 | F6: 253 | G6: 140 | H6: 113 | I6: 278 | J6: 161 | K6: 117
B7: Capital | C7: 13102 | D7: 7191 | E7: 5911 | F7: 6433 | G7: 3434 | H7: 2999 | I7: 6669 | J7: 3757 | K7: 2912
B8: Colón | C8: 2324 | D8: 1315 | E8: 1009 | F8: 1237 | G8: 678 | H8: 559 | I8: 1087 | J8: 637 | K8: 450
B9: Cruz del Eje | C9: 643 | D9: 359 | E9: 284 | F9: 433 | G9: 230 | H9: 203 | I9: 210 | J9: 129 | K9: 81
B10: General Roca | C10: 311 | D10: 185 | E10: 126 | F10: 253 | G10: 139 | H10: 114 | I10: 58 | J10: 46 | K10: 12
B11: General San Martín | C11: 1321 | D11: 737 | E11: 584 | F11: 500 | G11: 240 | H11: 260 | I11: 821 | J11: 497 | K11: 324
B12: Ischilín | C12: 324 | D12: 182 | E12: 142 | F12: 248 | G12: 125 | H12: 123 | I12: 76 | J12: 57 | K12: 19
B13: Juárez Celman | C13: 565 | D13: 298 | E13: 267 | F13: 270 | G13: 123 | H13: 147 | I13: 295 | J13: 175 | K13: 120
B14: Marcos Juárez | C14: 812 | D14: 435 | E14: 377 | F14: 401 | G14: 218 | H14: 183 | I14: 411 | J14: 217 | K14: 194
B15: Minas | C15: 48 | D15: 25 | E15: 23 | F15: 48 | G15: 25 | H15: 23
B16: Pocho | C16: 26 | D16: 18 | E16: 8 | F16: 26 | G16: 18 | H16: 8
B17: Pte. Roque Sáenz Peña | C17: 290 | D17: 159 | E17: 131 | F17: 186 | G17: 93 | H17: 93 | I17: 104 | J17: 66 | K17: 38
B18: Punilla | C18: 1853 | D18: 1077 | E18: 776 | F18: 835 | G18: 475 | H18: 360 | I18: 1018 | J18: 602 | K18: 416
B19: Río Cuarto | C19: 2267 | D19: 1257 | E19: 1010 | F19: 1035 | G19: 563 | H19: 472 | I19: 1232 | J19: 694 | K19: 538
B20: Río Primero | C20: 536 | D20: 327 | E20: 209 | F20: 297 | G20: 178 | H20: 119 | I20: 239 | J20: 149 | K20: 90
B21: Río Seco | C21: 128 | D21: 72 | E21: 56 | F21: 128 | G21: 72 | H21: 56
B22: Río Segundo | C22: 1045 | D22: 604 | E22: 441 | F22: 544 | G22: 287 | H22: 257 | I22: 501 | J22: 317 | K22: 184
B23: San Alberto | C23: 376 | D23: 217 | E23: 159 | F23: 272 | G23: 166 | H23: 106 | I23: 104 | J23: 51 | K23: 53
B24: San Javier | C24: 654 | D24: 394 | E24: 260 | F24: 479 | G24: 286 | H24: 193 | I24: 175 | J24: 108 | K24: 67
B25: San Justo | C25: 2026 | D25: 1133 | E25: 893 | F25: 1170 | G25: 605 | H25: 565 | I25: 856 | J25: 528 | K25: 328
B26: Santa María | C26: 929 | D26: 539 | E26: 390 | F26: 548 | G26: 317 | H26: 231 | I26: 381 | J26: 222 | K26: 159
B27: Sobremonte | C27: 54 | D27: 31 | E27: 23 | F27: 54 | G27: 31 | H27: 23
B28: Tercero Arriba | C28: 1017 | D28: 570 | E28: 447 | F28: 494 | G28: 272 | H28: 222 | I28: 523 | J28: 298 | K28: 225
B29: Totoral | C29: 216 | D29: 111 | E29: 105 | F29: 191 | G29: 94 | H29: 97 | I29: 25 | J29: 17 | K29: 8
B30: Tulumba | C30: 102 | D30: 61 | E30: 41 | F30: 102 | G30: 61 | H30: 41
B31: Unión | C31: 890 | D31: 523 | E31: 367 | F31: 492 | G31: 283 | H31: 209 | I31: 398 | J31: 240 | K31: 158
B32: En el departamento Capital están incluidas además de las provinciales, las unidades educativas nacionales, al igual que sus alumnos y personal docente.

Sheet CSC4.11 A sec orient (hidden)
B2: CUADRO 4.11 A Secundaria orientada. Alumnos por sector y ámbito, según ciclo y orientación
B3: Ciclo | C3: Orientación | D3: Total general | G3: Estatal | J3: Privado
D4: Total | E4: Urbano | F4: Rural | G4: Total | H4: Urbano | I4: Rural | J4: Total | K4: Urbano | L4: Rural
B5: Total Córdoba | D5: 250581 | E5: 232800 | F5: 17781 | G5: 131270 | H5: 116701 | I5: 14569 | J5: 119311 | K5: 116099 | L5: 3212
B6: Ciclo Básico | D6: 138631 | E6: 128604 | F6: 10027 | G6: 75007 | H6: 66736 | I6: 8271 | J6: 63624 | K6: 61868 | L6: 1756
B7: Ciclo Orientado | C7: Artística | D7: 4088 | E7: 3902 | F7: 186 | G7: 2867 | H7: 2681 | I7: 186 | J7: 1221 | K7: 1221
C8: Humanidades y Ciencias Sociales | D8: 24821 | E8: 24654 | F8: 167 | G8: 11707 | H8: 11567 | I8: 140 | J8: 13114 | K8: 13087 | L8: 27
C9: Lenguas | D9: 1698 | E9: 1698 | G9: 522 | H9: 522 | J9: 1176 | K9: 1176
C10: Ciencias Naturales | D10: 19880 | E10: 19213 | F10: 667 | G10: 9499 | H10: 9346 | I10: 153 | J10: 10381 | K10: 9867 | L10: 514
C11: Economía y Administración (*) | D11: 38498 | E11: 36707 | F11: 1791 | G11: 17069 | H11: 15625 | I11: 1444 | J11: 21429 | K11: 21082 | L11: 347
C12: Informática | D12: 4104 | E12: 3704 | F12: 400 | G12: 2662 | H12: 2262 | I12: 400 | J12: 1442 | K12: 1442
C13: Comunicación | D13: 7104 | E13: 6947 | F13: 157 | G13: 3617 | H13: 3553 | I13: 64 | J13: 3487 | K13: 3394 | L13: 93
C14: Agro y Ambiente | D14: 5175 | E14: 1669 | F14: 3506 | G14: 3457 | H14: 426 | I14: 3031 | J14: 1718 | K14: 1243 | L14: 475
C15: Turismo | D15: 4522 | E15: 3642 | F15: 880 | G15: 3539 | H15: 2659 | I15: 880 | J15: 983 | K15: 983
C16: Educación Física | D16: 2060 | E16: 2060 | G16: 1324 | H16: 1324 | J16: 736 | K16: 736
B17: (*) Se incluyen 314 alumnos del sector estatal y del ámbito urbano que se encuentran matriculados en la orientación Economía y Gestión de las Organizaciones, dictada en establecimientos nacionales.

Sheet CSC4.11 B sec tecnica (hidden)
B2: CUADRO 4.11 B Secundaria técnica. Alumnos por sector y ámbito, según ciclo y título
B3: Ciclo | C3: Título | D3: Total general | G3: Estatal | J3: Privado
D4: Total | E4: Urbano | F4: Rural | G4: Total | H4: Urbano | I4: Rural | J4: Total | K4: Urbano | L4: Rural
B5: Total Córdoba | D5: 82059 | E5: 73588 | F5: 8471 | G5: 68677 | H5: 61700 | I5: 6977 | J5: 13382 | K5: 11888 | L5: 1494
B6: Ciclo Básico Técnico (*) | D6: 49867 | E6: 45028 | F6: 4839 | G6: 42115 | H6: 38113 | I6: 4002 | J6: 7752 | K6: 6915 | L6: 837
B7: Ciclo Orientado | C7: Maestro Mayor de Obras | D7: 3443 | E7: 3313 | F7: 130 | G7: 2782 | H7: 2652 | I7: 130 | J7: 661 | K7: 661
C8: Técnico Aviónico | D8: 146 | E8: 146 | G8: 146 | H8: 146
C9: Técnico Electricista | D9: 1077 | E9: 948 | F9: 129 | G9: 1004 | H9: 875 | I9: 129 | J9: 73 | K9: 73
C10: Técnico en Aeronáutica | D10: 268 | E10: 268 | G10: 268 | H10: 268
C11: Técnico en Automotores | D11: 1334 | E11: 1334 | G11: 1265 | H11: 1265 | J11: 69 | K11: 69
C12: Técnico en Electrónica | D12: 2491 | E12: 2491 | G12: 2039 | H12: 2039 | J12: 452 | K12: 452
C13: Técnico en Equipos e Instalaciones Electromecánicas | D13: 4591 | E13: 4591 | G13: 3961 | H13: 3961 | J13: 630 | K13: 630
C14: Técnico en Industria de los Alimentos | D14: 3692 | E14: 3328 | F14: 364 | G14: 3166 | H14: 2915 | I14: 251 | J14: 526 | K14: 413 | L14: 113
C15: Técnico en Industrialización de la Madera y el Mueble | D15: 657 | E15: 657 | G15: 580 | H15: 580 | J15: 77 | K15: 77
C16: Tecnico en Industrias de Procesos | D16: 1060 | E16: 1060 | G16: 898 | H16: 898 | J16: 162 | K16: 162
C17: Técnico en Informática Profesional y Personal | D17: 1622 | E17: 1522 | F17: 100 | G17: 1362 | H17: 1262 | I17: 100 | J17: 260 | K17: 260
C18: Técnico en Mantenimiento de Inmuebles en Zonas Turísticas | D18: 230 | E18: 230 | G18: 230 | H18: 230
C19: Técnico en Mecanización Agropecuaria | D19: 455 | E19: 357 | F19: 98 | G19: 455 | H19: 357 | I19: 98
C20: Técnico en Óptica Oftálmica e Instrumental | D20: 64 | E20: 64 | G20: 64 | H20: 64
C21: Técnico en Producción Agropecuaria | D21: 6962 | E21: 4426 | F21: 2536 | G21: 5473 | H21: 3481 | I21: 1992 | J21: 1489 | K21: 945 | L21: 544
C22: Técnico en Programación | D22: 862 | E22: 862 | G22: 519 | H22: 519 | J22: 343 | K22: 343
C23: Técnico Mecánico | D23: 1905 | E23: 1819 | F23: 86 | G23: 1387 | H23: 1301 | I23: 86 | J23: 518 | K23: 518
C24: Técnico Minero | D24: 343 | E24: 154 | F24: 189 | G24: 343 | H24: 154 | I24: 189
C25: Técnico Químico | D25: 990 | E25: 990 | G25: 620 | H25: 620 | J25: 370 | K25: 370
B26: (*) Existen escuelas que ofrecen tanto secundaria orientada como técnica. En algunos casos, los estudiantes que luego proseguirán sus estudios en la secundaria orientada cursan el ciclo básico técnico. Por esta razón la matrícula de este ciclo está sobrerregistrada, sin que haya posibilidad de discriminarla.
C61: =3/190 -> 0.01578947368

Sheet CSC4.12 A sec orient (hidden)
B2: CUADRO 4.12 A Secundaria orientada. Alumnos por sector y sexo, según ciclo y orientación
B3: Ciclo | C3: Orientación | D3: Total general | G3: Estatal | J3: Privado
D4: Total | E4: Mujeres | F4: Varones | G4: Total | H4: Mujeres | I4: Varones | J4: Total | K4: Mujeres | L4: Varones
B5: Total Córdoba | D5: 250581 | E5: 136480 | F5: 114101 | G5: 131270 | H5: 70001 | I5: 61269 | J5: 119311 | K5: 66479 | L5: 52832
B6: Ciclo Básico | D6: 138631 | E6: 74149 | F6: 64482 | G6: 75007 | H6: 38941 | I6: 36066 | J6: 63624 | K6: 35208 | L6: 28416
B7: Ciclo Orientado | C7: Artística | D7: 4088 | E7: 2421 | F7: 1667 | G7: 2867 | H7: 1659 | I7: 1208 | J7: 1221 | K7: 762 | L7: 459
C8: Humanidades y Ciencias Sociales | D8: 24821 | E8: 14294 | F8: 10527 | G8: 11707 | H8: 6478 | I8: 5229 | J8: 13114 | K8: 7816 | L8: 5298
C9: Lenguas | D9: 1698 | E9: 929 | F9: 769 | G9: 522 | H9: 321 | I9: 201 | J9: 1176 | K9: 608 | L9: 568
C10: Ciencias Naturales | D10: 19880 | E10: 11245 | F10: 8635 | G10: 9499 | H10: 5247 | I10: 4252 | J10: 10381 | K10: 5998 | L10: 4383
C11: Economía y Administración (*) | D11: 38498 | E11: 21003 | F11: 17495 | G11: 17069 | H11: 9482 | I11: 7587 | J11: 21429 | K11: 11521 | L11: 9908
C12: Informática | D12: 4104 | E12: 2008 | F12: 2096 | G12: 2662 | H12: 1379 | I12: 1283 | J12: 1442 | K12: 629 | L12: 813
C13: Comunicación | D13: 7104 | E13: 4145 | F13: 2959 | G13: 3617 | H13: 2060 | I13: 1557 | J13: 3487 | K13: 2085 | L13: 1402
C14: Agro y Ambiente | D14: 5175 | E14: 2695 | F14: 2480 | G14: 3457 | H14: 1780 | I14: 1677 | J14: 1718 | K14: 915 | L14: 803
C15: Turismo | D15: 4522 | E15: 2547 | F15: 1975 | G15: 3539 | H15: 1966 | I15: 1573 | J15: 983 | K15: 581 | L15: 402
C16: Educación Física | D16: 2060 | E16: 1044 | F16: 1016 | G16: 1324 | H16: 688 | I16: 636 | J16: 736 | K16: 356 | L16: 380
B17: (*) Se incluyen 314 alumnos del sector estatal y del ámbito urbano que se encuentran matriculados en la orientación Economía y Gestión de las Organizaciones, dictada en establecimientos nacionales.

Sheet CSC4.12 B sec técnica (hidden)
B2: CUADRO 4.12 B Secundaria técnica. Alumnos por sector y sexo, según ciclo y título
B3: Ciclo | C3: Título | D3: Total general | G3: Estatal | J3: Privado
D4: Total | E4: Mujeres | F4: Varones | G4: Total | H4: Mujeres | I4: Varones | J4: Total | K4: Mujeres | L4: Varones
B5: Total Córdoba | D5: 82059 | E5: 29882 | F5: 52177 | G5: 68677 | H5: 25217 | I5: 43460 | J5: 13382 | K5: 4665 | L5: 8717
B6: Ciclo Básico Técnico | D6: 49867 | E6: 18388 | F6: 31479 | G6: 42115 | H6: 15521 | I6: 26594 | J6: 7752 | K6: 2867 | L6: 4885
B7: Título | C7: Maestro Mayor de Obras | D7: 3443 | E7: 1279 | F7: 2164 | G7: 2782 | H7: 1071 | I7: 1711 | J7: 661 | K7: 208 | L7: 453
C8: Técnico Aviónico | D8: 146 | E8: 41 | F8: 105 | G8: 146 | H8: 41 | I8: 105 | K8: 0
C9: Técnico Electricista | D9: 1077 | E9: 363 | F9: 714 | G9: 1004 | H9: 355 | I9: 649 | J9: 73 | K9: 8 | L9: 65
C10: Técnico en Aeronáutica | D10: 268 | E10: 53 | F10: 215 | G10: 268 | H10: 53 | I10: 215 | K10: 0
C11: Técnico en Automotores | D11: 1334 | E11: 81 | F11: 1253 | G11: 1265 | H11: 71 | I11: 1194 | J11: 69 | K11: 10 | L11: 59
C12: Técnico en Electrónica | D12: 2491 | E12: 347 | F12: 2144 | G12: 2039 | H12: 315 | I12: 1724 | J12: 452 | K12: 32 | L12: 420
C13: Técnico en Equipos e Instalaciones Electromecánicas | D13: 4591 | E13: 1020 | F13: 3571 | G13: 3961 | H13: 920 | I13: 3041 | J13: 630 | K13: 100 | L13: 530
C14: Técnico en Industria de los Alimentos | D14: 3692 | E14: 2156 | F14: 1536 | G14: 3166 | H14: 1823 | I14: 1343 | J14: 526 | K14: 333 | L14: 193
C15: Técnico en Industrialización de la Madera y el Mueble | D15: 657 | E15: 202 | F15: 455 | G15: 580 | H15: 179 | I15: 401 | J15: 77 | K15: 23 | L15: 54
C16: Tecnico en Industrias de Procesos | D16: 1060 | E16: 505 | F16: 555 | G16: 898 | H16: 444 | I16: 454 | J16: 162 | K16: 61 | L16: 101
C17: Técnico en Informática Profesional y Personal | D17: 1622 | E17: 658 | F17: 964 | G17: 1362 | H17: 589 | I17: 773 | J17: 260 | K17: 69 | L17: 191
C18: Técnico en Mantenimiento de Inmuebles en Zonas Turísticas | D18: 230 | E18: 76 | F18: 154 | G18: 230 | H18: 76 | I18: 154 | K18: 0
C19: Técnico en Mecanización Agropecuaria | D19: 455 | E19: 160 | F19: 295 | G19: 455 | H19: 160 | I19: 295 | K19: 0
C20: Técnico en Óptica Oftálmica e Instrumental | D20: 64 | E20: 42 | F20: 22 | G20: 64 | H20: 42 | I20: 22 | K20: 0
C21: Técnico en Producción Agropecuaria | D21: 6962 | E21: 3210 | F21: 3752 | G21: 5473 | H21: 2615 | I21: 2858 | J21: 1489 | K21: 595 | L21: 894
C22: Técnico en Programación | D22: 862 | E22: 262 | F22: 600 | G22: 519 | H22: 193 | I22: 326 | J22: 343 | K22: 69 | L22: 274
C23: Técnico Mecánico | D23: 1905 | E23: 278 | F23: 1627 | G23: 1387 | H23: 218 | I23: 1169 | J23: 518 | K23: 60 | L23: 458
C24: Técnico Minero | D24: 343 | E24: 140 | F24: 203 | G24: 343 | H24: 140 | I24: 203 | K24: 0
C25: Técnico Químico | D25: 990 | E25: 621 | F25: 369 | G25: 620 | H25: 391 | I25: 229 | J25: 370 | K25: 230 | L25: 140

Sheet CSC4.13 A (hidden)
B2: CUADRO 4.13 A Secundaria orientada. Total de alumnos, total y porcentaje de alumnos repetidores y con sobreedad, según año de estudio
B3: Año de estudio | C3: Total de alumnos | D3: Total de alumnos repetidores | E3: Porcentaje de repetidores | F3: Total de alumnos con sobreedad | G3: Porcentaje de sobreedad
B4: Total Córdoba | C4: 250581 | D4: 15996 | E4: 6.383564596 | F4: 56383 | G4: 22.50090789
B5: 1° | C5: 47394 | D5: 3361 | E5: 7.091614972 | F5: 9252 | G5: 19.52145841
B6: 2° | C6: 46078 | D6: 4427 | E6: 9.607621859 | F6: 10124 | G6: 21.97143973
B7: 3° | C7: 45687 | D7: 3939 | E7: 8.621708582 | F7: 12060 | G7: 26.39700571
B8: 4° | C8: 42004 | D8: 2733 | E8: 6.506523188 | F8: 10808 | G8: 25.73088277
B9: 5° | C9: 36382 | D9: 1258 | E9: 3.457753834 | F9: 7510 | G9: 20.64207575
B10: 6° | C10: 33036 | D10: 278 | E10: 0.8415062356 | F10: 6629 | G10: 20.06598862

Sheet CSC4.13 B (hidden)
B2: CUADRO 4.13. B Secundaria técnica. Total de alumnos, total y porcentaje de alumnos repetidores y con sobreedad, según año de estudio
B3: Año de estudio | C3: Total de alumnos | D3: Total de alumnos repetidores | E3: Porcentaje de repetidores | F3: Total de alumnos con sobreedad | G3: Porcentaje de sobreedad
B4: Total Córdoba | C4: 82059 | D4: 6470 | E4: 7.884570858 | F4: 20207 | G4: 24.62496496
B5: 1° | C5: 17429 | D5: 1655 | E5: 9.495668139 | F5: 3796 | G5: 21.7797923
B6: 2° | C6: 17000 | D6: 1900 | E6: 11.17647059 | F6: 4514 | G6: 26.55294118
B7: 3° | C7: 15438 | D7: 1555 | E7: 10.07254826 | F7: 4403 | G7: 28.52053375
B8: 4° | C8: 11559 | D8: 900 | E8: 7.78614067 | F8: 3258 | G8: 28.18582922
B9: 5° | C9: 8388 | D9: 316 | E9: 3.7672866 | F9: 1870 | G9: 22.29375298
B10: 6° | C10: 6420 | D10: 135 | E10: 2.102803738 | F10: 1310 | G10: 20.40498442
B11: 7° | C11: 5825 | D11: 9 | E11: 0.1545064378 | F11: 1056 | G11: 18.12875536

Sheet CSC 4.14 A egre orientada (hidden)
B2: CUADRO 4.14 A Secundaria orientada. Alumnos egresados del ciclo lectivo 2018 por sector y sexo, según orientación
B3: Orientación | C3: Total general | F3: Estatal | I3: Privado
C4: Total | D4: Mujeres | E4: Varones | F4: Total | G4: Mujeres | H4: Varones | I4: Total | J4: Mujeres | K4: Varones
B5: Total Córdoba | C5: 27226 | D5: 16272 | E5: 10954 | F5: 12783 | G5: 7628 | H5: 5155 | I5: 14443 | J5: 8644 | K5: 5799
B6: Artística | C6: 905 | D6: 582 | E6: 323 | F6: 563 | G6: 360 | H6: 203 | I6: 342 | J6: 222 | K6: 120
B7: Humanidades y Ciencias Sociales | C7: 6662 | D7: 4053 | E7: 2609 | F7: 3122 | G7: 1813 | H7: 1309 | I7: 3540 | J7: 2240 | K7: 1300
B8: Lenguas | C8: 459 | D8: 273 | E8: 186 | F8: 122 | G8: 83 | H8: 39 | I8: 337 | J8: 190 | K8: 147
B9: Ciencias Naturales | C9: 5167 | D9: 3122 | E9: 2045 | F9: 2284 | G9: 1394 | H9: 890 | I9: 2883 | J9: 1728 | K9: 1155
B10: Economía y Administración (*) | C10: 9172 | D10: 5411 | E10: 3761 | F10: 3709 | G10: 2233 | H10: 1476 | I10: 5463 | J10: 3178 | K10: 2285
B11: Informática | C11: 744 | D11: 355 | E11: 389 | F11: 471 | G11: 233 | H11: 238 | I11: 273 | J11: 122 | K11: 151
B12: Comunicación | C12: 1754 | D12: 1073 | E12: 681 | F12: 872 | G12: 536 | H12: 336 | I12: 882 | J12: 537 | K12: 345
B13: Agro y Ambiente | C13: 1083 | D13: 631 | E13: 452 | F13: 757 | G13: 444 | H13: 313 | I13: 326 | J13: 187 | K13: 139
B14: Turismo | C14: 860 | D14: 539 | E14: 321 | F14: 621 | G14: 374 | H14: 247 | I14: 239 | J14: 165 | K14: 74
B15: Educación Física | C15: 420 | D15: 233 | E15: 187 | F15: 262 | G15: 158 | H15: 104 | I15: 158 | J15: 75 | K15: 83
B16: (*) Se incluyen 276 alumnos egresados de la orientación Economía y Gestión de las Organizaciones
B17: No se incluyen en este cuadro 66 egresados de planes con más de 20 años de antigüedad. Por lo tanto, la suma de este cuadro y el cuadro 4.14 B no coincide con el 4.10

Sheet CSC 4.14 B egre técnica (hidden)
B2: CUADRO 4.14 B Secundaria técnica. Alumnos egresados del ciclo lectivo 2018 por sector y sexo, según título
B3: Orientación/Título | C3: Total general | F3: Estatal | I3: Privado
C4: Total | D4: Mujeres | E4: Varones | F4: Total | G4: Mujeres | H4: Varones | I4: Total | J4: Mujeres | K4: Varones
B5: Total Córdoba | C5: 5097 | D5: 1809 | E5: 3288 | F5: 4103 | G5: 1499 | H5: 2604 | I5: 994 | J5: 310 | K5: 684
B6: Orientación Producción de Bienes y Servicios (*) | C6: 231 | D6: 69 | E6: 162 | F6: 197 | G6: 56 | H6: 141 | I6: 34 | J6: 13 | K6: 21
B7: Maestro Mayor de Obras | C7: 474 | D7: 168 | E7: 306 | F7: 358 | G7: 143 | H7: 215 | I7: 116 | J7: 25 | K7: 91
B8: Técnico Aviónico | C8: 35 | D8: 4 | E8: 31 | F8: 35 | G8: 4 | H8: 31
B9: Técnico Electricista | C9: 121 | D9: 30 | E9: 91 | F9: 109 | G9: 27 | H9: 82 | I9: 12 | J9: 3 | K9: 9
B10: Técnico en Aeronáutica | C10: 54 | D10: 6 | E10: 48 | F10: 54 | G10: 6 | H10: 48
B11: Técnico en Automotores | C11: 206 | D11: 9 | E11: 197 | F11: 200 | G11: 8 | H11: 192 | I11: 6 | J11: 1 | K11: 5
B12: Técnico en Electrónica | C12: 383 | D12: 51 | E12: 332 | F12: 315 | G12: 47 | H12: 268 | I12: 68 | J12: 4 | K12: 64
B13: Técnico en Equipos e Instalaciones Electromecánicas | C13: 722 | D13: 128 | E13: 594 | F13: 608 | G13: 112 | H13: 496 | I13: 114 | J13: 16 | K13: 98
B14: Técnico en Industria de los Alimentos | C14: 548 | D14: 354 | E14: 194 | F14: 439 | G14: 278 | H14: 161 | I14: 109 | J14: 76 | K14: 33
B15: Técnico en Industrialización de la Madera y el Mueble | C15: 111 | D15: 38 | E15: 73 | F15: 85 | G15: 30 | H15: 55 | I15: 26 | J15: 8 | K15: 18
B16: Tecnico en Industrias de Procesos | C16: 145 | D16: 85 | E16: 60 | F16: 145 | G16: 85 | H16: 60
B17: Técnico en Informática Profesional y Personal | C17: 179 | D17: 98 | E17: 81 | F17: 156 | G17: 91 | H17: 65 | I17: 23 | J17: 7 | K17: 16
B18: Técnico en Mantenimiento de Inmuebles en Zonas Turísticas | C18: 20 | D18: 7 | E18: 13 | F18: 20 | G18: 7 | H18: 13
B19: Técnico en Mecanización Agropecuaria | C19: 56 | D19: 15 | E19: 41 | F19: 56 | G19: 15 | H19: 41
B20: Técnico en Óptica Oftálmica e Instrumental | C20: 4 | D20: 3 | E20: 1 | F20: 4 | G20: 3 | H20: 1
B21: Técnico en Producción Agropecuaria | C21: 1105 | D21: 519 | E21: 586 | F21: 869 | G21: 433 | H21: 436 | I21: 236 | J21: 86 | K21: 150
B22: Técnico en Programación | C22: 102 | D22: 31 | E22: 71 | F22: 50 | G22: 21 | H22: 29 | I22: 52 | J22: 10 | K22: 42
B23: Técnico Mecánico | C23: 371 | D23: 46 | E23: 325 | F23: 243 | G23: 29 | H23: 214 | I23: 128 | J23: 17 | K23: 111
B24: Técnico Minero | C24: 49 | D24: 30 | E24: 19 | F24: 49 | G24: 30 | H24: 19
B25: Técnico Químico | C25: 182 | D25: 118 | E25: 64 | F25: 112 | G25: 74 | H25: 38 | I25: 70 | J25: 44 | K25: 26
B26: (*) Dentro de esta categoría se han incluido egresados de planes de estudio anteriores a los vigentes que corresponden, por un lado, a los títulos de “Bachiller y técnico de nivel medio” que brindaban las escuelas con orientación en Bienes y Servicios. Por el otro, también están contabilizados los egresados de las instituciones educativas que a partir de la Ley de Educación Técnica y Formación Profesional optaron por convertirse en escuelas técnicas y comenzaron a otorgar el título de “Técnico de nivel medio” en la especialización correspondiente (en lo que fue un plan de estudios de transición a la escuela técnica de siete años).

Sheet CSC 4.15 (hidden)
B2: CUADRO 4.15 Alumnos en el Programa de Inclusión y Terminalidad Educativa (PIT) por sector y sexo, según ámbito
B3: Ámbito | C3: Total General | D3: Estatal | G3: Privado
D4: Total | E4: Mujeres | F4: Varones | G4: Total | H4: Mujeres | I4: Varones
B5: Total Córdoba | C5: 4793 | D5: 4409 | E5: 1868 | F5: 2541 | G5: 384 | H5: 188 | I5: 196
B6: Urbano | C6: 4644 | D6: 4260 | E6: 1786 | F6: 2474 | G6: 384 | H6: 188 | I6: 196
B7: Rural | C7: 149 | D7: 149 | E7: 82 | F7: 67

Sheet CSC 4.16 (hidden)
B2: CUADRO 4. 16 Alumnos en el Programa de Inclusión y Terminalidad Educativa (PIT) por sexo, según ciclo lectivo
B3: Ciclo lectivo | C3: Total | D3: Mujeres | E3: Varones
B4: 2014 | C4: 4062 | D4: 1763 | E4: 2299
B5: 2015 | C5: 4511 | D5: 2072 | E5: 2439
B6: 2016 | C6: 4547 | D6: 2022 | E6: 2525
B7: 2017 | C7: 4826 | D7: 2095 | E7: 2731
B8: 2018 | C8: 4866 | D8: 2133 | E8: 2733
B9: 2019 | C9: 4793 | D9: 2056 | E9: 2737

Sheet CSC 4.17 (hidden)
B2: CUADRO 4. 17 Alumnos egresados del ciclo lectivo 2018 del Programa de Inclusión y Terminalidad Educativa (PIT) por sector y sexo, según departamento
B4: Departamento | C4: Total general | F4: Estatal | I4: Privado
C5: Total | D5: Mujeres | E5: Varones | F5: Total | G5: Mujeres | H5: Varones | I5: Total | J5: Mujeres | K5: Varones
B6: Total Córdoba | C6: 579 | D6: 271 | E6: 308 | F6: 550 | G6: 252 | H6: 298 | I6: 29 | J6: 19 | K6: 10
B7: Capital | C7: 354 | D7: 169 | E7: 185 | F7: 338 | G7: 158 | H7: 180 | I7: 16 | J7: 11 | K7: 5
B8: Colón | C8: 34 | D8: 15 | E8: 19 | F8: 34 | G8: 15 | H8: 19
B9: Cruz del Eje | C9: 29 | D9: 5 | E9: 24 | F9: 29 | G9: 5 | H9: 24
B10: General San Martín | C10: 6 | D10: 4 | E10: 2 | F10: 6 | G10: 4 | H10: 2
B11: Ischilín | C11: 12 | D11: 4 | E11: 8 | F11: 12 | G11: 4 | H11: 8
B12: Marcos Juárez | C12: 8 | D12: 4 | E12: 4 | I12: 8 | J12: 4 | K12: 4
B13: Punilla | C13: 20 | D13: 12 | E13: 8 | F13: 20 | G13: 12 | H13: 8
B14: Río Cuarto | C14: 22 | D14: 10 | E14: 12 | F14: 22 | G14: 10 | H14: 12
B15: Río Primero | C15: 11 | D15: 6 | E15: 5 | F15: 11 | G15: 6 | H15: 5
B16: Río Seco | C16: 6 | D16: 3 | E16: 3 | F16: 6 | G16: 3 | H16: 3
B17: Río Segundo | C17: 4 | D17: 3 | E17: 1 | F17: 4 | G17: 3 | H17: 1
B18: San Alberto | C18: 22 | D18: 8 | E18: 14 | F18: 22 | G18: 8 | H18: 14
B19: San Javier | C19: 19 | D19: 10 | E19: 9 | F19: 17 | G19: 8 | H19: 9 | I19: 2 | J19: 2 | K19: 0
B20: San Justo | C20: 6 | D20: 3 | E20: 3 | F20: 3 | G20: 1 | H20: 2 | I20: 3 | J20: 2 | K20: 1
B21: Santa María | C21: 9 | D21: 6 | E21: 3 | F21: 9 | G21: 6 | H21: 3
B22: Tercero Arriba | C22: 17 | D22: 9 | E22: 8 | F22: 17 | G22: 9 | H22: 8
B23: Los departamentos Calamuchita, General Roca, Juárez Celman, Minas, Pocho, Pte. Roque Saénz Peña, Sobremonte, Totoral, Tulumba y Unión no cuentan con sedes del Programa de Inclusión y Terminalidad Educativa (PIT).

Sheet CSC 4.18 (hidden)
B2: CUADRO 4.18 Secciones por sector, ámbito y tipo, según departamento
B3: Departamento | C3: Total general | D3: Estatal | I3: Privado
D4: Total | E4: Urbano | G4: Rural | I4: Total | J4: Urbano | L4: Rural
E5: Indep. | F5: Múltiple (*) | G5: Indep. | H5: Múltiple | J5: Indep. | K5: Múltiple | L5: Indep. | M5: Múltiple
B6: Total Córdoba | C6: 12799 | D6: 8075 | E6: 6774 | F6: 176 | G6: 1007 | H6: 118 | I6: 4724 | J6: 4255 | K6: 234 | L6: 234 | M6: 1
B7: Calamuchita | C7: 267 | D7: 160 | E7: 129 | G7: 29 | H7: 2 | I7: 107 | J7: 80 | K7: 15 | L7: 12
B8: Capital | C8: 4536 | D8: 2767 | E8: 2669 | F8: 98 | I8: 1769 | J8: 1755 | K8: 14
B9: Colón | C9: 877 | D9: 607 | E9: 493 | F9: 14 | G9: 100 | I9: 270 | J9: 270
B10: Cruz del Eje | C10: 264 | D10: 199 | E10: 133 | F10: 4 | G10: 61 | H10: 1 | I10: 65 | J10: 45 | K10: 10 | L10: 10
B11: General Roca | C11: 160 | D11: 114 | E11: 103 | G11: 6 | H11: 5 | I11: 46 | J11: 16 | K11: 12 | L11: 18
B12: General San Martín | C12: 510 | D12: 247 | E12: 211 | F12: 4 | G12: 29 | H12: 3 | I12: 263 | J12: 209 | K12: 27 | L12: 27
B13: Ischilín | C13: 129 | D13: 102 | E13: 78 | F13: 4 | G13: 16 | H13: 4 | I13: 27 | J13: 27
B14: Juárez Celman | C14: 304 | D14: 145 | E14: 124 | G14: 21 | I14: 159 | J14: 97 | K14: 32 | L14: 30
B15: Marcos Juárez | C15: 423 | D15: 222 | E15: 221 | H15: 1 | I15: 201 | J15: 165 | K15: 19 | L15: 17
B16: Minas | C16: 40 | D16: 40 | G16: 34 | H16: 6
B17: Pocho | C17: 28 | D17: 28 | G17: 26 | H17: 2
B18: Pte. Roque Sáenz Peña | C18: 155 | D18: 125 | E18: 86 | F18: 2 | G18: 35 | H18: 2 | I18: 30 | J18: 30
B19: Punilla | C19: 635 | D19: 375 | E19: 327 | F19: 7 | G19: 40 | H19: 1 | I19: 260 | J19: 259 | M19: 1
B20: Río Cuarto | C20: 947 | D20: 566 | E20: 479 | F20: 9 | G20: 71 | H20: 7 | I20: 381 | J20: 361 | K20: 7 | L20: 13
B21: Río Primero | C21: 231 | D21: 166 | E21: 100 | G21: 47 | H21: 19 | I21: 65 | J21: 65
B22: Río Seco | C22: 69 | D22: 69 | E22: 43 | G22: 24 | H22: 2
B23: Río Segundo | C23: 460 | D23: 289 | E23: 227 | F23: 3 | G23: 51 | H23: 8 | I23: 171 | J23: 147 | K23: 12 | L23: 12
B24: San Alberto | C24: 157 | D24: 123 | E24: 59 | F24: 4 | G24: 55 | H24: 5 | I24: 34 | J24: 34
B25: San Javier | C25: 251 | D25: 185 | E25: 123 | F25: 5 | G25: 57 | I25: 66 | J25: 53 | K25: 7 | L25: 6
B26: San Justo | C26: 846 | D26: 548 | E26: 415 | F26: 2 | G26: 107 | H26: 24 | I26: 298 | J26: 212 | K26: 41 | L26: 45
B27: Santa María | C27: 432 | D27: 321 | E27: 231 | F27: 16 | G27: 67 | H27: 7 | I27: 111 | J27: 111
B28: Sobremonte | C28: 21 | D28: 21 | E28: 15 | G28: 3 | H28: 3
B29: Tercero Arriba | C29: 433 | D29: 245 | E29: 214 | F29: 4 | G29: 22 | H29: 5 | I29: 188 | J29: 168 | K29: 7 | L29: 13
B30: Totoral | C30: 91 | D30: 79 | E30: 49 | G30: 26 | H30: 4 | I30: 12 | K30: 6 | L30: 6
B31: Tulumba | C31: 60 | D31: 60 | E31: 23 | G31: 35 | H31: 2
B32: Unión | C32: 473 | D32: 272 | E32: 222 | G32: 45 | H32: 5 | I32: 201 | J32: 151 | K32: 25 | L32: 25
B33: Indep.: independiente
B34: En el departamento Capital están incluidas además de las provinciales, las unidades educativas nacionales, al igual que sus alumnos y personal docente.

Sheet CSC 4.19 (hidden)
B2: CUADRO 4.19 Personal docente en actividad, por lugar de origen y forma de designación, según sector
B3: Lugar de origen del personal | C3: Forma de designación | D3: Total (*) | E3: Estatal | F3: Privado
B4: Total Córdoba | D4: 59919 | E4: 40328 | F4: 19591
B5: Personal designado en la planta del establecimiento | C5: En actividad, designados sólo por cargo | D5: 8660 | E5: 5963 | F5: 2697
C6: En actividad, designados sólo por horas cátedra | D6: 47188 | E6: 31720 | F6: 15468
C7: En actividad, designados por cargo y horas cátedra | D7: 3526 | E7: 2194 | F7: 1332
B8: Personal que proviene de otra planta | C8: Docentes frente a alumnos afectados a este establecimiento que no pertenecen a esta planta funcional | D8: 140 | E8: 68 | F8: 72
C9: Docentes en otras funciones afectados a este establecimiento que no pertenecen a esta planta funcional | D9: 405 | E9: 383 | F9: 22
B10: (*) El personal docente en actividad hace referencia a todas las personas con designación docente que se desempeñan en las unidades educativas del nivel. Por esta razón, se cuentan tantas veces como ofertas en las que trabajan.

Sheet CSC 4.20 (hidden)
B2: CUADRO 4.20 Personal docente en actividad, por sexo, según departamento
B3: Departamento | C3: Total | D3: Mujeres | E3: Varones
B4: Total Córdoba | C4: 59919 | D4: 42412 | E4: 17507
B5: Calamuchita | C5: 1094 | D5: 751 | E5: 343
B6: Capital | C6: 22055 | D6: 15288 | E6: 6767
B7: Colón | C7: 4078 | D7: 2834 | E7: 1244
B8: Cruz del Eje | C8: 1321 | D8: 937 | E8: 384
B9: General Roca | C9: 673 | D9: 469 | E9: 204
B10: General San Martín | C10: 2176 | D10: 1606 | E10: 570
B11: Ischilín | C11: 535 | D11: 353 | E11: 182
B12: Juárez Celman | C12: 1116 | D12: 799 | E12: 317
B13: Marcos Juárez | C13: 1777 | D13: 1288 | E13: 489
B14: Minas | C14: 197 | D14: 113 | E14: 84
B15: Pocho | C15: 134 | D15: 90 | E15: 44
B16: Pte. Roque Sáenz Peña | C16: 713 | D16: 523 | E16: 190
B17: Punilla | C17: 3086 | D17: 2159 | E17: 927
B18: Río Cuarto | C18: 4336 | D18: 3186 | E18: 1150
B19: Río Primero | C19: 1070 | D19: 774 | E19: 296
B20: Río Seco | C20: 275 | D20: 191 | E20: 84
B21: Río Segundo | C21: 2180 | D21: 1592 | E21: 588
B22: San Alberto | C22: 941 | D22: 674 | E22: 267
B23: San Javier | C23: 1269 | D23: 926 | E23: 343
B24: San Justo | C24: 3802 | D24: 2862 | E24: 940
B25: Santa María | C25: 2070 | D25: 1386 | E25: 684
B26: Sobremonte | C26: 106 | D26: 59 | E26: 47
B27: Tercero Arriba | C27: 2033 | D27: 1525 | E27: 508
B28: Totoral | C28: 484 | D28: 315 | E28: 169
B29: Tulumba | C29: 290 | D29: 173 | E29: 117
B30: Unión | C30: 2108 | D30: 1539 | E30: 569
B31: (*) El personal docente en actividad hace referencia a todas las personas con designación docente que se desempeñan en las unidades educativas del nivel. Por esta razón, se cuentan tantas veces como ofertas en las que trabajan.
B32: En el departamento Capital están incluidas además de las provinciales, las unidades educativas nacionales, al igual que sus alumnos y personal docente.

Sheet CSC 4.21 (hidden)
B2: CUADRO 4.21 Personal docente en actividad, por lugar de origen de la designación, según departamento
B3: Departamento | C3: Personal designado en la planta del establecimiento | D3: Personal que proviene de otra planta
B4: Total Córdoba (*) | C4: 59374 | D4: 545
B5: Calamuchita | C5: 1083 | D5: 11
B6: Capital | C6: 21848 | D6: 207
B7: Colón | C7: 4038 | D7: 40
B8: Cruz del Eje | C8: 1306 | D8: 15
B9: General Roca | C9: 672 | D9: 1
B10: General San Martín | C10: 2152 | D10: 24
B11: Ischilín | C11: 526 | D11: 9
B12: Juárez Celman | C12: 1115 | D12: 1
B13: Marcos Juárez | C13: 1764 | D13: 13
B14: Minas | C14: 194 | D14: 3
B15: Pocho | C15: 134 | D15: 0
B16: Pte. Roque Sáenz Peña | C16: 713 | D16: 0
B17: Punilla | C17: 3046 | D17: 40
B18: Río Cuarto | C18: 4296 | D18: 40
B19: Río Primero | C19: 1066 | D19: 4
B20: Río Seco | C20: 270 | D20: 5
B21: Río Segundo | C21: 2165 | D21: 15
B22: San Alberto | C22: 928 | D22: 13
B23: San Javier | C23: 1260 | D23: 9
B24: San Justo | C24: 3765 | D24: 37
B25: Santa María | C25: 2044 | D25: 26
B26: Sobremonte | C26: 106 | D26: 0
B27: Tercero Arriba | C27: 2024 | D27: 9
B28: Totoral | C28: 474 | D28: 10
B29: Tulumba | C29: 289 | D29: 1
B30: Unión | C30: 2096 | D30: 12
B31: (*) El personal docente en actividad hace referencia a todas las personas con designación docente que se desempeñan en las unidades educativas del nivel. Por esta razón, se cuentan tantas veces como ofertas en las que trabajan.
B32: En el departamento Capital están incluidas además de las provinciales, las unidades educativas nacionales, al igual que sus alumnos y personal docente.

Sheet Cuadro 4.22 (hidden)
B2: CUADRO 4.22 Personal docente en actividad, por sector, ámbito y lugar de origen de la designación, según departamento
B3: Departamento | C3: Estatal | G3: Privado
C4: Urbano | E4: Rural | G4: Urbano | I4: Rural
C5: Personal designado en la planta del establecimiento | D5: Personal que proviene de otra planta | E5: Personal designado en la planta del establecimiento | F5: Personal que proviene de otra planta | G5: Personal designado en la planta del establecimiento | H5: Personal que proviene de otra planta | I5: Personal designado en la planta del establecimiento | J5: Personal que proviene de otra planta
B6: Total Córdoba (*) | C6: 34003 | D6: 364 | E6: 5874 | F6: 87 | G6: 18448 | H6: 93 | I6: 1049 | J6: 1
B7: Calamuchita | C7: 596 | D7: 7 | E7: 155 | F7: 4 | G7: 287 | I7: 45
B8: Capital | C8: 14053 | D8: 115 | G8: 7795 | H8: 92
B9: Colón | C9: 2355 | D9: 37 | E9: 499 | F9: 3 | G9: 1184
B10: Cruz del Eje | C10: 685 | D10: 9 | E10: 329 | F10: 6 | G10: 236 | I10: 56
B11: General Roca | C11: 468 | D11: 1 | E11: 54 | G11: 76 | I11: 74
B12: General San Martín | C12: 986 | D12: 21 | E12: 151 | F12: 2 | G12: 904 | I12: 111 | J12: 1
B13: Ischilín | C13: 317 | D13: 8 | E13: 96 | F13: 1 | G13: 113
B14: Juárez Celman | C14: 555 | D14: 1 | E14: 97 | G14: 346 | I14: 117
B15: Marcos Juárez | C15: 1021 | D15: 13 | E15: 10 | G15: 659 | I15: 74
B16: Minas | E16: 194 | F16: 3
B17: Pocho | E17: 134
B18: Pte. Roque Sáenz Peña | C18: 407 | E18: 172 | G18: 134
B19: Punilla | C19: 1656 | D19: 34 | E19: 196 | F19: 6 | G19: 1181 | I19: 13
B20: Río Cuarto | C20: 2351 | D20: 23 | E20: 379 | F20: 17 | G20: 1492 | I20: 74
B21: Río Primero | C21: 438 | D21: 3 | E21: 354 | F21: 1 | G21: 274
B22: Río Seco | C22: 138 | D22: 3 | E22: 132 | F22: 2
B23: Río Segundo | C23: 1132 | D23: 10 | E23: 374 | F23: 5 | G23: 613 | I23: 46
B24: San Alberto | C24: 399 | D24: 7 | E24: 353 | F24: 6 | G24: 176
B25: San Javier | C25: 676 | D25: 7 | E25: 286 | F25: 2 | G25: 266 | I25: 32
B26: San Justo | C26: 1983 | D26: 30 | E26: 694 | F26: 7 | G26: 875 | I26: 213
B27: Santa María | C27: 1150 | D27: 15 | E27: 400 | F27: 10 | G27: 494 | H27: 1
B28: Sobremonte | C28: 66 | E28: 40
B29: Tercero Arriba | C29: 1099 | D29: 4 | E29: 159 | F29: 5 | G29: 711 | I29: 55
B30: Totoral | C30: 274 | D30: 5 | E30: 169 | F30: 5 | I30: 31
B31: Tulumba | C31: 100 | D31: 1 | E31: 189
B32: Unión | C32: 1098 | D32: 10 | E32: 258 | F32: 2 | G32: 632 | I32: 108
B33: (*) El personal docente en actividad hace referencia a todas las personas con designación docente que se desempeñan en las unidades educativas del nivel. Por esta razón, se cuentan tantas veces como ofertas en las que trabajan.
B34: En el departamento Capital están incluidas además de las provinciales, las unidades educativas nacionales, al igual que sus alumnos y personal docente.

Sheet S C5.1 (hidden)
B3: CUADRO 5.1 Unidades educativas, alumnos y personal docente en actividad, por sector y dependencia
C4: Total | D4: Estatal | F4: Privado
D5: Provincial | E5: Nacional (**) | F5: Provincial
B6: Unidades educativas | C6: 213 | D6: 80 | E6: 3 | F6: 130
B7: Alumnos | C7: 78984 | D7: 44114 | E7: 2040 | F7: 32830
B8: Personal docente (*) | C8: 11657 | D8: 6261 | E8: 201 | F8: 5195
B9: (*) El personal docente en actividad hace referencia a todas las personas con designación docente que se desempeñan en las unidades educativas del nivel. Por esta razón, se cuentan tantas veces como ofertas en las que trabajan.
B10: (**) Las unidades educativas de nivel superior nacionales son los dos colegios universitarios de la Universidad Nacional de Córdoba (UNC) y uno que depende del Ministerio de Defensa de la Nación.

Sheet S C5.2 (hidden)
B3: CUADRO 5.2 Bases, anexos, alumnos y personal docente en actividad, por sector, según departamento
B4: Departamento | C4: Total | G4: Estatal | K4: Privado
C5: Bases | D5: Anexos | E5: Alumnos | F5: Personal docente (*) | G5: Bases | H5: Anexos | I5: Alumnos | J5: Personal docente | K5: Bases | L5: Anexos | M5: Alumnos | N5: Personal docente
B6: Total Córdoba | C6: 213 | D6: 69 | E6: 78984 | F6: 11657 | G6: 83 | H6: 60 | I6: 46154 | J6: 6462 | K6: 130 | L6: 9 | M6: 32830 | N6: 5195
B7: Calamuchita | C7: 3 | D7: 1 | E7: 399 | F7: 104 | G7: 2 | H7: 1 | I7: 300 | J7: 75 | K7: 1 | M7: 99 | N7: 29
B8: Capital | C8: 84 | D8: 7 | E8: 46815 | F8: 5244 | G8: 25 | H8: 7 | I8: 26411 | J8: 2854 | K8: 59 | M8: 20404 | N8: 2390
B9: Colón | C9: 8 | D9: 6 | E9: 2164 | F9: 352 | G9: 1 | H9: 5 | I9: 1459 | J9: 167 | K9: 7 | L9: 1 | M9: 705 | N9: 185
B10: Cruz del Eje | C10: 7 | D10: 3 | E10: 1857 | F10: 313 | G10: 4 | H10: 2 | I10: 1258 | J10: 194 | K10: 3 | L10: 1 | M10: 599 | N10: 119
B11: General Roca | C11: 2 | D11: 3 | E11: 465 | F11: 86 | G11: 1 | H11: 3 | I11: 256 | J11: 65 | K11: 1 | M11: 209 | N11: 21
B12: General San Martín | C12: 12 | D12: 4 | E12: 4726 | F12: 828 | G12: 3 | H12: 3 | I12: 1825 | J12: 245 | K12: 9 | L12: 1 | M12: 2901 | N12: 583
B13: Ischilín | C13: 2 | D13: 2 | E13: 932 | F13: 146 | G13: 2 | H13: 1 | I13: 855 | J13: 134 | L13: 1 | M13: 77 | N13: 12
B14: Juárez Celman | C14: 5 | D14: 1 | E14: 423 | F14: 146 | G14: 3 | H14: 1 | I14: 198 | J14: 91 | K14: 2 | M14: 225 | N14: 55
B15: Marcos Juárez | C15: 9 | D15: 8 | E15: 1521 | F15: 502 | G15: 5 | H15: 7 | I15: 1070 | J15: 325 | K15: 4 | L15: 1 | M15: 451 | N15: 177
B16: Minas | D16: 1 | E16: 6 | F16: 9 | H16: 1 | I16: 6 | J16: 9
B17: Pocho
B18: Pte. Roque Sáenz Peña | C18: 4 | D18: 1 | E18: 640 | F18: 179 | G18: 2 | H18: 1 | I18: 469 | J18: 138 | K18: 2 | M18: 171 | N18: 41
B19: Punilla | C19: 10 | D19: 3 | E19: 2531 | F19: 454 | G19: 5 | H19: 2 | I19: 1712 | J19: 308 | K19: 5 | L19: 1 | M19: 819 | N19: 146
B20: Río Cuarto | C20: 12 | D20: 5 | E20: 3785 | F20: 544 | G20: 5 | H20: 4 | I20: 2411 | J20: 288 | K20: 7 | L20: 1 | M20: 1374 | N20: 256
B21: Río Primero | C21: 1 | D21: 4 | E21: 435 | F21: 90 | H21: 4 | I21: 273 | J21: 46 | K21: 1 | M21: 162 | N21: 44
B22: Río Seco | D22: 2 | E22: 68 | F22: 10 | H22: 2 | I22: 68 | J22: 10
B23: Río Segundo | C23: 4 | D23: 3 | E23: 808 | F23: 142 | G23: 1 | H23: 3 | I23: 464 | J23: 68 | K23: 3 | M23: 344 | N23: 74
B24: San Alberto | C24: 2 | E24: 464 | F24: 113 | G24: 2 | I24: 464 | J24: 113
B25: San Javier | C25: 5 | D25: 2 | E25: 1909 | F25: 313 | G25: 3 | H25: 2 | I25: 1410 | J25: 216 | K25: 2 | M25: 499 | N25: 97
B26: San Justo | C26: 14 | D26: 9 | E26: 4008 | F26: 912 | G26: 6 | H26: 8 | I26: 2556 | J26: 544 | K26: 8 | L26: 1 | M26: 1452 | N26: 368
B27: Santa María | C27: 3 | E27: 566 | F27: 99 | G27: 3 | I27: 566 | J27: 99
B28: Sobremonte | D28: 1 | E28: 44 | F28: 7 | H28: 1 | I28: 44 | J28: 7
B29: Tercero Arriba | C29: 9 | D29: 1 | E29: 1651 | F29: 342 | G29: 3 | I29: 609 | J29: 101 | K29: 6 | L29: 1 | M29: 1042 | N29: 241
B30: Totoral | C30: 1 | E30: 348 | F30: 43 | G30: 1 | I30: 348 | J30: 43
B31: Tulumba | D31: 1 | E31: 17 | F31: 7 | H31: 1 | I31: 17 | J31: 7
B32: Unión | C32: 16 | D32: 1 | E32: 2402 | F32: 672 | G32: 6 | H32: 1 | I32: 1105 | J32: 315 | K32: 10 | M32: 1297 | N32: 357
B33: (*) El personal docente en actividad hace referencia a todas las personas con designación docente que se desempeñan en las unidades educativas del nivel. Por esta razón, se cuentan tantas veces como ofertas en las que trabajan.
B34: El nivel superior posee en el ámbito rural dos anexos localizados en los departamentos Tulumba y Minas (con un total de 23 alumnos). La oferta restante del nivel corresponde al ámbito urbano.
B35: En el departamento Capital, además de los que corresponden a los institutos superiores provinciales (ya sea que dependan de la UPC o del Ministerio de Educación), se incluyen los docentes y los alumnos de los dos colegios universitarios dependientes de UNC , más una institución que depende del Ministerio de Defensa de la Nación.

Sheet S C5.3. (hidden)
B2: CUADRO 5.3 Alumnos por sector y sexo, según el tipo de formación
B3: Tipo de formación | C3: Total general | F3: Estatal | I3: Privado
C4: Total | D4: Mujeres | E4: Varones | F4: Total | G4: Mujeres | H4: Varones | I4: Total | J4: Mujeres | K4: Varones
B5: Total Córdoba (*) | C5: 78984 | D5: 51933 | E5: 27051 | F5: 46154 | G5: 31105 | H5: 15049 | I5: 32830 | J5: 20828 | K5: 12002
B6: Docente | C6: 36086 | D6: 28106 | E6: 7980 | F6: 23126 | G6: 18547 | H6: 4579 | I6: 12960 | J6: 9559 | K6: 3401
B7: Técnico-profesional | C7: 42898 | D7: 23827 | E7: 19071 | F7: 23028 | G7: 12558 | H7: 10470 | I7: 19870 | J7: 11269 | K7: 8601
B8: (*) Se encuentran incluidos los alumnos de los colegios universitarios de la UNC y los de las carreras superiores de la UPC.

Sheet S C5.4. (hidden)
B2: CUADRO 5.4 Alumnos por sector y sexo, según departamento
B3: Departamento | C3: Total general | F3: Estatal | I3: Privado
C4: Total | D4: Mujeres | E4: Varones | F4: Total | G4: Mujeres | H4: Varones | I4: Total | J4: Mujeres | K4: Varones
B5: Total Córdoba | C5: 78984 | D5: 51933 | E5: 27051 | F5: 46154 | G5: 31105 | H5: 15049 | I5: 32830 | J5: 20828 | K5: 12002
B6: Calamuchita | C6: 399 | D6: 298 | E6: 101 | F6: 300 | G6: 202 | H6: 98 | I6: 99 | J6: 96 | K6: 3
B7: Capital | C7: 46815 | D7: 29007 | E7: 17808 | F7: 26411 | G7: 17521 | H7: 8890 | I7: 20404 | J7: 11486 | K7: 8918
B8: Colón | C8: 2164 | D8: 1542 | E8: 622 | F8: 1459 | G8: 941 | H8: 518 | I8: 705 | J8: 601 | K8: 104
B9: Cruz del Eje | C9: 1857 | D9: 1413 | E9: 444 | F9: 1258 | G9: 896 | H9: 362 | I9: 599 | J9: 517 | K9: 82
B10: General Roca | C10: 465 | D10: 383 | E10: 82 | F10: 256 | G10: 183 | H10: 73 | I10: 209 | J10: 200 | K10: 9
B11: General San Martín | C11: 4726 | D11: 3087 | E11: 1639 | F11: 1825 | G11: 1097 | H11: 728 | I11: 2901 | J11: 1990 | K11: 911
B12: Ischilín | C12: 932 | D12: 654 | E12: 278 | F12: 855 | G12: 590 | H12: 265 | I12: 77 | J12: 64 | K12: 13
B13: Juárez Celman | C13: 423 | D13: 300 | E13: 123 | F13: 198 | G13: 155 | H13: 43 | I13: 225 | J13: 145 | K13: 80
B14: Marcos Juárez | C14: 1521 | D14: 1150 | E14: 371 | F14: 1070 | G14: 793 | H14: 277 | I14: 451 | J14: 357 | K14: 94
B15: Minas | C15: 6 | D15: 4 | E15: 2 | F15: 6 | G15: 4 | H15: 2
B16: Pocho
B17: Pte. Roque Sáenz Peña | C17: 640 | D17: 495 | E17: 145 | F17: 469 | G17: 334 | H17: 135 | I17: 171 | J17: 161 | K17: 10
B18: Punilla | C18: 2531 | D18: 1549 | E18: 982 | F18: 1712 | G18: 948 | H18: 764 | I18: 819 | J18: 601 | K18: 218
B19: Río Cuarto | C19: 3785 | D19: 2390 | E19: 1395 | F19: 2411 | G19: 1459 | H19: 952 | I19: 1374 | J19: 931 | K19: 443
B20: Río Primero | C20: 435 | D20: 389 | E20: 46 | F20: 273 | G20: 232 | H20: 41 | I20: 162 | J20: 157 | K20: 5
B21: Río Seco | C21: 68 | D21: 54 | E21: 14 | F21: 68 | G21: 54 | H21: 14
B22: Río Segundo | C22: 808 | D22: 603 | E22: 205 | F22: 464 | G22: 275 | H22: 189 | I22: 344 | J22: 328 | K22: 16
B23: San Alberto | C23: 464 | D23: 356 | E23: 108 | F23: 464 | G23: 356 | H23: 108
B24: San Javier | C24: 1909 | D24: 1485 | E24: 424 | F24: 1410 | G24: 1132 | H24: 278 | I24: 499 | J24: 353 | K24: 146
B25: San Justo | C25: 4008 | D25: 2979 | E25: 1029 | F25: 2556 | G25: 1820 | H25: 736 | I25: 1452 | J25: 1159 | K25: 293
B26: Santa María | C26: 566 | D26: 501 | E26: 65 | F26: 566 | G26: 501 | H26: 65
B27: Sobremonte | C27: 44 | D27: 43 | E27: 1 | F27: 44 | G27: 43 | H27: 1
B28: Tercero Arriba | C28: 1651 | D28: 1153 | E28: 498 | F28: 609 | G28: 396 | H28: 213 | I28: 1042 | J28: 757 | K28: 285
B29: Totoral | C29: 348 | D29: 293 | E29: 55 | F29: 348 | G29: 293 | H29: 55
B30: Tulumba | C30: 17 | D30: 16 | E30: 1 | F30: 17 | G30: 16 | H30: 1
B31: Unión | C31: 2402 | D31: 1789 | E31: 613 | F31: 1105 | G31: 864 | H31: 241 | I31: 1297 | J31: 925 | K31: 372
B32: En el departamento Capital, además de los que corresponden a los institutos superiores provinciales (ya sea que dependan de la UPC o del Ministerio de Educación), se incluyen los docentes y los alumnos de los dos colegios universitarios dependientes de UNC , más una institución que depende del Ministerio de Defensa de la Nación.

Sheet S C5.5. (hidden)
B2: CUADRO 5.5 Alumnos ingresantes a 1° año, por sector y sexo, según departamento
B3: Departamento | C3: Total general | F3: Estatal | I3: Privado
C4: Total | D4: Mujeres | E4: Varones | F4: Total | G4: Mujeres | H4: Varones | I4: Total | J4: Mujeres | K4: Varones
B5: Total Córdoba | C5: 27246 | D5: 18190 | E5: 9056 | F5: 14358 | G5: 10123 | H5: 4235 | I5: 12888 | J5: 8067 | K5: 4821
B6: Calamuchita | C6: 216 | D6: 158 | E6: 58 | F6: 174 | G6: 116 | H6: 58 | I6: 42 | J6: 42
B7: Capital | C7: 14955 | D7: 9133 | E7: 5822 | F7: 6913 | G7: 4671 | H7: 2242 | I7: 8042 | J7: 4462 | K7: 3580
B8: Colón | C8: 522 | D8: 430 | E8: 92 | F8: 262 | G8: 210 | H8: 52 | I8: 260 | J8: 220 | K8: 40
B9: Cruz del Eje | C9: 740 | D9: 564 | E9: 176 | F9: 459 | G9: 320 | H9: 139 | I9: 281 | J9: 244 | K9: 37
B10: General Roca | C10: 214 | D10: 148 | E10: 66 | F10: 158 | G10: 93 | H10: 65 | I10: 56 | J10: 55 | K10: 1
B11: General San Martín | C11: 1716 | D11: 1185 | E11: 531 | F11: 562 | G11: 417 | H11: 145 | I11: 1154 | J11: 768 | K11: 386
B12: Ischilín | C12: 354 | D12: 232 | E12: 122 | F12: 327 | G12: 208 | H12: 119 | I12: 27 | J12: 24 | K12: 3
B13: Juárez Celman | C13: 201 | D13: 132 | E13: 69 | F13: 89 | G13: 66 | H13: 23 | I13: 112 | J13: 66 | K13: 46
B14: Marcos Juárez | C14: 683 | D14: 503 | E14: 180 | F14: 527 | G14: 387 | H14: 140 | I14: 156 | J14: 116 | K14: 40
B15: Pte. Roque Sáenz Peña | C15: 311 | D15: 236 | E15: 75 | F15: 213 | G15: 146 | H15: 67 | I15: 98 | J15: 90 | K15: 8
B16: Punilla | C16: 964 | D16: 675 | E16: 289 | F16: 639 | G16: 423 | H16: 216 | I16: 325 | J16: 252 | K16: 73
B17: Río Cuarto | C17: 1129 | D17: 838 | E17: 291 | F17: 577 | G17: 449 | H17: 128 | I17: 552 | J17: 389 | K17: 163
B18: Río Primero | C18: 200 | D18: 163 | E18: 37 | F18: 169 | G18: 133 | H18: 36 | I18: 31 | J18: 30 | K18: 1
B19: Río Seco | C19: 46 | D19: 36 | E19: 10 | F19: 46 | G19: 36 | H19: 10
B20: Río Segundo | C20: 402 | D20: 306 | E20: 96 | F20: 276 | G20: 185 | H20: 91 | I20: 126 | J20: 121 | K20: 5
B21: San Alberto | C21: 143 | D21: 101 | E21: 42 | F21: 143 | G21: 101 | H21: 42
B22: San Javier | C22: 806 | D22: 666 | E22: 140 | F22: 664 | G22: 563 | H22: 101 | I22: 142 | J22: 103 | K22: 39
B23: San Justo | C23: 1510 | D23: 1098 | E23: 412 | F23: 959 | G23: 670 | H23: 289 | I23: 551 | J23: 428 | K23: 123
B24: Santa María | C24: 274 | D24: 245 | E24: 29 | F24: 274 | G24: 245 | H24: 29
B25: Sobremonte | C25: 44 | D25: 43 | E25: 1 | F25: 44 | G25: 43 | H25: 1
B26: Tercero Arriba | C26: 618 | D26: 413 | E26: 205 | F26: 259 | G26: 153 | H26: 106 | I26: 359 | J26: 260 | K26: 99
B27: Totoral | C27: 141 | D27: 110 | E27: 31 | F27: 141 | G27: 110 | H27: 31
B28: Unión | C28: 1057 | D28: 775 | E28: 282 | F28: 483 | G28: 378 | H28: 105 | I28: 574 | J28: 397 | K28: 177
B29: Los departamentos Minas, Pocho y Tulumba no cuentan con alumnos ingresantes al Nivel Superior.
B30: En el departamento Capital, además de los que corresponden a los institutos superiores provinciales (ya sea que dependan de la UPC o del Ministerio de Educación), se incluyen los docentes y los alumnos de los dos colegios universitarios dependientes de UNC , más una institución que depende del Ministerio de Defensa de la Nación.

Sheet S C5.6 (hidden)
B2: CUADRO 5.6 Alumnos por sector, según tipo de carrera y rama
B3: Tipo de carrera (*) | C3: Rama | D3: Total | E3: Estatal | F3: Privado
B4: Total Córdoba | D4: 78984 | E4: 46154 | F4: 32830
B5: Grado | C5: Total grado | D5: 74102 | E5: 41683 | F5: 32419
C6: Ciencias de la Salud | D6: 6513 | E6: 2009 | F6: 4504
C7: Ciencias Básicas | D7: 2651 | E7: 2104 | F7: 547
C8: Ciencias Aplicadas y Tecnología | D8: 14042 | E8: 8494 | F8: 5548
C9: Ciencias Sociales | D9: 20414 | E9: 12339 | F9: 8075
C10: Ciencias Humanas | D10: 30291 | E10: 16737 | F10: 13554
C11: Servicios personales, del hogar y la comunidad | D11: 191 | F11: 191
B12: Postítulos (**) | C12: Total postítulos | D12: 4882 | E12: 4471 | F12: 411
C13: Ciencias Aplicadas y Tecnología | D13: 199 | E13: 199
C14: Ciencias Humanas | D14: 4683 | E14: 4272 | F14: 411
B15: (*) Incluye formación docente y tecnicaturas.
B16: (**) Se incluye la oferta educativa de diplomaturas, especializaciones y postítulos.

Sheet S C5.7 (hidden)
B2: CUADRO 5.7 Alumnos egresados del ciclo lectivo 2018, por sector y sexo, según departamento
B3: Departamento | C3: Total general | F3: Estatal | I3: Privado
C4: Total | D4: Mujeres | E4: Varones | F4: Total | G4: Mujeres | H4: Varones | I4: Total | J4: Mujeres | K4: Varones
B5: Total Córdoba | C5: 11323 | D5: 8149 | E5: 3174 | F5: 6415 | G5: 4780 | H5: 1635 | I5: 4908 | J5: 3369 | K5: 1539
B6: Calamuchita | C6: 55 | D6: 46 | E6: 9 | F6: 47 | G6: 38 | H6: 9 | I6: 8 | J6: 8
B7: Capital | C7: 7323 | D7: 4981 | E7: 2342 | F7: 4249 | G7: 3072 | H7: 1177 | I7: 3074 | J7: 1909 | K7: 1165
B8: Colón | C8: 222 | D8: 201 | E8: 21 | F8: 77 | G8: 71 | H8: 6 | I8: 145 | J8: 130 | K8: 15
B9: Cruz del Eje | C9: 186 | D9: 158 | E9: 28 | F9: 107 | G9: 89 | H9: 18 | I9: 79 | J9: 69 | K9: 10
B10: General Roca | C10: 117 | D10: 98 | E10: 19 | F10: 84 | G10: 65 | H10: 19 | I10: 33 | J10: 33
B11: General San Martín | C11: 773 | D11: 583 | E11: 190 | F11: 224 | G11: 171 | H11: 53 | I11: 549 | J11: 412 | K11: 137
B12: Ischilín | C12: 58 | D12: 45 | E12: 13 | F12: 38 | G12: 28 | H12: 10 | I12: 20 | J12: 17 | K12: 3
B13: Juárez Celman | C13: 39 | D13: 37 | E13: 2 | F13: 30 | G13: 29 | H13: 1 | I13: 9 | J13: 8 | K13: 1
B14: Marcos Juárez | C14: 169 | D14: 139 | E14: 30 | F14: 97 | G14: 83 | H14: 14 | I14: 72 | J14: 56 | K14: 16
B15: Pocho | C15: 7 | D15: 5 | E15: 2 | F15: 7 | G15: 5 | H15: 2
B16: Pte. Roque Sáenz Peña | C16: 120 | D16: 98 | E16: 22 | F16: 91 | G16: 70 | H16: 21 | I16: 29 | J16: 28 | K16: 1
B17: Punilla | C17: 183 | D17: 139 | E17: 44 | F17: 104 | G17: 76 | H17: 28 | I17: 79 | J17: 63 | K17: 16
B18: Río Cuarto | C18: 430 | D18: 368 | E18: 62 | F18: 310 | G18: 282 | H18: 28 | I18: 120 | J18: 86 | K18: 34
B19: Río Primero | C19: 75 | D19: 72 | E19: 3 | F19: 53 | G19: 50 | H19: 3 | I19: 22 | J19: 22
B20: Río Seco | C20: 13 | D20: 7 | E20: 6 | F20: 13 | G20: 7 | H20: 6
B21: Río Segundo | C21: 125 | D21: 80 | E21: 45 | F21: 73 | G21: 30 | H21: 43 | I21: 52 | J21: 50 | K21: 2
B22: San Alberto | C22: 41 | D22: 33 | E22: 8 | F22: 41 | G22: 33 | H22: 8
B23: San Javier | C23: 196 | D23: 158 | E23: 38 | F23: 118 | G23: 97 | H23: 21 | I23: 78 | J23: 61 | K23: 17
B24: San Justo | C24: 498 | D24: 381 | E24: 117 | F24: 258 | G24: 187 | H24: 71 | I24: 240 | J24: 194 | K24: 46
B25: Santa María | C25: 82 | D25: 81 | E25: 1 | F25: 82 | G25: 81 | H25: 1
B26: Sobremonte | C26: 18 | D26: 16 | E26: 2 | F26: 18 | G26: 16 | H26: 2
B27: Tercero Arriba | C27: 247 | D27: 143 | E27: 104 | F27: 98 | G27: 46 | H27: 52 | I27: 149 | J27: 97 | K27: 52
B28: Totoral | C28: 37 | D28: 25 | E28: 12 | F28: 37 | G28: 25 | H28: 12
B29: Tulumba | C29: 10 | D29: 10 | F29: 10 | G29: 10
B30: Unión | C30: 299 | D30: 245 | E30: 54 | F30: 149 | G30: 119 | H30: 30 | I30: 150 | J30: 126 | K30: 24
B31: El departamento Minas no cuenta con alumnos egresados del nivel superior.
B32: En el departamento Capital, además de los que corresponden a los institutos superiores provinciales (ya sea que dependan de la UPC o del Ministerio de Educación), se incluyen los docentes y los alumnos de los dos colegios universitarios dependientes de UNC , más una institución que depende del Ministerio de Defensa de la Nación.

Sheet CSC5.8. (hidden)
B2: CUADRO 5.8 Personal docente en actividad, por lugar de origen y forma de designación, según sector
B3: Lugar de origen | C3: Forma de designación | D3: Total (*) | E3: Estatal | F3: Privado
B4: Total Córdoba | D4: 11657 | E4: 6462 | F4: 5195
B5: Personal designado en la planta del establecimiento | C5: En actividad, designados sólo por cargo | D5: 1051 | E5: 585 | F5: 466
C6: En actividad, designados sólo por horas cátedra | D6: 10073 | E6: 5624 | F6: 4449
C7: En actividad, designados por cargo y horas cátedra | D7: 478 | E7: 198 | F7: 280
B8: Personal que proviene de otra planta | C8: Docentes frente a alumnos, afectados a este establecimiento que no pertenecen a esta planta funcional | D8: 7 | E8: 7
C9: Docentes en otras funciones, afectados a este establecimiento que no pertenecen a esta planta funcional | D9: 48 | E9: 48
B11: (*) El personal docente en actividad hace referencia a todas las personas con designación docente que se desempeñan en las unidades educativas del nivel. Por esta razón, secuentan tantas veces como ofertas en las que trabajan.

Sheet S.C5.9 (hidden)
B2: CUADRO 5.9 Personal docente en actividad, por sexo, según departamento
B3: Departamento | C3: Total | D3: Mujeres | E3: Varones
B4: Total Córdoba | C4: 11657 | D4: 7900 | E4: 3757
B5: Calamuchita | C5: 104 | D5: 65 | E5: 39
B6: Capital | C6: 5244 | D6: 3423 | E6: 1821
B7: Colón | C7: 352 | D7: 230 | E7: 122
B8: Cruz del Eje | C8: 313 | D8: 224 | E8: 89
B9: General Roca | C9: 86 | D9: 60 | E9: 26
B10: General San Martín | C10: 828 | D10: 567 | E10: 261
B11: Ischilín | C11: 146 | D11: 103 | E11: 43
B12: Juárez Celman | C12: 146 | D12: 99 | E12: 47
B13: Marcos Juárez | C13: 502 | D13: 366 | E13: 136
B14: Minas | C14: 9 | D14: 7 | E14: 2
B15: Pocho
B16: Pte. Roque Sáenz Peña | C16: 179 | D16: 132 | E16: 47
B17: Punilla | C17: 454 | D17: 289 | E17: 165
B18: Río Cuarto | C18: 544 | D18: 347 | E18: 197
B19: Río Primero | C19: 90 | D19: 67 | E19: 23
B20: Río Seco | C20: 10 | D20: 7 | E20: 3
B21: Río Segundo | C21: 142 | D21: 96 | E21: 46
B22: San Alberto | C22: 113 | D22: 72 | E22: 41
B23: San Javier | C23: 313 | D23: 222 | E23: 91
B24: San Justo | C24: 912 | D24: 641 | E24: 271
B25: Santa María | C25: 99 | D25: 81 | E25: 18
B26: Sobremonte | C26: 7 | D26: 5 | E26: 2
B27: Tercero Arriba | C27: 342 | D27: 229 | E27: 113
B28: Totoral | C28: 43 | D28: 25 | E28: 18
B29: Tulumba | C29: 7 | D29: 6 | E29: 1
B30: Unión | C30: 672 | D30: 537 | E30: 135
B31: (*) El personal docente en actividad hace referencia a todas las personas con designación docente que se desempeñan en las unidades educativas del nivel. Por esta razón, se cuentan tantas veces como ofertas en las que trabajan.
B32: En el departamento Capital, además de los que corresponden a los institutos superiores provinciales (ya sea que dependan de la UPC o del Ministerio de Educación), se incluyen los docentes y los alumnos de los dos colegios universitarios dependientes de UNC , más una institución que depende del Ministerio de Defensa de la Nación.

Sheet S C 5.10 (hidden)
B3: CUADRO 5.10 Personal docente en actividad, por sector, ámbito y origen de la designación, según departamento
B4: Departamento | C4: Total | E4: Estatal | G4: Privado(**)
C5: Personal designado en la planta del establecimiento | D5: Personal que proviene de otra planta | E5: Personal designado en la planta del establecimiento | F5: Personal que proviene de otra planta | G5: Personal designado en la planta del establecimiento
B6: Total Córdoba | C6: 11602 | D6: 55 | E6: 6407 | F6: 55 | G6: 5195
B7: Calamuchita | C7: 104 | E7: 75 | G7: 29
B8: Capital | C8: 5222 | D8: 22 | E8: 2832 | F8: 22 | G8: 2390
B9: Colón | C9: 351 | D9: 1 | E9: 166 | F9: 1 | G9: 185
B10: Cruz del Eje | C10: 309 | D10: 4 | E10: 190 | F10: 4 | G10: 119
B11: General Roca | C11: 86 | E11: 65 | G11: 21
B12: General San Martín | C12: 825 | D12: 3 | E12: 242 | F12: 3 | G12: 583
B13: Ischilín | C13: 146 | E13: 134 | G13: 12
B14: Juárez Celman | C14: 145 | D14: 1 | E14: 90 | F14: 1 | G14: 55
B15: Marcos Juárez | C15: 501 | D15: 1 | E15: 324 | F15: 1 | G15: 177
B16: Minas | C16: 8 | D16: 1 | E16: 8 | F16: 1
B17: Pocho
B18: Pte. Roque Sáenz Peña | C18: 179 | E18: 138 | G18: 41
B19: Punilla | C19: 454 | E19: 308 | G19: 146
B20: Río Cuarto | C20: 544 | E20: 288 | G20: 256
B21: Río Primero | C21: 89 | D21: 1 | E21: 45 | F21: 1 | G21: 44
B22: Río Seco | C22: 10 | E22: 10
B23: Río Segundo | C23: 140 | D23: 2 | E23: 66 | F23: 2 | G23: 74
B24: San Alberto | C24: 109 | D24: 4 | E24: 109 | F24: 4
B25: San Javier | C25: 312 | D25: 1 | E25: 215 | F25: 1 | G25: 97
B26: San Justo | C26: 909 | D26: 3 | E26: 541 | F26: 3 | G26: 368
B27: Santa María | C27: 97 | D27: 2 | E27: 97 | F27: 2
B28: Sobremonte | C28: 7 | E28: 7 | G28: 0
B29: Tercero Arriba | C29: 342 | E29: 101 | G29: 241
B30: Totoral | C30: 43 | E30: 43
B31: Tulumba | C31: 6 | D31: 1 | E31: 6 | F31: 1
B32: Unión | C32: 664 | D32: 8 | E32: 307 | F32: 8 | G32: 357
B33: (*) El personal docente en actividad hace referencia a todas las personas con designación docente que se desempeñan en las unidades educativas del nivel. Por esta razón, se cuentan tantas veces como ofertas en las que trabajan.
B34: (**) El Sector privado no cuenta con docentes que provenga de otra planta. Todo el personal se encuentra designado en el establecimiento donde cumple funciones.
B35: En el departamento Capital, además de los que corresponden a los institutos superiores provinciales (ya sea que dependan de la UPC o del Ministerio de Educación), se incluyen los docentes y los alumnos de los dos colegios universitarios dependientes de UNC, más una institución que depende del Ministerio de Defensa de la Nación.

Sheet EC6.1 (hidden)
C2: CUADRO 6.1 Establecimientos, alumnos y personal docente en actividad, por sector
D3: Total | E3: Estatal | F3: Privado
C4: Establecimientos (*) | D4: 101 | E4: 59 | F4: 42
C5: Alumnos | D5: 6489 | E5: 4022 | F5: 2467
C6: Personal docente (**) | D6: 2747 | E6: 1805 | F6: 942
C8: (*) Aquí se consignan establecimientos y no unidades educativas (puesto que ellas se vinculan a las formas de implementación del nivel). Esto es así porque en la Provincia, la modalidad especial se organiza en establecimientos (ver glosario) con una máxima autoridad pedagógica y con una única partida presupuestaria, en los que se imparte distintos niveles de enseñanza. De allí que en un mismo establecimiento coexisten varias unidades educativas y en la medida que los docentes son parte de la misma planta funcional, no es posible discriminar quién trabaja para cada una de ellas (salvo raras excepciones).
C9: (**) El personal docente en actividad hace referencia a todas las personas con designación docente que se desempeñan en los establecimientos educativos de la modalidad. Por esta razón, se cuentan tantas veces como ofertas en las que trabajan.

Sheet EC6.2 (hidden)
B3: CUADRO 6.2 Bases, anexos, alumnos y personal docente en actividad, por sector, según departamento
B4: Departamento | C4: Total | G4: Estatal | K4: Privado
C5: Bases (*) | D5: Anexos (*) | E5: Alumnos | F5: Personal docente (**) | G5: Bases | H5: Anexos | I5: Alumnos | J5: Personal docente | K5: Bases | L5: Alumnos | M5: Personal docente
B6: Total Córdoba | C6: 101 | D6: 23 | E6: 6489 | F6: 2747 | G6: 59 | H6: 23 | I6: 4022 | J6: 1805 | K6: 42 | L6: 2467 | M6: 942
B7: Calamuchita | C7: 3 | E7: 98 | F7: 47 | G7: 3 | I7: 98 | J7: 47
B8: Capital | C8: 27 | D8: 1 | E8: 2692 | F8: 990 | G8: 14 | H8: 1 | I8: 1649 | J8: 627 | K8: 13 | L8: 1043 | M8: 363
B9: Colón | C9: 5 | D9: 4 | E9: 478 | F9: 174 | G9: 3 | H9: 4 | I9: 334 | J9: 117 | K9: 2 | L9: 144 | M9: 57
B10: Cruz del Eje | C10: 1 | D10: 1 | E10: 118 | F10: 30 | G10: 1 | H10: 1 | I10: 118 | J10: 30
B11: General Roca | C11: 2 | D11: 3 | E11: 123 | F11: 47 | G11: 2 | H11: 3 | I11: 123 | J11: 47
B12: General San Martín | C12: 3 | D12: 1 | E12: 210 | F12: 105 | G12: 2 | H12: 1 | I12: 142 | J12: 65 | K12: 1 | L12: 68 | M12: 40
B13: Ischilín | C13: 1 | E13: 34 | F13: 27 | G13: 1 | I13: 34 | J13: 27
B14: Juárez Celman | C14: 4 | D14: 1 | E14: 102 | F14: 91 | G14: 3 | H14: 1 | I14: 76 | J14: 72 | K14: 1 | L14: 26 | M14: 19
B15: Marcos Juárez | C15: 6 | D15: 3 | E15: 146 | F15: 109 | G15: 3 | H15: 3 | I15: 80 | J15: 67 | K15: 3 | L15: 66 | M15: 42
B16: Minas (***) | D16: 1 | E16: 12 | F16: 7 | H16: 1 | I16: 12 | J16: 7
B17: Pte. Roque Sáenz Peña | C17: 2 | D17: 1 | E17: 78 | F17: 50 | G17: 2 | H17: 1 | I17: 78 | J17: 50
B18: Punilla | C18: 5 | E18: 352 | F18: 131 | G18: 3 | I18: 149 | J18: 77 | K18: 2 | L18: 203 | M18: 54
B19: Río Cuarto | C19: 11 | E19: 396 | F19: 238 | G19: 8 | I19: 283 | J19: 182 | K19: 3 | L19: 113 | M19: 56
B20: Río Primero | C20: 1 | D20: 1 | E20: 82 | F20: 31 | G20: 1 | H20: 1 | I20: 82 | J20: 31
B21: Río Seco (***) | D21: 1 | E21: 27 | F21: 11 | H21: 1 | I21: 27 | J21: 11
B22: Río Segundo | C22: 5 | E22: 252 | F22: 94 | G22: 2 | I22: 129 | J22: 49 | K22: 3 | L22: 123 | M22: 45
B23: San Alberto | C23: 1 | E23: 36 | F23: 23 | G23: 1 | I23: 36 | J23: 23
B24: San Javier | C24: 1 | E24: 98 | F24: 33 | G24: 1 | I24: 98 | J24: 33
B25: San Justo | C25: 10 | D25: 2 | E25: 418 | F25: 219 | G25: 5 | H25: 2 | I25: 221 | J25: 126 | K25: 5 | L25: 197 | M25: 93
B26: Santa María | C26: 1 | D26: 2 | E26: 122 | F26: 52 | H26: 2 | I26: 49 | J26: 24 | K26: 1 | L26: 73 | M26: 28
B27: Tercero Arriba | C27: 4 | D27: 1 | E27: 313 | F27: 98 | G27: 1 | H27: 1 | I27: 76 | J27: 35 | K27: 3 | L27: 237 | M27: 63
B28: Totoral | C28: 1 | E28: 53 | F28: 19 | G28: 1 | I28: 53 | J28: 19
B29: Tulumba | C29: 1 | E29: 25 | F29: 15 | G29: 1 | I29: 25 | J29: 15
B30: Unión | C30: 6 | E30: 224 | F30: 106 | G30: 1 | I30: 50 | J30: 24 | K30: 5 | L30: 174 | M30: 82
B31: (*) Aquí se está contabilizado una escuela especial base de localidad de Córdoba (departamento Capital ) y un anexo de localidad de La Granja (departamento Colón), cuyos docentes realizan diferentes actividades como la aplicación de nuevos recursos educativos (en el base) y apoyo a la integración en una escuela común (en el anexo). Por ello se cuenta el personal docente de estas escuelas especiales, no así su matrícula.
B32: (**) El personal docente en actividad hace referencia a todas las personas con designación docente que se desempeñan en los establecimientos educativos de la modalidad. Por esta razón, se cuentan tantas veces como ofertas en las que trabajan.
B33: (***) En estos departamentos la oferta de educación especial corresponde a un anexo.
B34: Los departamentos Pocho y Sobremonte no cuentan con educación especial. Esta oferta posee en el ámbito rural solo tres anexos, localizados en los departamentos Colón, Marcos Juárez y Minas (con un total de 47 alumnos, de los cuales 28 son varones). El sector privado no posee oferta en el ámbito rural.
B35: Se incluye la oferta de educación formal y no formal.

Sheet EC6.3 (hidden)
B2: CUADRO 6.3 Alumnos por sector y sexo, según departamento
B3: Departamento | C3: Total general | F3: Estatal | I3: Privado
C4: Total | D4: Mujeres | E4: Varones | F4: Total | G4: Mujeres | H4: Varones | I4: Total | J4: Mujeres | K4: Varones
B5: Total Córdoba | C5: 6489 | D5: 2455 | E5: 4034 | F5: 4022 | G5: 1504 | H5: 2518 | I5: 2467 | J5: 951 | K5: 1516
B6: Calamuchita | C6: 98 | D6: 38 | E6: 60 | F6: 98 | G6: 38 | H6: 60
B7: Capital | C7: 2692 | D7: 1032 | E7: 1660 | F7: 1649 | G7: 613 | H7: 1036 | I7: 1043 | J7: 419 | K7: 624
B8: Colón | C8: 478 | D8: 174 | E8: 304 | F8: 334 | G8: 128 | H8: 206 | I8: 144 | J8: 46 | K8: 98
B9: Cruz del Eje | C9: 118 | D9: 48 | E9: 70 | F9: 118 | G9: 48 | H9: 70
B10: General Roca | C10: 123 | D10: 49 | E10: 74 | F10: 123 | G10: 49 | H10: 74
B11: General San Martín | C11: 210 | D11: 78 | E11: 132 | F11: 142 | G11: 55 | H11: 87 | I11: 68 | J11: 23 | K11: 45
B12: Ischilín | C12: 34 | D12: 16 | E12: 18 | F12: 34 | G12: 16 | H12: 18
B13: Juárez Celman | C13: 102 | D13: 31 | E13: 71 | F13: 76 | G13: 23 | H13: 53 | I13: 26 | J13: 8 | K13: 18
B14: Marcos Juárez | C14: 146 | D14: 54 | E14: 92 | F14: 80 | G14: 32 | H14: 48 | I14: 66 | J14: 22 | K14: 44
B15: Minas | C15: 12 | D15: 5 | E15: 7 | F15: 12 | G15: 5 | H15: 7
B16: Pte. Roque Sáenz Peña | C16: 78 | D16: 33 | E16: 45 | F16: 78 | G16: 33 | H16: 45
B17: Punilla | C17: 352 | D17: 139 | E17: 213 | F17: 149 | G17: 62 | H17: 87 | I17: 203 | J17: 77 | K17: 126
B18: Río Cuarto | C18: 396 | D18: 146 | E18: 250 | F18: 283 | G18: 94 | H18: 189 | I18: 113 | J18: 52 | K18: 61
B19: Río Primero | C19: 82 | D19: 27 | E19: 55 | F19: 82 | G19: 27 | H19: 55
B20: Río Seco | C20: 27 | D20: 6 | E20: 21 | F20: 27 | G20: 6 | H20: 21
B21: Río Segundo | C21: 252 | D21: 104 | E21: 148 | F21: 129 | G21: 51 | H21: 78 | I21: 123 | J21: 53 | K21: 70
B22: San Alberto | C22: 36 | D22: 14 | E22: 22 | F22: 36 | G22: 14 | H22: 22
B23: San Javier | C23: 98 | D23: 36 | E23: 62 | F23: 98 | G23: 36 | H23: 62
B24: San Justo | C24: 418 | D24: 163 | E24: 255 | F24: 221 | G24: 84 | H24: 137 | I24: 197 | J24: 79 | K24: 118
B25: Santa María | C25: 122 | D25: 43 | E25: 79 | F25: 49 | G25: 16 | H25: 33 | I25: 73 | J25: 27 | K25: 46
B26: Tercero Arriba | C26: 313 | D26: 119 | E26: 194 | F26: 76 | G26: 31 | H26: 45 | I26: 237 | J26: 88 | K26: 149
B27: Totoral | C27: 53 | D27: 23 | E27: 30 | F27: 53 | G27: 23 | H27: 30
B28: Tulumba | C28: 25 | D28: 6 | E28: 19 | F28: 25 | G28: 6 | H28: 19
B29: Unión | C29: 224 | D29: 71 | E29: 153 | F29: 50 | G29: 14 | H29: 36 | I29: 174 | J29: 57 | K29: 117
B30: Los departamentos Pocho y Sobremonte no cuentan con educación especial. Esta oferta posee en el ámbito rural solo tres anexos, localizados en los departamentos Colón, Marcos Juárez y Minas (con un total de 47 alumnos, de los cuales 28 son varones). El sector privado no posee oferta en el ámbito rural.
B31: Se incluye la oferta de educación formal y no formal.

Sheet E6.4.1 y 6.4.2 (hidden)
B2: CUADRO 6.4.1 Alumnos por nivel de la educación formal, según departamento
B3: Departamento | C3: Total | D3: Educación Formal
D4: Inicial | F4: Primario | G4: Secundario
D5: Educación temprana | E5: Jardin de infantes
B6: Total Córdoba | C6: 6489 | D6: 191 | E6: 49 | F6: 1894 | G6: 4355
B7: Calamuchita | C7: 98 | D7: 12 | F7: 26 | G7: 60
B8: Capital | C8: 2692 | D8: 67 | E8: 31 | F8: 764 | G8: 1830
B9: Colón | C9: 478 | D9: 2 | E9: 1 | F9: 164 | G9: 311
B10: Cruz del Eje | C10: 118 | D10: 12 | E10: 6 | F10: 34 | G10: 66
B11: General Roca | C11: 123 | F11: 45 | G11: 78
B12: General San Martín | C12: 210 | D12: 8 | E12: 2 | F12: 59 | G12: 141
B13: Ischilín | C13: 34 | F13: 10 | G13: 24
B14: Juárez Celman | C14: 102 | D14: 4 | F14: 26 | G14: 72
B15: Marcos Juárez | C15: 146 | D15: 8 | F15: 31 | G15: 107
B16: Minas | C16: 12 | F16: 1 | G16: 11
B17: Pte. Roque Sáenz Peña | C17: 78 | D17: 1 | F17: 21 | G17: 56
B18: Punilla | C18: 352 | D18: 15 | F18: 99 | G18: 238
B19: Río Cuarto | C19: 396 | D19: 21 | E19: 4 | F19: 75 | G19: 296
B20: Río Primero | C20: 82 | F20: 25 | G20: 57
B21: Río Seco | C21: 27 | F21: 10 | G21: 17
B22: Río Segundo | C22: 252 | D22: 3 | E22: 2 | F22: 91 | G22: 156
B23: San Alberto | C23: 36 | F23: 14 | G23: 22
B24: San Javier | C24: 98 | F24: 27 | G24: 71
B25: San Justo | C25: 418 | D25: 9 | F25: 118 | G25: 291
B26: Santa María | C26: 122 | F26: 39 | G26: 83
B27: Tercero Arriba | C27: 313 | D27: 23 | E27: 3 | F27: 91 | G27: 196
B28: Totoral | C28: 53 | F28: 30 | G28: 23
B29: Tulumba | C29: 25 | F29: 9 | G29: 16
B30: Unión | C30: 224 | D30: 6 | F30: 85 | G30: 133
B31: Los departamentos Pocho y Sobremonte no cuentan con educación especial. Esta oferta posee en el ámbito rural solo tres anexos, localizados en los departamentos Colón, Marcos Juárez y Minas (con un total de 47 alumnos, de los cuales 28 son varones). El sector privado no posee oferta en el ámbito rural.
B33: CUADRO 6.4.2 Alumnos egresados del nivel primario y secundario por sector, según departamento
B34: Departamento | C34: Total general | D34: Primario (*) | G34: Secundario (**)
D35: Total | E35: Estatal | F35: Privado | G35: Total | H35: Estatal | I35: Privado
B36: Total Córdoba | C36: 1190 | D36: 598 | E36: 409 | F36: 189 | G36: 592 | H36: 399 | I36: 193
B37: Calamuchita | C37: 25 | D37: 15 | E37: 15 | G37: 10 | H37: 10
B38: Capital | C38: 519 | D38: 235 | E38: 167 | F38: 68 | G38: 284 | H38: 189 | I38: 95
B39: Colón | C39: 80 | D39: 45 | E39: 31 | F39: 14 | G39: 35 | H39: 31 | I39: 4
B40: Cruz del Eje | C40: 22 | D40: 7 | E40: 7 | G40: 15 | H40: 15
B41: General Roca | C41: 21 | D41: 9 | E41: 9 | G41: 12 | H41: 12
B42: General San Martín | C42: 29 | D42: 22 | E42: 12 | F42: 10 | G42: 7 | H42: 2 | I42: 5
B43: Ischilín | C43: 23 | D43: 10 | E43: 10 | G43: 13 | H43: 13
B44: Juárez Celman | C44: 15 | D44: 9 | E44: 6 | F44: 3 | G44: 6 | H44: 6
B45: Marcos Juárez | C45: 24 | D45: 11 | E45: 7 | F45: 4 | G45: 13 | H45: 9 | I45: 4
B46: Minas | C46: 1 | G46: 1 | H46: 1
B47: Pte. Roque Sáenz Peña | C47: 17 | D47: 7 | E47: 7 | G47: 10 | H47: 10
B48: Punilla | C48: 55 | D48: 37 | E48: 21 | F48: 16 | G48: 18 | H48: 3 | I48: 15
B49: Río Cuarto | C49: 86 | D49: 40 | E49: 34 | F49: 6 | G49: 46 | H49: 34 | I49: 12
B50: Río Primero | C50: 14 | D50: 2 | E50: 2 | G50: 12 | H50: 12
B51: Río Seco | C51: 5 | D51: 3 | E51: 3 | G51: 2 | H51: 2
B52: Río Segundo | C52: 49 | D52: 38 | E52: 19 | F52: 19 | G52: 11 | H52: 6 | I52: 5
B53: Santa María | C53: 26 | D53: 15 | E53: 8 | F53: 7 | G53: 11 | H53: 2 | I53: 9
B54: San Alberto | C54: 5 | D54: 3 | E54: 3 | G54: 2 | H54: 2
B55: San Javier | C55: 24 | D55: 15 | E55: 15 | G55: 9 | H55: 9
B56: San Justo | C56: 70 | D56: 33 | E56: 16 | F56: 17 | G56: 37 | H56: 16 | I56: 21
B57: Tercero Arriba | C57: 36 | D57: 24 | E57: 5 | F57: 19 | G57: 12 | H57: 5 | I57: 7
B58: Totoral | C58: 7 | D58: 1 | E58: 1 | G58: 6 | H58: 6
B59: Tulumba | C59: 5 | D59: 3 | E59: 3 | G59: 2 | H59: 2
B60: Unión | C60: 32 | D60: 14 | E60: 8 | F60: 6 | G60: 18 | H60: 2 | I60: 16
B61: (*) Refiere exclusivamente a los promovidos de 6° grado en el ciclo lectivo 2018.
B62: (**) Total de egresados del nivel secundario

Sheet E6.4.3 (hidden)
B2: CUADRO 6.4.3 Alumnos de educación no formal por sector, según departamento
B3: Departamento | C3: Total | D3: Estatal | E3: Privado
B4: Total Córdoba | C4: 607 | D4: 563 | E4: 44
B5: Capital | C5: 359 | D5: 323 | E5: 36
B6: Colón | C6: 37 | D6: 37
B7: Cruz del Eje | C7: 44 | D7: 44
B8: Ischilín | C8: 10 | D8: 10
B9: Marcos Juárez | C9: 9 | D9: 9
B10: Río Cuarto | C10: 5 | D10: 5
B11: Río Seco | C11: 7 | D11: 7
B12: San Javier | C12: 36 | D12: 36
B13: San Justo | C13: 54 | D13: 54
B14: Santa María | C14: 8 | E14: 8
B15: Totoral | C15: 9 | D15: 9
B16: Tulumba | C16: 25 | D16: 25
B17: Unión | C17: 4 | D17: 4
B18: Se incluyen solo los departamentos donde se dictaron talleres en el periodo lectivo 2019.

Sheet E6.5,6.6,6.7 (hidden)
B2: CUADRO 6.5 Evolución del total de alumnos integrados, por sector de la escuela de origen. Años 2014-2019
B3: Sector | C3: 2014 | D3: 2015 | E3: 2016 | F3: 2017 | G3: 2018 | H3: 2019
B4: Total Córdoba | C4: 1956 | D4: 2270 | E4: 2624 | F4: 3097 | G4: =G5+G6 -> 3753 | H4: 4294
B5: Estatal | C5: 1429 | D5: 1845 | E5: 2084 | F5: 2628 | G5: 3210 | H5: 3684
B6: Privado | C6: 506 | D6: 425 | E6: 540 | F6: 469 | G6: 543 | H6: 610
B10: CUADRO 6.6 Evolución del total de cargos cubiertos de maestro integrador, por sector. Años 2014 - 2019
B11: Sector | C11: 2014 | D11: 2015 | E11: 2016 | F11: 2017 | G11: 2018 | H11: 2019
B12: Total Córdoba | C12: 139 | D12: 163 | E12: 187 | F12: 217 | G12: 273 | H12: 280
B13: Estatal | C13: 121 | D13: 138 | E13: 157 | F13: 184 | G13: 229 | H13: 234
B14: Privado | C14: 18 | D14: 25 | E14: 30 | F14: 33 | G14: 44 | H14: 46
B18: CUADRO 6.7 Evolución del total de alumnos por tipo de integración. Años 2014 -2019
B19: Tipo de Integración | C19: 2014 | D19: 2015 | E19: 2016 | F19: 2017 | G19: 2018 | H19: 2019
B20: Total | C20: 1956 | D20: 2270 | E20: 2624 | F20: 3097 | G20: 3753 | H20: 4294
B21: Apoyo | C21: 1771 | D21: 2028 | E21: 2257 | F21: 2544 | G21: 3315 | H21: 3671
B22: Simultánea | C22: 185 | D22: 242 | E22: 367 | F22: 553 | G22: 438 | H22: 623

Sheet E6.8 (hidden)
B2: CUADRO 6.8 Evolución del total de alumnos integrados, por tipo de discapacidad. Años 2014 - 2019
B3: Tipo de discapacidad | C3: 2014 | D3: 2015 | E3: 2016 | F3: 2017 | G3: 2018 | H3: 2019
B4: Total Córdoba | C4: 1956 | D4: 2270 | E4: 2624 | F4: 3097 | G4: 3753 | H4: 4294
B5: Intelectual | C5: 1223 | D5: 1557 | E5: 1804 | F5: 2248 | G5: 2785 | H5: 3396
B6: Sordera o hipoacusia | C6: 104 | D6: 145 | E6: 187 | F6: 186 | G6: 198 | H6: 193
B7: Ceguera o disminución visual | C7: 157 | D7: 205 | E7: 186 | F7: 193 | G7: 170 | H7: 189
B8: Motora pura o neuromotora | C8: 11 | D8: 16 | E8: 13 | F8: 94 | G8: 28 | H8: 27
B9: Trastornos generalizados del desarrollo (TGD) o Trastornos del espectro autista | C9: 42 | D9: 21 | E9: 35 | F9: 31 | G9: 37 | H9: 84
B10: Más de una discapacidad | C10: 17 | D10: 43 | E10: 63 | F10: 61 | G10: 99 | H10: 97
B11: Sin discapacidad | C11: 402 | D11: 283 | E11: 336 | F11: 269 | G11: 333 | H11: 259
B12: Otras discapacidades | F12: 15 | G12: 103 | H12: 49

Sheet E6.9 (hidden)
B2: CUADRO 6.9 Evolución del total de alumnos integrados por sector de la escuela de origen y tipo de discapacidad. Años 2014 - 2019
B3: Sector de escuela de origen | C3: Tipo de discapacidad | D3: 2014 | E3: 2015 | F3: 2016 | G3: 2017 | H3: 2018 | I3: 2019
B4: Total Córdoba | D4: 1956 | E4: 2270 | F4: 2624 | G4: 3097 | H4: =SUM(H5:H20) -> 3753 | I4: 4294
B5: Estatal | C5: Intelectual | D5: 1063 | E5: 1309 | F5: 1533 | G5: 1950 | H5: 2446 | I5: 3015
C6: Sordera o hipoacusia | D6: 99 | E6: 140 | F6: 183 | G6: 185 | H6: 194 | I6: 187
C7: Ceguera o disminución visual | D7: 153 | E7: 196 | F7: 176 | G7: 185 | H7: 162 | I7: 180
C8: Motora pura o neuromotora | D8: 10 | E8: 12 | F8: 9 | G8: 88 | H8: 24 | I8: 24
C9: Trastornos generalizados del desarrollo (TGD) o Trastornos del espectro autista (TEA) | D9: 31 | E9: 15 | F9: 27 | G9: 28 | H9: 29 | I9: 73
C10: Más de una discapacidad | D10: 12 | E10: 36 | F10: 29 | G10: 45 | H10: 76 | I10: 68
C11: Sin discapacidad | D11: 61 | E11: 137 | F11: 127 | G11: 139 | H11: 191 | I11: 106
C12: Otras discapacidades | G12: 8 | H12: 88 | I12: 31
B13: Privado | C13: Intelectual | D13: 160 | E13: 248 | F13: 271 | G13: 298 | H13: 339 | I13: 381
C14: Sordera o hipoacusia | D14: 5 | E14: 5 | F14: 4 | G14: 1 | H14: 4 | I14: 6
C15: Ceguera o disminución visual | D15: 4 | E15: 9 | F15: 10 | G15: 8 | H15: 8 | I15: 9
C16: Motora pura o neuromotora | D16: 1 | E16: 4 | F16: 4 | G16: 6 | H16: 4 | I16: 3
C17: Trastornos generalizados del desarrollo (TGD) o Trastornos del Espectro autista | D17: 11 | E17: 6 | F17: 8 | G17: 3 | H17: 8 | I17: 11
C18: Más de una discapacidad | D18: 5 | E18: 7 | F18: 34 | G18: 16 | H18: 23 | I18: 29
C19: Sin discapacidad | D19: 341 | E19: 146 | F19: 209 | G19: 130 | H19: 142 | I19: 153
C20: Otras discapacidades | G20: 7 | H20: 15 | I20: 18

Sheet E6.10 (hidden)
B2: CUADRO 6.10 Alumnos con discapacidad, por tipo de seguimiento que reciben, según modalidad y nivel en el que cursan
B3: Modalidad | C3: Nivel | D3: Total | E3: Con apoyo a la inclusión del Sector Estatal | F3: Con apoyo a la inclusión del Sector Privado | G3: Sin apoyo a la inclusión | H3: Con CUD | I3: Sin CUD
B4: Total Córdoba | D4: 18191 | E4: 4411 | F4: 9935 | G4: 3845 | H4: 13246 | I4: 4945
B5: Común | C5: Total Común | D5: 17545 | E5: 4183 | F5: 9873 | G5: 3489 | H5: 12857 | I5: 4688
C6: Inicial | D6: 1850 | E6: 334 | F6: 1029 | G6: 487 | H6: 1354 | I6: 496
C7: Primario | D7: 9096 | E7: 2248 | F7: 5205 | G7: 1643 | H7: 6894 | I7: 2202
C8: Secundario | D8: 6522 | E8: 1596 | F8: 3619 | G8: 1307 | H8: 4587 | I8: 1935
C9: Superior | D9: 77 | E9: 5 | F9: 20 | G9: 52 | H9: 22 | I9: 55
B10: Jóvenes y Adultos | C10: Total Jóvenes y Adultos | D10: 544 | E10: 176 | F10: 53 | G10: 315 | H10: 308 | I10: 236
C11: Primario | D11: 327 | E11: 79 | F11: 9 | G11: 239 | H11: 159 | I11: 168
C12: Secundario | D12: 217 | E12: 97 | F12: 44 | G12: 76 | H12: 149 | I12: 68
B13: Formación Profesional | D13: 102 | E13: 52 | F13: 9 | G13: 41 | H13: 81 | I13: 21

Sheet E 6.11 (hidden)
B2: CUADRO 6.11 Personal docente en actividad, por sector, según departamento
B3: Departamento | C3: Total | D3: Estatal | E3: Privado
B4: Total Córdoba (*) | C4: 2747 | D4: 1805 | E4: 942
B5: Calamuchita | C5: 47 | D5: 47
B6: Capital | C6: 990 | D6: 627 | E6: 363
B7: Colón | C7: 174 | D7: 117 | E7: 57
B8: Cruz del Eje | C8: 30 | D8: 30
B9: General Roca | C9: 47 | D9: 47
B10: General San Martín | C10: 105 | D10: 65 | E10: 40
B11: Ischilín | C11: 27 | D11: 27
B12: Juárez Celman | C12: 91 | D12: 72 | E12: 19
B13: Marcos Juárez | C13: 109 | D13: 67 | E13: 42
B14: Minas | C14: 7 | D14: 7
B15: Pte. Roque Sáenz Peña | C15: 50 | D15: 50
B16: Punilla | C16: 131 | D16: 77 | E16: 54
B17: Río Cuarto | C17: 238 | D17: 182 | E17: 56
B18: Río Primero | C18: 31 | D18: 31
B19: Río Seco | C19: 11 | D19: 11
B20: Río Segundo | C20: 94 | D20: 49 | E20: 45
B21: San Alberto | C21: 23 | D21: 23
B22: San Javier | C22: 33 | D22: 33
B23: San Justo | C23: 219 | D23: 126 | E23: 93
B24: Santa María | C24: 52 | D24: 24 | E24: 28
B25: Tercero Arriba | C25: 98 | D25: 35 | E25: 63
B26: Totoral | C26: 19 | D26: 19
B27: Tulumba | C27: 15 | D27: 15
B28: Unión | C28: 106 | D28: 24 | E28: 82
B29: (*) El personal docente en actividad hace referencia a todas las personas con designación docente que se desempeñan en los establecimientos educativos de la modalidad. Por esta razón, se cuentan tantas veces como ofertas en las que trabajan.

Sheet EC6.12 (hidden)
B2: CUADRO 6.12 Cargos docentes cubiertos frente a alumnos, por sector, según departamento
B3: Departamento | C3: Total | D3: Estatal | E3: Privado
B4: Total Córdoba | C4: 1030 | D4: 668 | E4: 362
B5: Calamuchita | C5: 13 | D5: 13
B6: Capital | C6: 381 | D6: 240 | E6: 141
B7: Colón | C7: 69 | D7: 40 | E7: 29
B8: Cruz del Eje | C8: 12 | D8: 12
B9: General Roca | C9: 17 | D9: 17
B10: General San Martín | C10: 48 | D10: 37 | E10: 11
B11: Ischilín | C11: 5 | D11: 5
B12: Juárez Celman | C12: 34 | D12: 27 | E12: 7
B13: Marcos Juárez | C13: 29 | D13: 18 | E13: 11
B14: Minas | C14: 3 | D14: 3
B15: Pte. Roque Sáenz Peña | C15: 21 | D15: 21
B16: Punilla | C16: 51 | D16: 27 | E16: 24
B17: Río Cuarto | C17: 74 | D17: 61 | E17: 13
B18: Río Primero | C18: 9 | D18: 9
B19: Río Seco | C19: 3 | D19: 3
B20: Río Segundo | C20: 37 | D20: 22 | E20: 15
B21: San Alberto | C21: 5 | D21: 5
B22: San Javier | C22: 20 | D22: 20
B23: San Justo | C23: 73 | D23: 44 | E23: 29
B24: Santa María | C24: 25 | D24: 12 | E24: 13
B25: Tercero Arriba | C25: 39 | D25: 13 | E25: 26
B26: Totoral | C26: 9 | D26: 9
B27: Tulumba | C27: 4 | D27: 4
B28: Unión | C28: 49 | D28: 6 | E28: 43
B29: No se encuentran incluidos los cargos de maestro integrador, puesto que no atienden de manera exclusiva a la matrícula de las escuelas especiales como sí lo hacen los otros.

Sheet Cuadro 7.1. (hidden)
B2: CUADRO 7.1 Establecimientos, alumnos y personal docente en actividad, por sector y dependencia
C3: Total | D3: Estatal | F3: Privado
D4: Provincial | E4: Municipal | F4: Provincial
B5: Establecimientos (*) | C5: 3 | D5: 1 | E5: 1 | F5: 1
B6: Alumnos | C6: 278 | D6: 173 | E6: 80 | F6: 25
B7: Personal docente (**) | C7: 81 | D7: 62 | E7: 6 | F7: 13
B8: (*) Aquí se consignan establecimientos y no unidades educativas (puesto que ellas se vinculan a las formas de implementación del nivel). Esto es así porque en la Provincia, la modalidad de educación hospitalaria y domiciliaria se organiza en establecimientos (ver glosario) con una máxima autoridad pedagógica y con una única partida presupuestaria, en los que se imparte distintos niveles de enseñanza. De allí que en un mismo establecimiento coexisten varias unidades educativas y en la medida que los docentes son parte de la misma planta funcional, no es posible discriminar quién trabaja para cada una de ellas (salvo raras excepciones).
B9: (**) El personal docente en actividad hace referencia a todas las personas con designación docente que se desempeñan en los establecimientos de la modalidad; por esta razón se cuentan tantas veces como ofertas en las que trabajan.

Sheet Cuadro 7.2 (hidden)
B2: CUADRO 7.2 Alumnos por sexo, según modalidad y nivel
B3: Modalidad | C3: Nivel | D3: Total | E3: Mujeres | F3: Varones
B4: Total Córdoba | D4: 278 | E4: 123 | F4: 155
B5: Común | C5: Inicial | D5: 58 | E5: 26 | F5: 32
C6: Primario | D6: 116 | E6: 57 | F6: 59
C7: Secundario | D7: 96 | E7: 37 | F7: 59
B8: Especial | C8: Primario | D8: 3 | E8: 1 | F8: 2
C9: Secundario | D9: 5 | E9: 2 | F9: 3
B10: A la fecha de realización del Relevamiento Anual las escuelas hospitalarias contaban con alumnos matriculados en la modalidad comón y especial.

Sheet Cuadro7.3 (hidden)
B2: CUADRO 7.3 Alumnos por tipo de atención, según modalidad y nivel
B3: Modalidad | C3: Nivel | D3: Total | E3: Hospitalaria | F3: Domiciliaria
B4: Total Córdoba | D4: 278 | E4: 184 | F4: 94
B5: Común | C5: Inicial | D5: 58 | E5: 48 | F5: 10
C6: Primario | D6: 116 | E6: 82 | F6: 34
C7: Secundario | D7: 96 | E7: 53 | F7: 43
B8: Especial | C8: Primario | D8: 3 | F8: 3
C9: Secundario | D9: 5 | E9: 1 | F9: 4
B10: A la fecha de realización del Relevamiento Anual las escuelas hospitalarias contaban con alumnos matriculados en la modalidad comón y especial.

Sheet C.8.1 Datos grales (hidden)
B2: CUADRO 8.1 Unidades educativas, alumnos y personal docente en actividad, por sector, según ámbito
C3: Ámbito | D3: Total | E3: Estatal | F3: Privado
B4: Unidades educativas | C4: Total | D4: 356 | E4: 326 | F4: 30
C5: Urbano | D5: 330 | E5: 300 | F5: 30
C6: Rural | D6: 26 | E6: 26
B7: Alumnos | C7: Total | D7: 51585 | E7: 45915 | F7: 5670
C8: Urbano | D8: 46804 | E8: 41134 | F8: 5670
C9: Rural | D9: 4781 | E9: 4781
B10: Personal docente (*) | C10: Total | D10: 8108 | E10: 7590 | F10: 518
C11: Urbano | D11: 7000 | E11: 6482 | F11: 518
C12: Rural | D12: 1108 | E12: 1108
B13: (*) El personal docente en actividad hace referencia a todas las personas con designación docente que se desempeñan en las unidades educativas de la modalidad. Por esta razón, se cuentan tantas veces como ofertas en las que trabajan.

Sheet C.8.2 contexto de priv lib (hidden)
B2: CUADRO 8.2 Alumnos matriculados en contexto de privación de la libertad, por sexo, según nivel al que asisten
B3: Nivel | C3: Total | D3: Mujeres | E3: Varones
B4: Total Córdoba | C4: 2843 | D4: 245 | E4: 2598
B5: Primario | C5: 860 | D5: 61 | E5: 799
B6: Secundario | C6: 1983 | D6: 184 | E6: 1799

Sheet C.8.3. (hidden)
B2: CUADRO 8.3 Unidades educativas, alumnos y personal docente en actividad, por sector y dependencia, según ámbito
C3: Ámbito | D3: Total | E3: Estatal | G3: Privado
E4: Provincial | F4: Municipal | G4: Provincial
B5: Unidades educativas | C5: Total | D5: 219 | E5: 193 | F5: 24 | G5: 2
C6: Urbano | D6: 193 | E6: 167 | F6: 24 | G6: 2
C7: Rural | D7: 26 | E7: 26
B8: Alumnos | C8: Total | D8: 5363 | E8: 4780 | F8: 555 | G8: 28
C9: Urbano | D9: 4598 | E9: 4015 | F9: 555 | G9: 28
C10: Rural | D10: 765 | E10: 765
B11: Personal docente (*) | C11: Total | D11: 541 | E11: 463 | F11: 73 | G11: 5
C12: Urbano | D12: 480 | E12: 402 | F12: 73 | G12: 5
C13: Rural | D13: 61 | E13: 61
B14: (*) El personal docente en actividad hace referencia a todas las personas con designación docente que se desempeñan en las unidades educativas de la modalidad. Por esta razón, se cuentan tantas veces como ofertas en las que trabajan.
B15: Las unidades educativas de dependencia municipal pertenecen a la Municipalidad de Córdoba.

Sheet C. 8.4 (hidden)
B2: CUADRO 8.4 Bases, anexos, alumnos y personal docente en actividad, por ámbito, según departamento
B3: Departamento | C3: Total | G3: Urbano (**) | K3: Rural
C4: Bases | D4: Anexos | E4: Alumnos | F4: Personal docente (*) | G4: Bases | H4: Anexos | I4: Alumnos | J4: Personal docente | K4: Bases | L4: Anexos | M4: Alumnos | N4: Personal docente
B5: Total Córdoba | C5: 219 | D5: 71 | E5: 5363 | F5: 541 | G5: 193 | H5: 60 | I5: 4598 | J5: 480 | K5: 26 | L5: 11 | M5: 765 | N5: 61
B6: Calamuchita | C6: 7 | D6: 1 | E6: 85 | F6: 8 | G6: 5 | I6: 66 | J6: 5 | K6: 2 | L6: 1 | M6: 19 | N6: 3
B7: Capital | C7: 66 | D7: 36 | E7: 2037 | F7: 251 | G7: 66 | H7: 36 | I7: 2037 | J7: 251
B8: Colón | C8: 8 | D8: 6 | E8: 263 | F8: 22 | G8: 8 | H8: 5 | I8: 256 | J8: 21 | L8: 1 | M8: 7 | N8: 1
B9: Cruz del Eje | C9: 4 | E9: 137 | F9: 9 | G9: 3 | I9: 131 | J9: 8 | K9: 1 | M9: 6 | N9: 1
B10: General Roca | C10: 6 | E10: 55 | F10: 7 | G10: 4 | I10: 38 | J10: 5 | K10: 2 | M10: 17 | N10: 2
B11: General San Martín | C11: 7 | E11: 135 | F11: 12 | G11: 7 | I11: 135 | J11: 12
B12: Ischilín | C12: 2 | E12: 35 | F12: 3 | G12: 2 | I12: 35 | J12: 3
B13: Juárez Celman | C13: 6 | D13: 1 | E13: 81 | F13: 7 | G13: 5 | I13: 66 | J13: 5 | K13: 1 | L13: 1 | M13: 15 | N13: 2
B14: Marcos Juárez | C14: 12 | E14: 117 | F14: 15 | G14: 11 | I14: 111 | J14: 13 | K14: 1 | M14: 6 | N14: 2
B15: Minas | C15: 2 | E15: 10 | F15: 2 | K15: 2 | M15: 10 | N15: 2
B16: Pocho | C16: 1 | E16: 7 | F16: 1 | K16: 1 | M16: 7 | N16: 1
B17: Pte. Roque Sáenz Peña | C17: 4 | E17: 68 | F17: 5 | G17: 3 | I17: 58 | J17: 4 | K17: 1 | M17: 10 | N17: 1
B18: Punilla | C18: 5 | D18: 7 | E18: 168 | F18: 21 | G18: 4 | H18: 6 | I18: 152 | J18: 18 | K18: 1 | L18: 1 | M18: 16 | N18: 3
B19: Río Cuarto | C19: 16 | D19: 4 | E19: 361 | F19: 24 | G19: 16 | H19: 4 | I19: 361 | J19: 24
B20: Río Primero | C20: 6 | D20: 4 | E20: 147 | F20: 13 | G20: 5 | H20: 1 | I20: 108 | J20: 9 | K20: 1 | L20: 3 | M20: 39 | N20: 4
B21: Río Seco | C21: 1 | E21: 6 | F21: 1 | G21: 1 | I21: 6 | J21: 1
B22: Río Segundo | C22: 7 | E22: 74 | F22: 9 | G22: 7 | I22: 74 | J22: 9
B23: San Alberto | C23: 4 | E23: 53 | F23: 5 | G23: 2 | I23: 36 | J23: 3 | K23: 2 | M23: 17 | N23: 2
B24: San Javier | C24: 3 | E24: 77 | F24: 5 | G24: 3 | I24: 77 | J24: 5
B25: San Justo | C25: 19 | D25: 4 | E25: 338 | F25: 31 | G25: 15 | H25: 3 | I25: 283 | J25: 26 | K25: 4 | L25: 1 | M25: 55 | N25: 5
B26: Santa María | C26: 5 | D26: 5 | E26: 703 | F26: 48 | G26: 5 | H26: 2 | I26: 236 | J26: 23 | L26: 3 | M26: 467 | N26: 25
B27: Sobremonte | C27: 1 | E27: 13 | F27: 1 | K27: 1 | M27: 13 | N27: 1
B28: Tercero Arriba | C28: 6 | D28: 3 | E28: 107 | F28: 10 | G28: 6 | H28: 3 | I28: 107 | J28: 10
B29: Totoral | C29: 2 | E29: 14 | F29: 2 | G29: 2 | I29: 14 | J29: 2
B30: Tulumba | C30: 4 | E30: 39 | F30: 4 | G30: 1 | I30: 10 | J30: 1 | K30: 3 | M30: 29 | N30: 3
B31: Unión | C31: 15 | E31: 233 | F31: 25 | G31: 12 | I31: 201 | J31: 22 | K31: 3 | M31: 32 | N31: 3
B32: (*) El personal docente en actividad hace referencia a todas las personas con designación docente que se desempeñan en las unidades educativas de la modalidad. Por esta razón, se cuentan tantas veces como ofertas en las que trabajan.
B33: (**) En el ámbito urbano están incluidas las dos únicas bases de la modalidad (primaria de adultos) con las que cuenta el sector privado, que están localizadas en los departamentos Capital y Río Cuarto, así como sus alumnos y docentes.
B34: En el departamento Capital están incluidas además de las provinciales, las unidades educativas (bases con sus anexos) municipales, al igual que sus alumnos y personal docente.

Sheet C. 8.5 (hidden)
B2: CUADRO 8.5 Alumnos por ámbito y sexo, según departamento
B3: Departamento | C3: Total general | F3: Urbano (*) | I3: Rural
C4: Total | D4: Mujeres | E4: Varones | F4: Total | G4: Mujeres | H4: Varones | I4: Total | J4: Mujeres | K4: Varones
B5: Total Córdoba | C5: 5363 | D5: 3007 | E5: 2356 | F5: 4598 | G5: 2777 | H5: 1821 | I5: 765 | J5: 230 | K5: 535
B6: Calamuchita | C6: 85 | D6: 55 | E6: 30 | F6: 66 | G6: 46 | H6: 20 | I6: 19 | J6: 9 | K6: 10
B7: Capital | C7: 2037 | D7: 1470 | E7: 567 | F7: 2037 | G7: 1470 | H7: 567 | K7: 0
B8: Colón | C8: 263 | D8: 177 | E8: 86 | F8: 256 | G8: 171 | H8: 85 | I8: 7 | J8: 6 | K8: 1
B9: Cruz del Eje | C9: 137 | D9: 24 | E9: 113 | F9: 131 | G9: 20 | H9: 111 | I9: 6 | J9: 4 | K9: 2
B10: General Roca | C10: 55 | D10: 31 | E10: 24 | F10: 38 | G10: 22 | H10: 16 | I10: 17 | J10: 9 | K10: 8
B11: General San Martín | C11: 135 | D11: 48 | E11: 87 | F11: 135 | G11: 48 | H11: 87
B12: Ischilín | C12: 35 | D12: 16 | E12: 19 | F12: 35 | G12: 16 | H12: 19
B13: Juárez Celman | C13: 81 | D13: 51 | E13: 30 | F13: 66 | G13: 43 | H13: 23 | I13: 15 | J13: 8 | K13: 7
B14: Marcos Juárez | C14: 117 | D14: 74 | E14: 43 | F14: 111 | G14: 69 | H14: 42 | I14: 6 | J14: 5 | K14: 1
B15: Minas | C15: 10 | D15: 8 | E15: 2 | I15: 10 | J15: 8 | K15: 2
B16: Pocho | C16: 7 | D16: 4 | E16: 3 | I16: 7 | J16: 4 | K16: 3
B17: Pte. Roque Sáenz Peña | C17: 68 | D17: 57 | E17: 11 | F17: 58 | G17: 47 | H17: 11 | I17: 10 | J17: 10
B18: Punilla | C18: 168 | D18: 93 | E18: 75 | F18: 152 | G18: 82 | H18: 70 | I18: 16 | J18: 11 | K18: 5
B19: Río Cuarto | C19: 361 | D19: 183 | E19: 178 | F19: 361 | G19: 183 | H19: 178
B20: Río Primero | C20: 147 | D20: 94 | E20: 53 | F20: 108 | G20: 71 | H20: 37 | I20: 39 | J20: 23 | K20: 16
B21: Río Seco | C21: 6 | D21: 6 | E21: 0 | F21: 6 | G21: 6
B22: Río Segundo | C22: 74 | D22: 48 | E22: 26 | F22: 74 | G22: 48 | H22: 26
B23: San Alberto | C23: 53 | D23: 28 | E23: 25 | F23: 36 | G23: 16 | H23: 20 | I23: 17 | J23: 12 | K23: 5
B24: San Javier | C24: 77 | D24: 18 | E24: 59 | F24: 77 | G24: 18 | H24: 59
B25: San Justo | C25: 338 | D25: 176 | E25: 162 | F25: 283 | G25: 140 | H25: 143 | I25: 55 | J25: 36 | K25: 19
B26: Santa María | C26: 703 | D26: 123 | E26: 580 | F26: 236 | G26: 72 | H26: 164 | I26: 467 | J26: 51 | K26: 416
B27: Sobremonte | C27: 13 | D27: 2 | E27: 11 | I27: 13 | J27: 2 | K27: 11
B28: Tercero Arriba | C28: 107 | D28: 64 | E28: 43 | F28: 107 | G28: 64 | H28: 43
B29: Totoral | C29: 14 | D29: 7 | E29: 7 | F29: 14 | G29: 7 | H29: 7
B30: Tulumba | C30: 39 | D30: 19 | E30: 20 | F30: 10 | G30: 3 | H30: 7 | I30: 29 | J30: 16 | K30: 13
B31: Unión | C31: 233 | D31: 131 | E31: 102 | F31: 201 | G31: 115 | H31: 86 | I31: 32 | J31: 16 | K31: 16
B32: (*) En el ámbito urbano están incluidas las dos únicas bases de la modalidad (primaria de adultos) con las que cuenta el sector privado, que están localizadas en los departamentos Capital y Río Cuarto, así como sus alumnos y docentes.
B33: En el departamento Capital están incluidas, además de las provinciales, las unidades educativas (bases con sus anexos) municipales, al igual que sus alumnos y personal docente.

Sheet C.8.6 (hidden)
B2: CUADRO 8.6 Secciones por ámbito y tipo, según departamento
B3: Departamento | C3: Total | D3: Urbano (*) | F3: Rural
D4: Independiente | E4: Múltiple | F4: Independiente | G4: Múltiple
B5: Total Córdoba | C5: 421 | D5: 185 | E5: 175 | F5: 34 | G5: 27
B6: Calamuchita | C6: 8 | D6: 1 | E6: 4 | F6: 1 | G6: 2
B7: Capital | C7: 164 | D7: 95 | E7: 69
B8: Colón | C8: 21 | D8: 13 | E8: 7 | G8: 1
B9: Cruz del Eje | C9: 7 | D9: 4 | E9: 2 | G9: 1
B10: General Roca | C10: 7 | D10: 2 | E10: 3 | G10: 2
B11: General San Martín | C11: 10 | D11: 6 | E11: 4
B12: Ischilín | C12: 3 | D12: 2 | E12: 1
B13: Juárez Celman | C13: 7 | E13: 5 | G13: 2
B14: Marcos Juárez | C14: 13 | D14: 1 | E14: 10 | F14: 2
B15: Minas | C15: 2 | G15: 2
B16: Pocho | C16: 2 | F16: 2
B17: Pte. Roque Sáenz Peña | C17: 5 | D17: 2 | E17: 2 | G17: 1
B18: Punilla | C18: 19 | D18: 8 | E18: 7 | F18: 4
B19: Río Cuarto | C19: 25 | D19: 12 | E19: 13
B20: Río Primero | C20: 11 | E20: 6 | F20: 2 | G20: 3
B21: Río Seco | C21: 1 | D21: 1
B22: Río Segundo | C22: 10 | D22: 7 | E22: 3
B23: San Alberto | C23: 6 | D23: 4 | E23: 0 | G23: 2
B24: San Javier | C24: 4 | D24: 3 | E24: 1
B25: San Justo | C25: 27 | D25: 8 | E25: 13 | F25: 2 | G25: 4
B26: Santa María | C26: 35 | D26: 10 | E26: 4 | F26: 20 | G26: 1
B27: Sobremonte | C27: 1 | G27: 1
B28: Tercero Arriba | C28: 9 | D28: 1 | E28: 8
B29: Totoral | C29: 2 | E29: 2
B30: Tulumba | C30: 4 | E30: 1 | F30: 1 | G30: 2
B31: Unión | C31: 18 | D31: 5 | E31: 10 | G31: 3
B32: (*) En el ámbito urbano están incluidas las dos únicas bases de la modalidad (primaria de adultos) con las que cuenta el sector privado, que están localizadas en los departamentos Capital y Río Cuarto, así como sus alumnos y docentes.
B33: En el departamento Capital están incluidas, además de las provinciales, las unidades educativas (bases con sus anexos) municipales, al igual que sus alumnos, secciones y personal docente.

Sheet C.8.7 (hidden)
B2: CUADRO 8.7 Personal docente en actividad, por ámbito, según departamento
B3: Departamento | C3: Total (*) | D3: Urbano (**) | E3: Rural
B4: Total Córdoba | C4: 541 | D4: 480 | E4: 61
B5: Calamuchita | C5: 8 | D5: 5 | E5: 3
B6: Capital | C6: 251 | D6: 251
B7: Colón | C7: 22 | D7: 21 | E7: 1
B8: Cruz del Eje | C8: 9 | D8: 8 | E8: 1
B9: General Roca | C9: 7 | D9: 5 | E9: 2
B10: General San Martín | C10: 12 | D10: 12
B11: Ischilín | C11: 3 | D11: 3
B12: Juárez Celman | C12: 7 | D12: 5 | E12: 2
B13: Marcos Juárez | C13: 15 | D13: 13 | E13: 2
B14: Minas | C14: 2 | E14: 2
B15: Pocho | C15: 1 | E15: 1
B16: Pte. Roque Sáenz Peña | C16: 5 | D16: 4 | E16: 1
B17: Punilla | C17: 21 | D17: 18 | E17: 3
B18: Río Cuarto | C18: 24 | D18: 24
B19: Río Primero | C19: 13 | D19: 9 | E19: 4
B20: Río Seco | C20: 1 | D20: 1
B21: Río Segundo | C21: 9 | D21: 9
B22: San Alberto | C22: 5 | D22: 3 | E22: 2
B23: San Javier | C23: 5 | D23: 5
B24: San Justo | C24: 31 | D24: 26 | E24: 5
B25: Santa María | C25: 48 | D25: 23 | E25: 25
B26: Sobremonte | C26: 1 | E26: 1
B27: Tercero Arriba | C27: 10 | D27: 10
B28: Totoral | C28: 2 | D28: 2
B29: Tulumba | C29: 4 | D29: 1 | E29: 3
B30: Unión | C30: 25 | D30: 22 | E30: 3
B31: (*) El personal docente en actividad hace referencia a todas las personas con designación docente que se desempeñan en las unidades educativas de la modalidad. Por esta razón, se cuentan tantas veces como ofertas en las que trabajan.
B32: (**) En el ámbito urbano están incluidas las dos únicas bases de la modalidad (primaria de adultos) con las que cuenta el sector privado, que están localizadas en los departamentos Capital y Río Cuarto, así como sus alumnos y docentes.
B33: En el departamento Capital están incluidas, además de las provinciales, las unidades educativas (bases con sus anexos) municipales, al igual que sus alumnos y personal docente.

Sheet C. 8.8 (hidden)
B2: CUADRO 8.8 Unidades educativas, alumnos y personal docente en actividad, por sector, según ámbito
C3: Ámbito | D3: Total | E3: Estatal | F3: Privado
B4: Unidades educativas | C4: Total | D4: 137 | E4: 109 | F4: 28
C5: Urbano (*) | D5: 137 | E5: 109 | F5: 28
B6: Alumnos | C6: Total | D6: 46222 | E6: 40580 | F6: 5642
C7: Urbano | D7: 42206 | E7: 36564 | F7: 5642
C8: Rural | D8: 4016 | E8: 4016
B9: Personal docente (**) | C9: Total | D9: 7567 | E9: 7054 | F9: 513
C10: Urbano | D10: 6520 | E10: 6007 | F10: 513
C11: Rural | D11: 1047 | E11: 1047
B12: (*) El concepto de unidad educativa hace referencia a la implementación de un nivel educativo, por lo que una unidad educativa puede constar de una base y anexos. Su registro es en el ámbito donde se localiza la base (donde se encuentra la máxima autoridad pedagógica de esa unidad). Por esta razón es posible encontrar unidades en el ámbito urbano exclusivamente en tanto lo que los alumnos son registrados en el ámbito en el que cursan (en un anexo).
B13: (**) El personal docente en actividad hace referencia a todas las personas con designación docente que se desempeñan en las unidades educativas de la modalidad. Por esta razón, se cuentan tantas veces como ofertas en las que trabajan.

Sheet C.8.9 (hidden)
B2: CUADRO 8.9 Unidades educativas, alumnos y personal docente en actividad, por sector, según departamento
B3: Departamento | C3: Total | F3: Estatal | I3: Privado
C4: Unidades educativas | D4: Alumnos | E4: Personal docente (*) | F4: Unidades educativas | G4: Alumnos | H4: Personal docente | I4: Unidades educativas | J4: Alumnos | K4: Personal docente
B5: Total Córdoba | C5: 137 | D5: 46222 | E5: 7567 | F5: 109 | G5: 40580 | H5: 7054 | I5: 28 | J5: 5642 | K5: 513
B6: Calamuchita | C6: 2 | D6: 645 | E6: 170 | F6: 2 | G6: 645 | H6: 170
B7: Capital | C7: 51 | D7: 19359 | E7: 2782 | F7: 34 | G7: 14479 | H7: 2445 | I7: 17 | J7: 4880 | K7: 337
B8: Colón | C8: 7 | D8: 2895 | E8: 370 | F8: 7 | G8: 2895 | H8: 370
B9: Cruz del Eje | C9: 3 | D9: 1216 | E9: 185 | F9: 3 | G9: 1216 | H9: 185
B10: General Roca | C10: 3 | D10: 398 | E10: 91 | F10: 3 | G10: 398 | H10: 91
B11: General San Martín | C11: 3 | D11: 1516 | E11: 279 | F11: 3 | G11: 1516 | H11: 279
B12: Ischilín | C12: 1 | D12: 587 | E12: 84 | F12: 1 | G12: 587 | H12: 84
B13: Juárez Celman | C13: 6 | D13: 683 | E13: 158 | F13: 4 | G13: 564 | H13: 126 | I13: 2 | J13: 119 | K13: 32
B14: Marcos Juárez | C14: 8 | D14: 1167 | E14: 246 | F14: 6 | G14: 977 | H14: 211 | I14: 2 | J14: 190 | K14: 35
B15: Minas | D15: 89 | E15: 38 | G15: 89 | H15: 38
B16: Pocho | D16: 65 | E16: 26 | G16: 65 | H16: 26
B17: Pte. Roque Sáenz Peña | C17: 1 | D17: 481 | E17: 112 | F17: 1 | G17: 481 | H17: 112
B18: Punilla | C18: 5 | D18: 1911 | E18: 338 | F18: 4 | G18: 1830 | H18: 325 | I18: 1 | J18: 81 | K18: 13
B19: Río Cuarto | C19: 12 | D19: 2676 | E19: 563 | F19: 9 | G19: 2470 | H19: 512 | I19: 3 | J19: 206 | K19: 51
B20: Río Primero | C20: 2 | D20: 848 | E20: 129 | F20: 2 | G20: 848 | H20: 129
B21: Río Seco | C21: 1 | D21: 304 | E21: 70 | F21: 1 | G21: 304 | H21: 70
B22: Río Segundo | C22: 4 | D22: 1509 | E22: 210 | F22: 4 | G22: 1509 | H22: 210
B23: San Alberto | C23: 1 | D23: 530 | E23: 94 | F23: 1 | G23: 530 | H23: 94
B24: San Javier | C24: 1 | D24: 870 | E24: 127 | F24: 1 | G24: 870 | H24: 127
B25: San Justo | C25: 11 | D25: 2976 | E25: 518 | F25: 9 | G25: 2892 | H25: 484 | I25: 2 | J25: 84 | K25: 34
B26: Santa María | C26: 4 | D26: 2264 | E26: 354 | F26: 4 | G26: 2264 | H26: 354
B27: Sobremonte | D27: 99 | E27: 22 | G27: 99 | H27: 22
B28: Tercero Arriba | C28: 4 | D28: 1083 | E28: 207 | F28: 4 | G28: 1083 | H28: 207
B29: Totoral | C29: 1 | D29: 530 | E29: 81 | F29: 1 | G29: 530 | H29: 81
B30: Tulumba | C30: 1 | D30: 293 | E30: 55 | F30: 1 | G30: 293 | H30: 55
B31: Unión | C31: 5 | D31: 1228 | E31: 258 | F31: 4 | G31: 1146 | H31: 247 | I31: 1 | J31: 82 | K31: 11
B32: (*) El personal docente en actividad hace referencia a todas las personas con designación docente que se desempeñan en las unidades educativas de la modalidad. Por esta razón, se cuentan tantas veces como ofertas en las que trabajan.

Sheet C. 8.10 (hidden)
B2: CUADRO 8.10 Bases y anexos, por sector y ámbito, según departamento
B3: Departamento | C3: Total | E3: Estatal | H3: Privado
E4: Urbano | G4: Rural | H4: Urbano
C5: Bases | D5: Anexos | E5: Bases | F5: Anexos | G5: Anexos | H5: Bases
B6: Total Córdoba | C6: 137 | D6: 320 | E6: 109 | F6: 209 | G6: 111 | H6: 28
B7: Calamuchita | C7: 2 | D7: 13 | E7: 2 | F7: 5 | G7: 8
B8: Capital | C8: 51 | D8: 79 | E8: 34 | F8: 79 | H8: 17
B9: Colón | C9: 7 | D9: 12 | E9: 7 | F9: 9 | G9: 3
B10: Cruz del Eje | C10: 3 | D10: 8 | E10: 3 | F10: 4 | G10: 4
B11: General Roca | C11: 3 | D11: 5 | E11: 3 | F11: 3 | G11: 2
B12: General San Martín | C12: 3 | D12: 15 | E12: 3 | F12: 11 | G12: 4
B13: Ischilín | C13: 1 | D13: 4 | E13: 1 | F13: 3 | G13: 1
B14: Juárez Celman | C14: 6 | D14: 7 | E14: 4 | F14: 1 | G14: 6 | H14: 2
B15: Marcos Juárez | C15: 8 | D15: 10 | E15: 6 | F15: 9 | G15: 1 | H15: 2
B16: Minas | D16: 3 | G16: 3
B17: Pocho | D17: 3 | F17: 1 | G17: 2
B18: Pte. Roque Sáenz Peña | C18: 1 | D18: 6 | E18: 1 | F18: 4 | G18: 2
B19: Punilla | C19: 5 | D19: 16 | E19: 4 | F19: 10 | G19: 6 | H19: 1
B20: Río Cuarto | C20: 12 | D20: 21 | E20: 9 | F20: 19 | G20: 2 | H20: 3
B21: Río Primero | C21: 2 | D21: 7 | E21: 2 | F21: 5 | G21: 2
B22: Río Seco | C22: 1 | D22: 6 | E22: 1 | F22: 1 | G22: 5
B23: Río Segundo | C23: 4 | D23: 12 | E23: 4 | F23: 6 | G23: 6
B24: San Alberto | C24: 1 | D24: 6 | E24: 1 | F24: 3 | G24: 3
B25: San Javier | C25: 1 | D25: 8 | E25: 1 | F25: 5 | G25: 3
B26: San Justo | C26: 11 | D26: 28 | E26: 9 | F26: 10 | G26: 18 | H26: 2
B27: Santa María | C27: 4 | D27: 14 | E27: 4 | F27: 5 | G27: 9
B28: Sobremonte | D28: 2 | F28: 1 | G28: 1
B29: Tercero Arriba | C29: 4 | D29: 9 | E29: 4 | F29: 6 | G29: 3
B30: Totoral | C30: 1 | D30: 5 | E30: 1 | F30: 1 | G30: 4
B31: Tulumba | C31: 1 | D31: 5 | E31: 1 | G31: 5
B32: Unión | C32: 5 | D32: 16 | E32: 4 | F32: 8 | G32: 8 | H32: 1
B34: El sector estatal brinda la oferta de educación secundaria de la modalidad de Jóvenes y Adultos a través de anexos en el ámbito rural en tanto que el sector privado no tiene ni anexos ni oferta.

Sheet C. 8.11 (hidden)
B2: CUADRO 8.11 Alumnos por sector, ámbito y sexo, según departamento
B3: Departamento | C3: Total general | F3: Estatal | L3: Privado
F4: Urbano | I4: Rural | L4: Urbano
C5: Total | D5: Mujeres | E5: Varones | F5: Total | G5: Mujeres | H5: Varones | I5: Total | J5: Mujeres | K5: Varones | L5: Total | M5: Mujeres | N5: Varones
B6: Total Córdoba | C6: 46222 | D6: 23817 | E6: 22405 | F6: 36564 | G6: 19155 | H6: 17409 | I6: 4016 | J6: 2089 | K6: 1927 | L6: 5642 | M6: 2573 | N6: 3069
B7: Calamuchita | C7: 645 | D7: 367 | E7: 278 | F7: 452 | G7: 258 | H7: 194 | I7: 193 | J7: 109 | K7: 84
B8: Capital | C8: 19359 | D8: 10067 | E8: 9292 | F8: 14479 | G8: 7876 | H8: 6603 | I8: 0 | J8: 0 | K8: 0 | L8: 4880 | M8: 2191 | N8: 2689
B9: Colón | C9: 2895 | D9: 1525 | E9: 1370 | F9: 2704 | G9: 1428 | H9: 1276 | I9: 191 | J9: 97 | K9: 94
B10: Cruz del Eje | C10: 1216 | D10: 449 | E10: 767 | F10: 1109 | G10: 380 | H10: 729 | I10: 107 | J10: 69 | K10: 38
B11: General Roca | C11: 398 | D11: 279 | E11: 119 | F11: 356 | G11: 249 | H11: 107 | I11: 42 | J11: 30 | K11: 12
B12: General San Martín | C12: 1516 | D12: 758 | E12: 758 | F12: 1442 | G12: 699 | H12: 743 | I12: 74 | J12: 59 | K12: 15
B13: Ischilín | C13: 587 | D13: 322 | E13: 265 | F13: 550 | G13: 290 | H13: 260 | I13: 37 | J13: 32 | K13: 5
B14: Juárez Celman | C14: 683 | D14: 410 | E14: 273 | F14: 397 | G14: 238 | H14: 159 | I14: 167 | J14: 120 | K14: 47 | L14: 119 | M14: 52 | N14: 67
B15: Marcos Juárez | C15: 1167 | D15: 645 | E15: 522 | F15: 911 | G15: 496 | H15: 415 | I15: 66 | J15: 43 | K15: 23 | L15: 190 | M15: 106 | N15: 84
B16: Minas | C16: 89 | D16: 49 | E16: 40 | I16: 89 | J16: 49 | K16: 40
B17: Pocho | C17: 65 | D17: 38 | E17: 27 | F17: 28 | G17: 15 | H17: 13 | I17: 37 | J17: 23 | K17: 14
B18: Pte. Roque Sáenz Peña | C18: 481 | D18: 271 | E18: 210 | F18: 433 | G18: 242 | H18: 191 | I18: 48 | J18: 29 | K18: 19
B19: Punilla | C19: 1911 | D19: 987 | E19: 924 | F19: 1566 | G19: 800 | H19: 766 | I19: 264 | J19: 147 | K19: 117 | L19: 81 | M19: 40 | N19: 41
B20: Río Cuarto | C20: 2676 | D20: 1456 | E20: 1220 | F20: 2383 | G20: 1297 | H20: 1086 | I20: 87 | J20: 71 | K20: 16 | L20: 206 | M20: 88 | N20: 118
B21: Río Primero | C21: 848 | D21: 477 | E21: 371 | F21: 772 | G21: 418 | H21: 354 | I21: 76 | J21: 59 | K21: 17
B22: Río Seco | C22: 304 | D22: 157 | E22: 147 | F22: 191 | G22: 85 | H22: 106 | I22: 113 | J22: 72 | K22: 41
B23: Río Segundo | C23: 1509 | D23: 695 | E23: 814 | F23: 1319 | G23: 588 | H23: 731 | I23: 190 | J23: 107 | K23: 83
B24: San Alberto | C24: 530 | D24: 300 | E24: 230 | F24: 455 | G24: 253 | H24: 202 | I24: 75 | J24: 47 | K24: 28
B25: San Javier | C25: 870 | D25: 373 | E25: 497 | F25: 725 | G25: 300 | H25: 425 | I25: 145 | J25: 73 | K25: 72
B26: San Justo | C26: 2976 | D26: 1590 | E26: 1386 | F26: 2141 | G26: 1205 | H26: 936 | I26: 751 | J26: 337 | K26: 414 | L26: 84 | M26: 48 | N26: 36
B27: Santa María | C27: 2264 | D27: 806 | E27: 1458 | F27: 1590 | G27: 649 | H27: 941 | I27: 674 | J27: 157 | K27: 517
B28: Sobremonte | C28: 99 | D28: 48 | E28: 51 | F28: 98 | G28: 47 | H28: 51 | I28: 1 | J28: 1 | K28: 0
B29: Tercero Arriba | C29: 1083 | D29: 605 | E29: 478 | F29: 1021 | G29: 565 | H29: 456 | I29: 62 | J29: 40 | K29: 22
B30: Totoral | C30: 530 | D30: 290 | E30: 240 | F30: 371 | G30: 200 | H30: 171 | I30: 159 | J30: 90 | K30: 69
B31: Tulumba | C31: 293 | D31: 158 | E31: 135 | F31: 122 | G31: 60 | H31: 62 | I31: 171 | J31: 98 | K31: 73
B32: Unión | C32: 1228 | D32: 695 | E32: 533 | F32: 949 | G32: 517 | H32: 432 | I32: 197 | J32: 130 | K32: 67 | L32: 82 | M32: 48 | N32: 34

Sheet C 8.12 (hidden)
B2: Cuadro 8.12 Alumnos por ciclo y sector, según ámbito
C3: Ciclo básico | E3: Ciclo orientado
C4: Estatal | D4: Privado | E4: Estatal | F4: Privado
B5: Total Córdoba | C5: 17690 | D5: 1950 | E5: 22890 | F5: 3692
B6: Urbano | C6: 15685 | D6: 1950 | E6: 20879 | F6: 3692
B7: Rural | C7: 2005 | E7: 2011

Sheet C. 8.13 y 8.14 (hidden)
B2: Cuadro 8.13 Alumnos por sector, según modalidad de dictado y ámbito
B3: Modalidad de dictado | C3: Ámbito | D3: Total | E3: Estatal | F3: Privado
B4: Presencial | C4: Total | D4: 31093 | E4: 29196 | F4: 1897
C5: Urbano | D5: 29050 | E5: 27153 | F5: 1897
C6: Rural | D6: 2043 | E6: 2043
B7: A distancia (*) | C7: Total | D7: 15129 | E7: 11384 | F7: 3745
C8: Urbano | D8: 13156 | E8: 9411 | F8: 3745
C9: Rural | D9: 1973 | E9: 1973
B10: (*) Se han incluido en esta categoría a los alumnos que han sido declarados en las secciones con “turno” a distancia, en vez de la variable “modalidad de dictado”.
B17: Cuadro 8.14 Alumnos por sexo, según modalidad de dictado y ámbito
B18: Modalidad de dictado | C18: Ámbito | D18: Total | E18: Mujeres | F18: Varones
B19: Presencial | C19: Total | D19: 31093 | E19: 15341 | F19: 15752
C20: Urbano | D20: 29050 | E20: 14490 | F20: 14560
C21: Rural | D21: 2043 | E21: 851 | F21: 1192
B22: A distancia (*) | C22: Total | D22: 15129 | E22: 8476 | F22: 6653
C23: Urbano | D23: 13156 | E23: 7238 | F23: 5918
C24: Rural | D24: 1973 | E24: 1238 | F24: 735
B25: (*) Se han incluido en esta categoría a los alumnos que han sido declarados en las secciones con “turno” a distancia, en vez de la variable “modalidad de dictado”.

Sheet C. 8.15 (hidden)
B2: CUADRO 8.15 Alumnos egresados del ciclo lectivo 2018, por sexo, según modalidad de dictado
B3: Modalidad de dictado | C3: Total | D3: Mujeres | E3: Varones
B4: Total Córdoba | C4: 7493 | D4: 4134 | E4: 3359
B5: Presencial | C5: 4925 | D5: 2718 | E5: 2207
B6: A distancia | C6: 2568 | D6: 1416 | E6: 1152

Sheet c. 8,15 A y B. (hidden)
B2: CUADRO 8.15.A Modalidad presencial. Alumnos egresados del ciclo lectivo 2018, por sexo, según plan y orientación
B3: Tipo de plan | C3: Orientación | D3: Total | E3: Mujeres | F3: Varones
B4: Total Córdoba | D4: 4925 | E4: 2718 | F4: 2207
B5: Planes anteriores | C5: Bachiller | D5: 1 | E5: 1 | F5: 0
C6: Comercial | D6: 3 | E6: 1 | F6: 2
C7: Economía y Gestión de las Organizaciones | D7: 7 | E7: 2 | F7: 5
C8: Humanidades y Cs. Sociales | D8: 5 | E8: 4 | F8: 1
C9: Producción de Bienes y Servicios | D9: 163 | E9: 92 | F9: 71
B10: Planes actuales | C10: Agro y Ambiente | D10: 177 | E10: 120 | F10: 57
C11: Ciencias Naturales | D11: 175 | E11: 56 | F11: 119
C12: Economía y Administración | D12: 3298 | E12: 1816 | F12: 1482
C13: Humanidades y Ciencias Sociales | D13: 370 | E13: 174 | F13: 196
C14: Informática | D14: 384 | E14: 232 | F14: 152
C15: Turismo | D15: 342 | E15: 220 | F15: 122
C19: CUADRO 8.15.B Modalidad a distancia. Alumnos egresados del ciclo lectivo 2018, por sexo, según orientación
C20: Orientación | D20: Total | E20: Mujeres | F20: Varones
C21: Total Córdoba | D21: 2568 | E21: 1416 | F21: 1152
C22: Agro y Ambiente | D22: 66 | E22: 39 | F22: 27
C23: Bachiller | D23: 18 | E23: 7 | F23: 11
C24: Economía y Administración | D24: 1115 | E24: 539 | F24: 576
C25: Humanidades y Ciencias Sociales | D25: 336 | E25: 166 | F25: 170
C26: Informática | D26: 826 | E26: 527 | F26: 299
C27: Producción de Bienes y Servicios | D27: 133 | E27: 99 | F27: 34
C28: Técnica | D28: 69 | E28: 35 | F28: 34
C29: Turismo | D29: 5 | E29: 4 | F29: 1

Sheet C 8.16 (hidden)
B2: CUADRO 8.16 Personal docente en actividad, por sector, según lugar de origen y forma de designación
B3: Lugar de origen | C3: Forma de designación | D3: Total (*) | E3: Estatal | F3: Privado
B4: Total Córdoba | D4: 7567 | E4: 7054 | F4: 513
B5: Personal designado en la planta del establecimiento | C5: En actividad, designados sólo por cargo | D5: 331 | E5: 264 | F5: 67
C6: En actividad, designados sólo por horas cátedra | D6: 6956 | E6: 6530 | F6: 426
C7: En actividad, designados por cargo y horas cátedra | D7: 136 | E7: 119 | F7: 17
B8: Personal que proviene de otra planta | C8: Docentes frente a alumnos afectados a este establecimiento que no pertenecen a esta planta funcional | D8: 26 | E8: 26
C9: Docentes en otras funciones afectados a este establecimiento que no pertenecen a esta planta funcional | D9: 118 | E9: 115 | F9: 3
B10: (*)El personal docente en actividad hace referencia a todas las personas con designación docente que se desempeñan en las unidades educativas de la modalidad. Por esta razón, se cuentan tantas veces como ofertas en las que trabajan.

Sheet C 8.17 (hidden)
B2: CUADRO 8.17 Personal docente en actividad, por sexo, según departamento
B3: Departamento | C3: Total | D3: Mujeres | E3: Varones
B4: Total Córdoba | C4: 7567 | D4: 5299 | E4: 2268
B5: Calamuchita | C5: 170 | D5: 121 | E5: 49
B6: Capital | C6: 2782 | D6: 1759 | E6: 1023
B7: Colón | C7: 370 | D7: 272 | E7: 98
B8: Cruz del Eje | C8: 185 | D8: 149 | E8: 36
B9: General Roca | C9: 91 | D9: 67 | E9: 24
B10: General San Martín | C10: 279 | D10: 228 | E10: 51
B11: Ischilín | C11: 84 | D11: 58 | E11: 26
B12: Juárez Celman | C12: 158 | D12: 122 | E12: 36
B13: Marcos Juárez | C13: 246 | D13: 208 | E13: 38
B14: Minas | C14: 38 | D14: 32 | E14: 6
B15: Pocho | C15: 26 | D15: 16 | E15: 10
B16: Pte. Roque Sáenz Peña | C16: 112 | D16: 84 | E16: 28
B17: Punilla | C17: 338 | D17: 214 | E17: 124
B18: Río Cuarto | C18: 563 | D18: 396 | E18: 167
B19: Río Primero | C19: 129 | D19: 88 | E19: 41
B20: Río Seco | C20: 70 | D20: 48 | E20: 22
B21: Río Segundo | C21: 210 | D21: 165 | E21: 45
B22: San Alberto | C22: 94 | D22: 57 | E22: 37
B23: San Javier | C23: 127 | D23: 93 | E23: 34
B24: San Justo | C24: 518 | D24: 414 | E24: 104
B25: Santa María | C25: 354 | D25: 218 | E25: 136
B26: Sobremonte | C26: 22 | D26: 15 | E26: 7
B27: Tercero Arriba | C27: 207 | D27: 182 | E27: 25
B28: Totoral | C28: 81 | D28: 53 | E28: 28
B29: Tulumba | C29: 55 | D29: 41 | E29: 14
B30: Unión | C30: 258 | D30: 199 | E30: 59
B31: (*) El personal docente en actividad hace referencia a todas las personas con designación docente que se desempeñan en las unidades educativas de la modalidad. Por esta razón, se cuentan tantas veces como ofertas en las que trabajan.

Sheet C. 8.18 (hidden)
B2: CUADRO 8.18 Personal docente en actividad, por sector y ámbito, según departamento
B3: Departamento | C3: Total | D3: Estatal | F3: Privado
D4: Urbano | E4: Rural | F4: Urbano
B5: Total Córdoba | C5: 7567 | D5: 6007 | E5: 1047 | F5: 513
B6: Calamuchita | C6: 170 | D6: 93 | E6: 77
B7: Capital | C7: 2782 | D7: 2445 | E7: 0 | F7: 337
B8: Colón | C8: 370 | D8: 339 | E8: 31
B9: Cruz del Eje | C9: 185 | D9: 150 | E9: 35
B10: General Roca | C10: 91 | D10: 75 | E10: 16
B11: General San Martín | C11: 279 | D11: 249 | E11: 30
B12: Ischilín | C12: 84 | D12: 77 | E12: 7
B13: Juárez Celman | C13: 158 | D13: 78 | E13: 48 | F13: 32
B14: Marcos Juárez | C14: 246 | D14: 204 | E14: 7 | F14: 35
B15: Minas | C15: 38 | E15: 38
B16: Pocho | C16: 26 | D16: 9 | E16: 17
B17: Pte. Roque Sáenz Peña | C17: 112 | D17: 90 | E17: 22
B18: Punilla | C18: 338 | D18: 257 | E18: 68 | F18: 13
B19: Río Cuarto | C19: 563 | D19: 494 | E19: 18 | F19: 51
B20: Río Primero | C20: 129 | D20: 109 | E20: 20
B21: Río Seco | C21: 70 | D21: 32 | E21: 38
B22: Río Segundo | C22: 210 | D22: 162 | E22: 48
B23: San Alberto | C23: 94 | D23: 70 | E23: 24
B24: San Javier | C24: 127 | D24: 99 | E24: 28
B25: San Justo | C25: 518 | D25: 321 | E25: 163 | F25: 34
B26: Santa María | C26: 354 | D26: 213 | E26: 141
B27: Sobremonte | C27: 22 | D27: 18 | E27: 4
B28: Tercero Arriba | C28: 207 | D28: 182 | E28: 25
B29: Totoral | C29: 81 | D29: 39 | E29: 42
B30: Tulumba | C30: 55 | D30: 18 | E30: 37
B31: Unión | C31: 258 | D31: 184 | E31: 63 | F31: 11
B32: (*) El personal docente en actividad hace referencia a todas las personas con designación docente que se desempeñan en las unidades educativas de la modalidad. Por esta razón, se cuentan tantas veces como ofertas en las que trabajan.

Sheet C.9.1 (hidden)
B2: CUADRO 9.1 Unidades educativas, alumnos y personal docente en actividad, por sector
C3: Total | D3: Estatal | E3: Privado
B4: Unidades educativas | C4: 34 | D4: 29 | E4: 5
B5: Alumnos | C5: 9788 | D5: 8992 | E5: 796
B6: Personal docente (*) | C6: 650 | D6: 587 | E6: 63
B7: (*) El personal docente en actividad hace referencia a todas las personas con designación docente que se desempeñan en las unidades educativas de la modalidad, por esta razón se cuentan tantas veces como ofertas en las que trabajan.

Sheet C. 9.2 (hidden)
B2: CUADRO 9.2 Unidades educativas, alumnos y personal docente en actividad, por sector, según departamento
B3: Departamento | C3: Total | F3: Estatal | I3: Privado
C4: Unidades educativas | D4: Alumnos | E4: Personal docente (*) | F4: Unidades educativas | G4: Alumnos | H4: Personal docente | I4: Unidades educativas | J4: Alumnos | K4: Personal docente
B5: Total Córdoba | C5: 34 | D5: 9788 | E5: 650 | F5: 29 | G5: 8992 | H5: 587 | I5: 5 | J5: 796 | K5: 63
B6: Capital | C6: 4 | D6: 1260 | E6: 82 | F6: 3 | G6: 1183 | H6: 79 | I6: 1 | J6: 77 | K6: 3
B7: Cruz del Eje | C7: 2 | D7: 675 | E7: 84 | F7: 2 | G7: 675 | H7: 84
B8: General San Martín | C8: 2 | D8: 858 | E8: 64 | F8: 2 | G8: 858 | H8: 64
B9: Ischilín | C9: 1 | D9: 95 | E9: 7 | F9: 1 | G9: 95 | H9: 7
B10: Juárez Celman | C10: 2 | D10: 511 | E10: 16 | F10: 2 | G10: 511 | H10: 16
B11: Marcos Juárez | C11: 2 | D11: 1234 | E11: 51 | F11: 2 | G11: 1234 | H11: 51
B12: Pte. Roque Sáenz Peña | C12: 1 | D12: 321 | E12: 13 | F12: 1 | G12: 321 | H12: 13
B13: Punilla | C13: 2 | D13: 297 | E13: 25 | F13: 2 | G13: 297 | H13: 25
B14: Río Cuarto | C14: 4 | D14: 959 | E14: 78 | F14: 3 | G14: 798 | H14: 64 | I14: 1 | J14: 161 | K14: 14
B15: Río Segundo | C15: 2 | D15: 251 | E15: 35 | F15: 1 | G15: 203 | H15: 21 | I15: 1 | J15: 48 | K15: 14
B16: San Javier | C16: 1 | D16: 16 | E16: 4 | F16: 1 | G16: 16 | H16: 4
B17: San Justo | C17: 4 | D17: 987 | E17: 51 | F17: 4 | G17: 987 | H17: 51
B18: Sobremonte | C18: 1 | D18: 44 | E18: 2 | F18: 1 | G18: 44 | H18: 2
B19: Tercero Arriba | C19: 2 | D19: 635 | E19: 38 | F19: 1 | G19: 492 | H19: 32 | I19: 1 | J19: 143 | K19: 6
B20: Unión | C20: 4 | D20: 1645 | E20: 100 | F20: 3 | G20: 1278 | H20: 74 | I20: 1 | J20: 367 | K20: 26
B21: (*) El personal docente en actividad hace referencia a todas las personas con designación docente que se desempeñan en las unidades educativas de la modalidad, por esta razón se cuentan tantas veces como ofertas en las que trabajan.

Sheet C.9.3 (hidden)
B2: CUADRO 9.3 Alumnos tipo de por oferta a la que asisten
B3: Total | C3: Nivel inicial | D3: Nivel básico: TAP | E3: Cursos y talleres
B4: 9788 | C4: 1141 | D4: 120 | E4: 8527

Sheet C.9.4 (hidden)
B2: CUADRO 9.4 Alumnos por sector y sexo, según especialidad
B3: Especialidad | C3: Total general | F3: Estatal | I3: Privado
C4: Total | D4: Mujeres | E4: Varones | F4: Total | G4: Mujeres | H4: Varones | I4: Total | J4: Mujeres | K4: Varones
B5: Total Córdoba | C5: 9788 | D5: 6366 | E5: 3422 | F5: 8992 | G5: 5824 | H5: 3168 | I5: 796 | J5: 542 | K5: 254
B6: Arte | C6: 288 | D6: 227 | E6: 61 | F6: 288 | G6: 227 | H6: 61
B7: Artes audiovisuales | C7: 45 | D7: 32 | E7: 13 | F7: 45 | G7: 32 | H7: 13
B8: Artes gráficas | C8: 195 | D8: 127 | E8: 68 | F8: 195 | G8: 127 | H8: 68
B9: Artes Plasticas/Visuales | C9: 2107 | D9: 1472 | E9: 635 | F9: 1777 | G9: 1262 | H9: 515 | I9: 330 | J9: 210 | K9: 120
B10: Batería | C10: 45 | D10: 8 | E10: 37 | F10: 45 | G10: 8 | H10: 37
B11: Canto | C11: 230 | D11: 163 | E11: 67 | F11: 230 | G11: 163 | H11: 67
B12: Cerámica | C12: 340 | D12: 310 | E12: 30 | F12: 319 | G12: 289 | H12: 30 | I12: 21 | J12: 21
B13: Clarinete | C13: 12 | D13: 6 | E13: 6 | F13: 12 | G13: 6 | H13: 6
B14: Danza | C14: 534 | D14: 489 | E14: 45 | F14: 373 | G14: 329 | H14: 44 | I14: 161 | J14: 160 | K14: 1
B15: Dibujo | C15: 76 | D15: 61 | E15: 15 | F15: 76 | G15: 61 | H15: 15
B16: Dirección coral | C16: 21 | D16: 13 | E16: 8 | F16: 21 | G16: 13 | H16: 8
B17: Diseño de objetos (Artesanías) | C17: 32 | D17: 30 | E17: 2 | F17: 32 | G17: 30 | H17: 2
B18: Escultura | C18: 61 | D18: 48 | E18: 13 | F18: 61 | G18: 48 | H18: 13
B19: Expresión Corporal | C19: 252 | D19: 188 | E19: 64 | F19: 252 | G19: 188 | H19: 64
B20: Fagot | C20: 3 | D20: 0 | E20: 3 | F20: 3 | G20: 0 | H20: 3
B21: Flauta Traversa | C21: 17 | D21: 11 | E21: 6 | F21: 17 | G21: 11 | H21: 6
B22: Grabado | C22: 45 | D22: 42 | E22: 3 | F22: 45 | G22: 42 | H22: 3
B23: Guitarra | C23: 176 | D23: 82 | E23: 94 | F23: 151 | G23: 73 | H23: 78 | I23: 25 | J23: 9 | K23: 16
B24: Humanidades (Literatura e Idiomas) | C24: 25 | D24: 13 | E24: 12 | F24: 25 | G24: 13 | H24: 12
B25: Instrumento | C25: 1444 | D25: 812 | E25: 632 | F25: 1444 | G25: 812 | H25: 632
B26: Música | C26: 3275 | D26: 1869 | E26: 1406 | F26: 3034 | G26: 1738 | H26: 1296 | I26: 241 | J26: 131 | K26: 110
B27: Oboe | C27: 6 | D27: 2 | E27: 4 | F27: 6 | G27: 2 | H27: 4
B28: Piano | C28: 126 | D28: 68 | E28: 58 | F28: 108 | G28: 57 | H28: 51 | I28: 18 | J28: 11 | K28: 7
B29: Pintura | C29: 60 | D29: 52 | E29: 8 | F29: 60 | G29: 52 | H29: 8
B30: Saxofón | C30: 14 | D30: 5 | E30: 9 | F30: 14 | G30: 5 | H30: 9
B31: Teatro | C31: 302 | D31: 208 | E31: 94 | F31: 302 | G31: 208 | H31: 94
B32: Trombón a Vara | C32: 13 | D32: 4 | E32: 9 | F32: 13 | G32: 4 | H32: 9
B33: Trompeta | C33: 13 | D33: 1 | E33: 12 | F33: 13 | G33: 1 | H33: 12
B34: Viola | C34: 2 | D34: 2 | E34: 0 | F34: 2 | G34: 2 | H34: 0
B35: Violín | C35: 25 | D35: 18 | E35: 7 | F35: 25 | G35: 18 | H35: 7
B36: Violoncello | C36: 4 | D36: 3 | E36: 1 | F36: 4 | G36: 3 | H36: 1

Sheet FP C10.1 (hidden)
B2: CUADRO 10.1 Unidades educativas, alumnos y personal docente en actividad, según organismo de dependencia
B3: Organismo | C3: Unidades | D3: Alumnos | E3: Personal docente (*)
B4: Total Córdoba | C4: 91 | D4: 17922 | E4: 612
B5: Ministerio de Educación | C5: 54 | D5: 2223 | E5: 99
B6: Secretaría de Equidad y Promoción del Empleo | C6: 37 | D6: 15699 | E6: 513
B7: Se incluyen solamente las unidades educativas activas que estaban dictando cursos al momento del relevamiento 2019
B8: (*) El personal docente en actividad hace referencia a todas las personas con designación docente que se desempeñan en las unidades educativas de formación profesional; por esta razón, se cuentan tantas veces como ofertas en las que trabajan.
B9: Se incluye únicamente la oferta dependiente del Ministerio de Educación y de la Secretaría de Equidad y Promoción del Empleo, por lo que no figuran los cursos dictados por otros ministerios (provinciales o nacionales), por la municipalidad de Córdoba u otros municipios ni por las universidades. De igual manera, sólo están contabilizadas las unidades educativas que estaban dictando cursos al momento del relevamiento 2019.

Sheet FP C10.2 (hidden)
B2: CUADRO 10.2 Bases, anexos, alumnos y personal docente en actividad, según departamento
B3: Departamento | C3: Bases | D3: Anexos (*) | E3: Alumnos | F3: Personal docente (**)
B4: Total Córdoba | C4: 54 | D4: 37 | E4: 17922 | F4: 612
B5: Calamuchita | C5: 1 | D5: 0 | E5: 17 | F5: 1
B6: Capital | C6: 10 | D6: 13 | E6: 7188 | F6: 202
B7: Colón | C7: 4 | D7: 1 | E7: 906 | F7: 44
B8: Cruz del Eje | C8: 2 | D8: 1 | E8: 471 | F8: 17
B9: General Roca | C9: 2 | D9: 0 | E9: 186 | F9: 13
B10: General San Martín | C10: 2 | D10: 2 | E10: 728 | F10: 35
B11: Ischilín | C11: 1 | D11: 0 | E11: 103 | F11: 6
B12: Juárez Celman | C12: 1 | D12: 0 | E12: 480 | F12: 10
B13: Marcos Juárez | C13: 5 | D13: 1 | E13: 1187 | F13: 15
B14: Pocho | C14: 1 | D14: 0 | E14: 57 | F14: 4
B15: Presidente Roque S. Peña | C15: 1 | D15: 0 | E15: 90 | F15: 6
B16: Punilla | C16: 5 | D16: 0 | E16: 1054 | F16: 31
B17: Río Cuarto | C17: 1 | D17: 1 | E17: 157 | F17: 15
B18: Río Primero | C18: 2 | D18: 0 | E18: 170 | F18: 10
B19: Río Segundo | C19: 1 | D19: 3 | E19: 983 | F19: 41
B20: San Javier | C20: 1 | D20: 2 | E20: 901 | F20: 26
B21: San Justo | C21: 4 | D21: 3 | E21: 867 | F21: 34
B22: Santa María | C22: 1 | D22: 8 | E22: 671 | F22: 36
B23: Tercero Arriba | C23: 6 | D23: 0 | E23: 1087 | F23: 40
B24: Tulumba | D24: 1 | E24: 25 | F24: 1
B25: Unión | C25: 3 | D25: 1 | E25: 594 | F25: 25
B26: (*) Incluye siete aulas-taller móvil, consideradas como anexos del Centro de Capacitación Laboral y Formación Profesional “Córdoba”, con sede en la Capital.
B27: (**) El personal docente en actividad hace referencia a todas las personas con designación docente que se desempeñan en las unidades educativas de formación profesional; por esta razón, se cuentan tantas veces como ofertas en las que trabajan.
B28: Se incluye únicamente la oferta dependiente del Ministerio de Educación y de la Secretaría de Equidad y Promoción del Empleo, por lo que no figuran los cursos dictados por otros ministerios (provinciales o nacionales), por la municipalidad de Córdoba u otros municipios ni por las universidades. De igual manera, sólo están contabilizadas las unidades educativas que estaban dictando cursos al momento del relevamiento 2019.
B29: Los departamentos Minas, Río Seco, Sobremonte y Totoral no cuentan con oferta educativa de formación profesional. El departamento San Alberto no poseía oferta activa de formación profesional al momento del relevamiento.

Sheet C10.3 (hidden)
B2: CUADRO 10.3 Alumnos por sexo, según niveles de estudio obligatorios
B3: Niveles obligatorios | C3: Total | D3: Mujeres | E3: Varones
B4: Total Córdoba | C4: 17922 | D4: 9533 | E4: 8389
B5: Con primaria completa o incompleta | C5: 3094 | D5: 2134 | E5: 960
B6: No asisten y tienen secundaria incompleta | C6: 4108 | D6: 2066 | E6: 2042
B7: Asisten a la educación secundaria | C7: 2220 | D7: 931 | E7: 1289
B8: Con secundaria completa | C8: 7929 | D8: 4386 | E8: 3543
B9: Sin especificar | C9: 571 | D9: 16 | E9: 555
B10: Se incluye únicamente la oferta dependiente del Ministerio de Educación y de la Secretaría de Equidad y Promoción del Empleo, por lo que no figuran los cursos dictados por otros ministerios (provinciales o nacionales), por la municipalidad de Córdoba u otros municipios ni por las universidades. De igual manera, sólo están contabilizadas las unidades educativas que estaban dictando cursos al momento del relevamiento 2019.

Sheet CSC10.4 (hidden)
B2: CUADRO 10.4 Personal docente en actividad, por origen y forma de designación
B3: Origen del personal | C3: Forma de designación | D3: Total (*)
B4: Total Córdoba | D4: 612
B5: Personal perteneciente a la planta del establecimiento | C5: En actividad, designados solo por cargo | D5: 333
C6: En actividad, designados solo por horas cátedra | D6: 27
C7: En actividad, designados por cargo y horas cátedra | D7: 2
B8: Personal no perteneciente a la planta del establecimiento (**) | C8: Docentes frente a alumnos, afectados a este establecimiento que no pertenecen a esta planta funcional | D8: 244
C9: Docentes en otras funciones, afectados a este establecimiento que no pertenecen a esta planta funcional | D9: 6
B10: (*) El personal docente en actividad hace referencia a todas las personas con designación docente que se desempeñan en las unidades educativas de formación profesional; por esta razón, se cuentan tantas veces como ofertas en las que trabajan.
B11: (**) Además del personal contratado del ReProCa (Registro Provincial de Capacitación), están incluidos aquellos docentes que tienen designaciones o cargos transferidos de otros organismos estatales (como el Banco de Córdoba o la Lotería) y quienes provienen de municipios, empresas y organizaciones no gubernamentales, entre otros, y por lo tanto no pertenecen a la planta funcional de donde ejercen.
B12: Se incluye únicamente la oferta dependiente del Ministerio de Educación y de la Secretaría de Equidad y Promoción del Empleo, por lo que no figuran los cursos dictados por otros ministerios (provinciales o nacionales), por la municipalidad de Córdoba u otros municipios ni por las universidades. De igual manera, sólo están contabilizadas las unidades educativas que estaban dictando cursos al momento del relevamiento 2019.

Sheet C10.5 (hidden)
B2: CUADRO 10.5 Personal docente en actividad, por sexo, según departamento
B3: Departamento | C3: Total (*) | D3: Mujeres | E3: Varones
B4: Total Córdoba | C4: 612 | D4: 299 | E4: 313
B5: Calamuchita | C5: 1 | D5: 1
B6: Capital | C6: 202 | D6: 102 | E6: 100
B7: Colón | C7: 44 | D7: 22 | E7: 22
B8: Cruz del Eje | C8: 17 | D8: 8 | E8: 9
B9: General Roca | C9: 13 | D9: 5 | E9: 8
B10: General San Martín | C10: 35 | D10: 16 | E10: 19
B11: Ischilín | C11: 6 | D11: 5 | E11: 1
B12: Juárez Celman | C12: 10 | D12: 7 | E12: 3
B13: Marcos Juárez | C13: 15 | D13: 4 | E13: 11
B14: Pocho | C14: 4 | D14: 4
B15: Presidente Roque S. Peña | C15: 6 | D15: 5 | E15: 1
B16: Punilla | C16: 31 | D16: 12 | E16: 19
B17: Río Cuarto | C17: 15 | D17: 3 | E17: 12
B18: Río Primero | C18: 10 | D18: 7 | E18: 3
B19: Río Segundo | C19: 41 | D19: 21 | E19: 20
B20: San Javier | C20: 26 | D20: 12 | E20: 14
B21: San Justo | C21: 34 | D21: 14 | E21: 20
B22: Santa María | C22: 36 | D22: 14 | E22: 22
B23: Tercero Arriba | C23: 40 | D23: 17 | E23: 23
B24: Tulumba | C24: 1 | E24: 1
B25: Unión | C25: 25 | D25: 20 | E25: 5
B26: (*) El personal docente en actividad hace referencia a todas las personas con designación docente que se desempeñan en las unidades educativas de formación profesional; por esta razón, se cuentan tantas veces como ofertas en las que trabajan.
B27: Se incluye únicamente la oferta dependiente del Ministerio de Educación y de la Secretaría de Equidad y Promoción del Empleo, por lo que no figuran los cursos dictados por otros ministerios (provinciales o nacionales), por la municipalidad de Córdoba u otros municipios ni por las universidades. De igual manera, sólo están contabilizadas las unidades educativas que estaban dictando cursos al momento del relevamiento 2019.
B28: Los departamentos Minas, Río Seco, Sobremonte y Totoral no cuentan con oferta educativa de formación profesional. El departamento San Alberto no poseía oferta activa de formación profesional al momento del relevamiento.

Sheet Carátula (hidden)
B8: Estadísticas Educativas
B10: Anuario 2019

Sheet CI Carátula (hidden)
A1: Estadísticas Educativas
A3: Anuario 2019
A12: MODALIDAD COMÚN
A13: EDUCACIÓN INICIAL

Sheet CP Carátula (hidden)
A1: Estadísticas Educativas
A3: Anuario 2019
A12: MODALIDAD COMÚN
A13: EDUCACIÓN PRIMARIA

Sheet CS Carátula (hidden)
A1: Estadísticas Educativas
A3: Anuario 2019
D12: MODALIDAD COMÚN
D13: EDUCACIÓN SECUNDARIA

Sheet S Carátula (hidden)
A1: Estadísticas Educativas
A3: Anuario 2019
D12: MODALIDAD COMÚN
D13: EDUCACIÓN SUPERIOR

Sheet E Carátula (hidden)
A1: Estadísticas Educativas
A3: Anuario 2019
D12: MODALIDAD ESPECIAL
D13: Todas las ofertas y niveles

Sheet DH Carátula (hidden)
A1: Estadísticas Educativas
A3: Anuario 2019
A12: MODALIDAD DOMICILIARIA Y HOSPITALARIA
D13: Los niveles de la enseñanza obligatorios

Sheet A Carátula (hidden)
A1: Estadísticas Educativas
A3: Anuario 2019
C12: MODALIDAD EDUCACIÓN PERMANENTE DE JÓVENES y ADULTOS
D14: Educación primaria y secundaria

Sheet AP Carátula (hidden)
A1: Estadísticas Educativas
A3: Anuario 2019
C12: MODALIDAD EDUCACIÓN PERMANENTE DE JÓVENES y ADULTOS
D14: Educación primaria

Sheet AS Carátula (hidden)
A1: Estadísticas Educativas
A3: Anuario 2019
C12: MODALIDAD EDUCACIÓN PERMANENTE DE JÓVENES y ADULTOS
D14: Educación secundaria

Sheet Ar Carátula (hidden)
A1: Estadísticas Educativas
A3: Anuario 2019
B12: MODALIDAD EDUCACIÓN ARTÍSTICA

Sheet FP Carátula (hidden)
A1: Estadísticas Educativas
A3: Anuario 2019
A12: FORMACIÓN PROFESIONAL
